Authority,Department,Spending Area,Expense Type,Posting Date,Reference,Amount,Supplier
OXFORDSHIRE CC,ADULTS,COUNTY PRINT FINSHRS,MATERIALS,28/11/2023,000009294956478,9.38,AMAZON.CO.UK HW4F76P24
OXFORDSHIRE CC,CUSTOMER AND CULTURE,OPS MGR LIB NETWORK,FURNITURE,28/11/2023,000009294957894,13,AMZNMKTPLACE
OXFORDSHIRE CC,CHILDREN'S & EDUCATION,40 THE MOORS,OTHER TRANSPORT ARRANGEMENTS,28/11/2023,000009294957786,20,STGCOACH/CTYLINK
OXFORDSHIRE CC,CHILDREN'S & EDUCATION,THAME E&A HOME,CATERING PROVISIONS,28/11/2023,000009294957362,11,SAINSBURYS S/MKTS
OXFORDSHIRE CC,CHILDREN'S & EDUCATION,OTFC TEAM,CATERING,28/11/2023,000009294958164,27.41,MCDONALDS
OXFORDSHIRE CC,CUSTOMER AND CULTURE,OPS MGR LIB NETWORK,FURNITURE,28/11/2023,000009294957880,5.99,AMZNMKTPLACE
OXFORDSHIRE CC,CHILDREN'S & EDUCATION,THAME E&A HOME,CATERING,28/11/2023,000009294958564,8.85,COSTA COFFEE 43010554
OXFORDSHIRE CC,CHILDREN'S & EDUCATION,THAME E&A HOME,OTHER TRANSPORT ARRANGEMENTS,28/11/2023,000009294958568,2.7,OXFORD CITY COUNCIL
OXFORDSHIRE CC,CHILDREN'S & EDUCATION,OTFC TEAM,HIRE OF ACCOMMODATION AND FACILITIES,28/11/2023,000009294958158,4,LEONARDO ROYAL OXFORD
OXFORDSHIRE CC,CHILDREN'S & EDUCATION,DIDCOT MOVE-ON HOME,CATERING PROVISIONS,28/11/2023,000009294958200,21.24,SAINSBURYS S/MKTS
OXFORDSHIRE CC,CUSTOMER AND CULTURE,OPS MGR LIB NETWORK,FURNITURE,28/11/2023,000009294957866,8.99,AMZNMKTPLACE
OXFORDSHIRE CC,CHILDREN'S & EDUCATION,40 THE MOORS,TELEPHONE - EQUIPMENT,28/11/2023,000009294957782,23.79,RECHARGE.COM 148220318
OXFORDSHIRE CC,CUSTOMER AND CULTURE,OPS MGR LIB NETWORK,FURNITURE,28/11/2023,000009294957874,37.27,AMZNMKTPLACE
OXFORDSHIRE CC,CUSTOMER AND CULTURE,OPS MGR LIB NETWORK,FURNITURE,28/11/2023,000009294957878,18.99,AMZNMKTPLACE
OXFORDSHIRE CC,CHILDREN'S & EDUCATION,WITNEY,CATERING PROVISIONS,28/11/2023,000009294958206,7.65,CO-OP GROUP 070582
OXFORDSHIRE CC,CHILDREN'S & EDUCATION,OTFC TEAM,DRUGS AND MEDICAL SUPPLIES,28/11/2023,000009294958156,1.45,SUPERDRUG STORES PLC
OXFORDSHIRE CC,CHILDREN'S & EDUCATION,FAMILY SOLUTIONS PLUS NON-STAFF - NORTH,MATERIALS,28/11/2023,000009294958062,38.99,AMAZON.CO.UK HW2HC4104
OXFORDSHIRE CC,CUSTOMER AND CULTURE,OPS MGR LIB NETWORK,FURNITURE,28/11/2023,000009294957892,167.9,FINDEL EDUCATION
OXFORDSHIRE CC,CUSTOMER AND CULTURE,OPS MGR LIB NETWORK,FURNITURE,28/11/2023,000009294957872,24.43,AMZNMKTPLACE
OXFORDSHIRE CC,ADULTS,CSS WANTAGE,CATERING PROVISIONS,28/11/2023,000009294958642,25,LORD NELSON
OXFORDSHIRE CC,CHILDREN'S & EDUCATION,THAME E&A HOME,MATERIALS,28/11/2023,000009294957354,35.98,ROBERT DYAS THAME
OXFORDSHIRE CC,ADULTS,CSS WANTAGE,CATERING PROVISIONS,28/11/2023,000009294958638,55,LORD NELSON
OXFORDSHIRE CC,CHILDREN'S & EDUCATION,OTFC TEAM,CATERING,28/11/2023,000009294958150,33.5,NANDOS.CO.UK
OXFORDSHIRE CC,PUBLIC HEALTH,CHILDREN IN CARE NON-STAFFING - SOUTH,OTHER TRANSPORT ARRANGEMENTS,28/11/2023,000009294956294,17.92,TRAINLINE
OXFORDSHIRE CC,CHILDREN'S & EDUCATION,OTFC TEAM,OTHER TRANSPORT ARRANGEMENTS,28/11/2023,000009294958152,5,OXPENS CAR PARK
OXFORDSHIRE CC,ADULTS,CSS WALLINGFORD,VEHICLE EQUIPMENT AND EXPENSES - OTHER,28/11/2023,000009294956322,3.58,AMZNMKTPLACE
OXFORDSHIRE CC,CHILDREN'S & EDUCATION,"	LEAVING CARE CITY 1",OTHER TRANSPORT ARRANGEMENTS,28/11/2023,000009294956996,2,EDEN CENTRE
OXFORDSHIRE CC,CHILDREN'S & EDUCATION,EYNSHAM,MATERIALS,28/11/2023,000009294958024,10.98,AMZNMKTPLACE
OXFORDSHIRE CC,CHILDREN'S & EDUCATION,EYNSHAM,RESIDENTIAL ACTIVITIES,28/11/2023,000009294958022,294.95,AMAZON.CO.UK HW9PN81W4
OXFORDSHIRE CC,CHILDREN'S & EDUCATION,NRPF & HOMELESSNESS,HIRE OF ACCOMMODATION AND FACILITIES,28/11/2023,000009294958216,50.98,TRAVELODGE
OXFORDSHIRE CC,ADULTS,PAUSE PROGRAMME,DRUGS AND MEDICAL SUPPLIES,28/11/2023,000009294956900,20.12,BOOTS 2138
OXFORDSHIRE CC,CHILDREN'S & EDUCATION,EYNSHAM,DRUGS AND MEDICAL SUPPLIES,28/11/2023,000009294958016,16.88,SUPERDRUG STORES PLC
OXFORDSHIRE CC,CUSTOMER AND CULTURE,BICESTER LIBRARY,STATIONERY,28/11/2023,000009294957148,4.96,BARSTOWS STATIONARY
OXFORDSHIRE CC,CHILDREN'S & EDUCATION,"	LEAVING CARE CITY 1",CATERING,28/11/2023,000009294956992,20.45,NANDOS HIGH WYCOMBE
OXFORDSHIRE CC,ADULTS,CSS - BANBURY,HARDWARE AND CROCKERY,28/11/2023,000009294958536,20,HOMEBASE LTD
OXFORDSHIRE CC,CHILDREN'S & EDUCATION,EYNSHAM,MATERIALS,28/11/2023,000009294958026,87.93,WWW.ARGOS.CO.UK
OXFORDSHIRE CC,ADULTS,CSS WALLINGFORD,CLEANING MATERIALS,28/11/2023,000009294956252,24.25,WAITROSE 675
OXFORDSHIRE CC,CUSTOMER AND CULTURE,HARD FM,PREMISES REPAIRS,28/11/2023,000009294956428,17.1,B & Q 1062
OXFORDSHIRE CC,CHILDREN'S & EDUCATION,"	DISABILITIES TEAM-N",PAYMENTS TO TRANSPORT OPERATORS,28/11/2023,000009294956578,64.59,TRAINLINE
OXFORDSHIRE CC,CHILDREN'S & EDUCATION,"	RESIDENTIAL STRATEGY",OTHER EXPENSES,28/11/2023,000009294958090,32,B&M 762 CALCOT
OXFORDSHIRE CC,CUSTOMER AND CULTURE,HARD FM,PREMISES REPAIRS,28/11/2023,000009294956434,11.8,WICKES BANBURY
OXFORDSHIRE CC,CUSTOMER AND CULTURE,SCHOOLS FM CATERING AREA 4,CATERING PROVISIONS,28/11/2023,000009294956552,12,TESCO STORES 2008
OXFORDSHIRE CC,CHILDREN'S & EDUCATION,"	LEAVING CARE NORTH",PAYMENTS TO TRANSPORT OPERATORS,28/11/2023,000009294958612,71.25,BKG HOTEL AT BOOKING.C
OXFORDSHIRE CC,CUSTOMER AND CULTURE,MUSEUMS COLLECTIONS,EDUCATIONAL AND VOCATIONAL TRAINING ,28/11/2023,000009294957616,59,EB  WORKING IN PARTNER
OXFORDSHIRE CC,CUSTOMER AND CULTURE,CAMBRIDGE TERRACE,OTHER PREMISES RELATED COSTS,28/11/2023,000009294957902,13.96,AMZNMKTPLACE
OXFORDSHIRE CC,CUSTOMER AND CULTURE,OCCG GRANT,MATERIALS,28/11/2023,000009294958670,33.98,AMZNMKTPLACE
OXFORDSHIRE CC,CUSTOMER AND CULTURE,MUSEUMS COLLECTIONS,MATERIALS,28/11/2023,000009294958618,7.99,AMZNMKTPLACE
OXFORDSHIRE CC,CHILDREN'S & EDUCATION,FAMILY SOLUTIONS PLUS NON-STAFF - NORTH,MATERIALS,28/11/2023,000009294958626,15.84,AMAZON.CO.UK HW1P02144
OXFORDSHIRE CC,ADULTS,LEADERSHIP TEAM,PAYMENTS TO TRANSPORT OPERATORS,28/11/2023,000009294958540,56.95,TRAINLINE
OXFORDSHIRE CC,CHILDREN'S & EDUCATION,WITNEY,CATERING PROVISIONS,28/11/2023,000009294957170,9.03,SAINSBURYS S/MKTS
OXFORDSHIRE CC,CHILDREN'S & EDUCATION,NTS UASC AGENCY,FURNITURE,28/11/2023,000009294958274,325.5,IKEA LTD 461 READING M
OXFORDSHIRE CC,CUSTOMER AND CULTURE,CATERING MANAGEMENT SOFT FM,POSTAGE AND DELIVERY,28/11/2023,000009294958436,1.25,POST OFFICE COUNTER
OXFORDSHIRE CC,CUSTOMER AND CULTURE,OXFORDSHIRE MUSEUM,MATERIALS,28/11/2023,000009294957624,10.99,AMZNMKTPLACE
OXFORDSHIRE CC,CHILDREN'S & EDUCATION,QUALITY ASSURANCE CITY TEAM,PAYMENTS TO TRANSPORT OPERATORS,28/11/2023,000009294958550,50.53,TRAINLINE
OXFORDSHIRE CC,ENVIRONMENT AND PLACE,PARKING STAFF,MATERIALS,28/11/2023,000009294956566,15.78,AMAZON.CO.UK HW6CK9104
OXFORDSHIRE CC,CHILDREN'S & EDUCATION,FAMILY SOLUTIONS PLUS NON-STAFF - NORTH,PAYMENTS TO TRANSPORT OPERATORS,28/11/2023,000009294958170,27.4,TRAINLINE
OXFORDSHIRE CC,CHILDREN'S & EDUCATION,"	LOOKED AFTER NORTH",OTHER TRANSPORT ARRANGEMENTS,28/11/2023,000009294958104,8.9,M6 TOLL
OXFORDSHIRE CC,ADULTS,COUNTY PRINT FINSHRS,CLOTHING AND UNIFORMS,28/11/2023,000009294957318,251.59,WORKWEAR EXPRESS
OXFORDSHIRE CC,ENVIRONMENT AND PLACE,SCH&SOC CARE TRANSP,PAYMENTS TO TRANSPORT OPERATORS,28/11/2023,000009294957676,120,THE WINDMILL SPECIAL N
OXFORDSHIRE CC,ADULTS,CSS WANTAGE,MATERIALS,28/11/2023,000009294958644,3.99,PETS CORNER S172
OXFORDSHIRE CC,ADULTS,CSS WANTAGE,CATERING PROVISIONS,28/11/2023,000009294958648,33.46,SAINSBURYS S/MKTS
OXFORDSHIRE CC,ADULTS,CSS WANTAGE,MATERIALS,28/11/2023,000009294958634,47.9,HOME BARGAINS
OXFORDSHIRE CC,CHILDREN'S & EDUCATION,NRPF & HOMELESSNESS,HIRE OF ACCOMMODATION AND FACILITIES,28/11/2023,000009294958212,545,BKG HOTEL AT BOOKING.C
OXFORDSHIRE CC,CUSTOMER AND CULTURE,SCHOOLS FM CATERING AREA 1,CATERING PROVISIONS,28/11/2023,000009294958182,8.4,TESCO STORES 4480
OXFORDSHIRE CC,CUSTOMER AND CULTURE,COUNTY HALL,FURNITURE,28/11/2023,000009294957538,91,IKEA LTD SHOP ONLINE
OXFORDSHIRE CC,CUSTOMER AND CULTURE,SCHOOLS FM CATERING AREA 2,MATERIALS,28/11/2023,000009294956618,25.99,AMZNMKTPLACE
OXFORDSHIRE CC,CUSTOMER AND CULTURE,SCHOOLS FM CATERING AREA 2,MATERIALS,28/11/2023,000009294956614,19.96,AMZNMKTPLACE
OXFORDSHIRE CC,CUSTOMER AND CULTURE,WITNEY LIBRARY,CATERING PROVISIONS,28/11/2023,000009294957080,6.85,CO-OP GROUP 070582
OXFORDSHIRE CC,ADULTS,CSS WITNEY,CATERING PROVISIONS,28/11/2023,000009294957416,28.25,CO-OP GROUP 070582
OXFORDSHIRE CC,CHILDREN'S & EDUCATION,"	LOOKED AFTER NORTH",MATERIALS,28/11/2023,000009294956956,34.99,WWW.ARGOS.CO.UK
OXFORDSHIRE CC,CHILDREN'S & EDUCATION,FAMILY SOLUTIONS PLUS NON-STAFF � SOUTH,PAYMENTS TO TRANSPORT OPERATORS,28/11/2023,000009294958254,83.75,TRAINLINE
OXFORDSHIRE CC,ADULTS,CSS - OXFORD,MATERIALS,28/11/2023,000009294956708,36.38,ALDI STORES 775-142
OXFORDSHIRE CC,CUSTOMER AND CULTURE,SCHOOLS FM CATERING AREA 1,CATERING PROVISIONS,28/11/2023,000009294958186,2.5,CO OPERATIVE FOOD
OXFORDSHIRE CC,CUSTOMER AND CULTURE,SCHOOLS FM CATERING AREA 2,CATERING PROVISIONS,28/11/2023,000009294957334,15.15,SAINSBURYS S/MKTS
OXFORDSHIRE CC,CORPORATE CORE,,STATIONERY,28/11/2023,000009294958038,87.78,LYRECO UK LTD
OXFORDSHIRE CC,CORPORATE CORE,,STATIONERY,28/11/2023,000009294958042,138.48,LYRECO UK LTD
OXFORDSHIRE CC,CORPORATE CORE,,STATIONERY,28/11/2023,000009294958048,125.63,LYRECO UK LTD
OXFORDSHIRE CC,CORPORATE CORE,,STATIONERY,28/11/2023,000009294958050,62.11,LYRECO UK LTD
OXFORDSHIRE CC,CUSTOMER AND CULTURE,THAME LIBRARY,"NEWSPAPERS, PERIODICALS AND PUBLICATIONS",28/11/2023,000009294957958,5.6,SAINSBURYS S/MKTS
OXFORDSHIRE CC,RESOURCES,SCHOOLS FM CATERING AREA 2,CATERING PROVISIONS,28/11/2023,000009294958098,8,TESCO STORES 4480
OXFORDSHIRE CC,CHILDREN'S & EDUCATION,NTH EARLY HELP-WITNY,CATERING PROVISIONS,28/11/2023,000009294958066,13.48,WAITROSE 142
OXFORDSHIRE CC,ADULTS,INCOME TEAM,PAYMENT TO GOVERNMENT DEPARTMENTS,28/11/2023,000009294956768,1.5,FIND A WILL
OXFORDSHIRE CC,CHILDREN'S & EDUCATION,FAMILY SOLUTIONS PLUS NON-STAFF - NORTH,CATERING PROVISIONS,28/11/2023,000009294958168,3.5,TESCO STORES 3143
OXFORDSHIRE CC,CHILDREN'S & EDUCATION,NTH EARLY HELP-BNRBY,CATERING PROVISIONS,28/11/2023,000009294958522,6.2,WAITROSE 874
OXFORDSHIRE CC,ADULTS,CSS - ABINGDON,CATERING PROVISIONS,28/11/2023,000009294958704,26.32,ALDI STORES
OXFORDSHIRE CC,CUSTOMER AND CULTURE,REGISTRAR,CATERING PROVISIONS,28/11/2023,000009294956946,3.98,LONDIS SUPERMARKET
OXFORDSHIRE CC,CHILDREN'S & EDUCATION,THAME E&A HOME,CATERING PROVISIONS,28/11/2023,000009294956678,230.98,TESCO STORES 2038
OXFORDSHIRE CC,ADULTS,CSS BICESTER,CATERING PROVISIONS,28/11/2023,000009294956486,166.97,TESCO STORES 2162
OXFORDSHIRE CC,ADULTS,CSS - BANBURY,CATERING PROVISIONS,28/11/2023,000009294958456,102.49,SAINSBURYS.CO.UK
OXFORDSHIRE CC,CHILDREN'S & EDUCATION,FIELDWORK UASC,OTHER TRANSPORT ARRANGEMENTS,28/11/2023,000009294958466,2,STGCOACH/CTYLINK
OXFORDSHIRE CC,CHILDREN'S & EDUCATION,THAME E&A HOME,CATERING PROVISIONS,28/11/2023,000009294956682,-3.25,TESCO STORES 2038
OXFORDSHIRE CC,CHILDREN'S & EDUCATION,STH EARLY HELP-ABNDN,OTHER EXPENSES,28/11/2023,000009294958392,-90,WWW.ARGOS.CO.UK
OXFORDSHIRE CC,CHILDREN'S & EDUCATION,FSP NON-STAFFING - CENTRAL,MATERIALS,28/11/2023,000009294957760,-16,WWW.ARGOS.CO.UK
OXFORDSHIRE CC,CHILDREN'S & EDUCATION,THAME E&A HOME,CATERING PROVISIONS,28/11/2023,000009294957084,17.95,THAME BP SF CONNECT
OXFORDSHIRE CC,CUSTOMER AND CULTURE,CATERING MANAGEMENT SOFT FM,MATERIALS,28/11/2023,000009294958440,26.81,AMZNMKTPLACE
OXFORDSHIRE CC,CUSTOMER AND CULTURE,CATERING MANAGEMENT SOFT FM,MATERIALS,28/11/2023,000009294958444,18.48,AMZNMKTPLACE
OXFORDSHIRE CC,CHILDREN'S & EDUCATION,THAME E&A HOME,VEHICLE FUEL,28/11/2023,000009294957212,6.5,THAME BP SF CONNECT
OXFORDSHIRE CC,PUBLIC HEALTH,CHILDREN IN CARE NON-STAFFING - NORTH,HIRED AND CONTRACTED SERVICES,28/11/2023,000009294956814,47.94,CHRIS AND SONS HAIR AN
OXFORDSHIRE CC,CUSTOMER AND CULTURE,"MARKETING, COMMUNICATIONS & ENGAGEMENT","PUBLICITY, PROMOTIONS AND ADVERTISEMENT",27/11/2023,000009289828146,15.6,SNAP INC SNAP SNAP ADS
OXFORDSHIRE CC,CHILDREN'S & EDUCATION,UASC 16&17,SUBSCRIPTIONS,27/11/2023,000009289827138,35.99,PUREGYM LIMITED
OXFORDSHIRE CC,CHILDREN'S & EDUCATION,40 THE MOORS,CLOTHING AND UNIFORMS,27/11/2023,000009289828518,98,JD SPORTS FASHION PLC
OXFORDSHIRE CC,CHILDREN'S & EDUCATION,40 THE MOORS,CLOTHING AND UNIFORMS,27/11/2023,000009289828528,48.45,ASOS.COM
OXFORDSHIRE CC,CHILDREN'S & EDUCATION,40 THE MOORS,CLOTHING AND UNIFORMS,27/11/2023,000009289828522,100.4,ASDA GEORGE COM LEEDS
OXFORDSHIRE CC,ADULTS,EDT,HIRE OF ACCOMMODATION AND FACILITIES,27/11/2023,000009289827970,63.54,PREMIER INN
OXFORDSHIRE CC,CHILDREN'S & EDUCATION,THAME E&A HOME,CATERING,27/11/2023,000009289827604,8.8,COSTA COFFEE 43011357
OXFORDSHIRE CC,CHILDREN'S & EDUCATION,40 THE MOORS,MATERIALS,27/11/2023,000009289828526,3.5,SAINSBURYS S/MKTS
OXFORDSHIRE CC,CHILDREN'S & EDUCATION,DIDCOT MOVE-ON HOME,CATERING PROVISIONS,27/11/2023,000009289827774,14.63,HOME BARGAINS NEWBURY
OXFORDSHIRE CC,CHILDREN'S & EDUCATION,DIDCOT MOVE-ON HOME,CATERING PROVISIONS,27/11/2023,000009289827770,9.82,HOME BARGAINS NEWBURY
OXFORDSHIRE CC,CUSTOMER AND CULTURE,BANBURY LIBRARY,"NEWSPAPERS, PERIODICALS AND PUBLICATIONS",27/11/2023,000009289827738,47.99,GUARDIAN NEWS & MEDIA
OXFORDSHIRE CC,CHILDREN'S & EDUCATION,DIDCOT MOVE-ON HOME,CATERING PROVISIONS,27/11/2023,000009289828400,41.89,SAINSBURYS S/MKTS
OXFORDSHIRE CC,CHILDREN'S & EDUCATION,EYNSHAM,FURNITURE,27/11/2023,000009289826984,34.64,AMAZON  202-9756224-16
OXFORDSHIRE CC,CUSTOMER AND CULTURE,KNIGHTS COURT,OTHER PREMISES RELATED COSTS,27/11/2023,000009289827800,19.99,AMZNMKTPLACE
OXFORDSHIRE CC,CHILDREN'S & EDUCATION,THAME E&A HOME,CATERING,27/11/2023,000009289827722,1.8,GEO COFFEE ROASTING
OXFORDSHIRE CC,ADULTS,CSS - BANBURY,MATERIALS,27/11/2023,000009289828646,17.32,AMAZON.CO.UK HW7L10J34
OXFORDSHIRE CC,CHILDREN'S & EDUCATION,"	LEAVING CARE NORTH",HIRED AND CONTRACTED SERVICES,27/11/2023,000009289827404,41.49,MAGENTA STORAGE
OXFORDSHIRE CC,CHILDREN'S & EDUCATION,THAME E&A HOME,CATERING,27/11/2023,000009289827720,3.6,GEO COFFEE ROASTING
OXFORDSHIRE CC,PUBLIC HEALTH,WITNEY,MATERIALS,27/11/2023,000009289826992,7.95,AMZNMKTPLACE
OXFORDSHIRE CC,CHILDREN'S & EDUCATION,FAMILY SOLUTIONS PLUS NON-STAFF � SOUTH,DOMESTIC AND CLEANING EQUIPMENT,27/11/2023,000009289828396,30.36,AMAZON  202-5282544-29
OXFORDSHIRE CC,PUBLIC HEALTH,PUBLIC HEALTH GENERAL,EDUCATIONAL AND VOCATIONAL TRAINING ,27/11/2023,000009289828244,46,COURSRA 2UPUYMNLEL0SSO
OXFORDSHIRE CC,SOCIAL AND COMMUNITY SERVICES,CSS - ABINGDON,MATERIALS,27/11/2023,000009289827046,116.8,AMZNMKTPLACE
OXFORDSHIRE CC,ADULTS,CSS - BANBURY,MATERIALS,27/11/2023,000009289828638,34.99,AMAZON.CO.UK HW6H773G4
OXFORDSHIRE CC,CUSTOMER AND CULTURE,"MARKETING, COMMUNICATIONS & ENGAGEMENT","PUBLICITY, PROMOTIONS AND ADVERTISEMENT",27/11/2023,000009289828142,15.6,SNAP INC SNAP SNAP ADS
OXFORDSHIRE CC,ADULTS,CSS BICESTER,MATERIALS,27/11/2023,000009289827242,21.49,AMZNMKTPLACE
OXFORDSHIRE CC,CHILDREN'S & EDUCATION,EYNSHAM,MATERIALS,27/11/2023,000009289828262,7.99,TESCO SUBSCRIPTION
OXFORDSHIRE CC,CHILDREN'S & EDUCATION,EYNSHAM,CATERING PROVISIONS,27/11/2023,000009289828266,8.75,MAYFIELDEGGS
OXFORDSHIRE CC,CHILDREN'S & EDUCATION,DIDCOT MOVE-ON HOME,CATERING PROVISIONS,27/11/2023,000009289827466,0.8,SAINSBURYS S/MKTS
OXFORDSHIRE CC,CUSTOMER AND CULTURE,"MARKETING, COMMUNICATIONS & ENGAGEMENT","PUBLICITY, PROMOTIONS AND ADVERTISEMENT",27/11/2023,000009289828138,500,GOOGLE ADS4896546035
OXFORDSHIRE CC,CHILDREN'S & EDUCATION,40 THE MOORS,CATERING,27/11/2023,000009289828514,15,SAINSBURYS S/MKTS
OXFORDSHIRE CC,CHILDREN'S & EDUCATION,FSP NON-STAFFING - CENTRAL,IT SOFTWARE,27/11/2023,000009289826974,22,QWIKPARK
OXFORDSHIRE CC,CHILDREN'S & EDUCATION,DIDCOT MOVE-ON HOME,CATERING PROVISIONS,27/11/2023,000009289827764,23.75,SAINSBURYS S/MKTS
OXFORDSHIRE CC,CHILDREN'S & EDUCATION,DIDCOT MOVE-ON HOME,CATERING PROVISIONS,27/11/2023,000009289827760,12.81,SAINSBURYS S/MKTS
OXFORDSHIRE CC,CHILDREN'S & EDUCATION,EYNSHAM,CATERING,27/11/2023,000009289828544,8.5,THE SHAKE SHOP
OXFORDSHIRE CC,CHILDREN'S & EDUCATION,EYNSHAM,DRUGS AND MEDICAL SUPPLIES,27/11/2023,000009289828548,17.98,SUPERDRUG STORES PLC
OXFORDSHIRE CC,CHILDREN'S & EDUCATION,THAME E&A HOME,RESIDENTIAL ACTIVITIES,27/11/2023,000009289827162,23.5,EVERYONE ACTIVE-DOM
OXFORDSHIRE CC,CHILDREN'S & EDUCATION,40 THE MOORS,MATERIALS,27/11/2023,000009289828510,73,WWW.ARGOS.CO.UK
OXFORDSHIRE CC,CHILDREN'S & EDUCATION,"	LEAVING CARE CITY 2",CATERING,27/11/2023,000009289828668,7.13,MCDONALDS
OXFORDSHIRE CC,CHILDREN'S & EDUCATION,"	LEAVING CARE CITY 2",CATERING,27/11/2023,000009289828664,2.7,SQ  BIG ROCK CLIMBING
OXFORDSHIRE CC,CHILDREN'S & EDUCATION,EYNSHAM,CATERING PROVISIONS,27/11/2023,000009289828542,3.1,TESCO STORES 2817
OXFORDSHIRE CC,ADULTS,CSS BICESTER,MATERIALS,27/11/2023,000009289827034,5.83,AMZNMKTPLACE
OXFORDSHIRE CC,CUSTOMER AND CULTURE,OPERATIONS,MATERIALS,27/11/2023,000009289827894,4.99,AMAZON.CO.UK HI4RN2Y24
OXFORDSHIRE CC,CHILDREN'S & EDUCATION,THAME E&A HOME,CATERING PROVISIONS,27/11/2023,000009289827594,55,ASDA SUPERSTORE
OXFORDSHIRE CC,ADULTS,CSS WALLINGFORD,MATERIALS,27/11/2023,000009289826946,11.99,AMZNMKTPLACE
OXFORDSHIRE CC,CHILDREN'S & EDUCATION,"	MALTFIELD HOUSE",FURNITURE,27/11/2023,000009289827454,"1,608.16",EMMA SLEEP
OXFORDSHIRE CC,CUSTOMER AND CULTURE,THAME LIBRARY,"NEWSPAPERS, PERIODICALS AND PUBLICATIONS",27/11/2023,000009289828312,7.3,SAINSBURYS S/MKTS
OXFORDSHIRE CC,CHILDREN'S & EDUCATION,UASC 16&17,RESIDENTIAL ACTIVITIES,27/11/2023,000009289827684,22.99,THE GYM GROUP
OXFORDSHIRE CC,CUSTOMER AND CULTURE,"MARKETING, COMMUNICATIONS & ENGAGEMENT","PUBLICITY, PROMOTIONS AND ADVERTISEMENT",27/11/2023,000009289828134,15.56,SNAP INC SNAP SNAP ADS
OXFORDSHIRE CC,CHILDREN'S & EDUCATION,40 THE MOORS,CATERING PROVISIONS,27/11/2023,000009289828596,134.25,SAINSBURYS.CO.UK
OXFORDSHIRE CC,ADULTS,COUNTY PRINT FINSHRS,MATERIALS,27/11/2023,000009289827114,27.98,AMZNMKTPLACE
OXFORDSHIRE CC,ADULTS,CSS - BANBURY,MATERIALS,27/11/2023,000009289828634,-13.95,AMZNMKTPLACE
OXFORDSHIRE CC,CUSTOMER AND CULTURE,"MARKETING, COMMUNICATIONS & ENGAGEMENT",IT SOFTWARE,27/11/2023,000009289828122,167.44,ADOBE SYSTEMS SOFTWARE
OXFORDSHIRE CC,CHILDREN'S & EDUCATION,MANAGEMENT RECHARGES,HIRED AND CONTRACTED SERVICES,27/11/2023,000009289827228,70,AMZNMKTPLACE
OXFORDSHIRE CC,CHILDREN'S & EDUCATION,40 THE MOORS,CATERING,27/11/2023,000009289828494,45,OXY ORIENTAL
OXFORDSHIRE CC,CHILDREN'S & EDUCATION,WITNEY,CATERING PROVISIONS,27/11/2023,000009289828386,77.07,SAINSBURYS S/MKTS
OXFORDSHIRE CC,CHILDREN'S & EDUCATION,EYNSHAM,OTHER TRANSPORT ARRANGEMENTS,27/11/2023,000009289828534,3.8,WESTGATE OXFORD CAR PA
OXFORDSHIRE CC,CHILDREN'S & EDUCATION,EYNSHAM,CATERING,27/11/2023,000009289828538,13,THE SHAKE LAB OXFORD
OXFORDSHIRE CC,CHILDREN'S & EDUCATION,40 THE MOORS,RESIDENTIAL ACTIVITIES,27/11/2023,000009289828488,49.94,VUE CINEMAS
OXFORDSHIRE CC,CHILDREN'S & EDUCATION,THAME E&A HOME,CATERING PROVISIONS,27/11/2023,000009289827154,24.3,SAINSBURYS SUPERMA
OXFORDSHIRE CC,CHILDREN'S & EDUCATION,"	RESIDENTIAL STRATEGY",DRUGS AND MEDICAL SUPPLIES,27/11/2023,000009289828346,12.95,GARDINERS OPTICIANS
OXFORDSHIRE CC,CHILDREN'S & EDUCATION,"	OCCG GRANT",CATERING PROVISIONS,27/11/2023,000009289828586,6,CO-OPERATIVE FOOD
OXFORDSHIRE CC,CHILDREN'S & EDUCATION,FSP STAFFING � CENTRAL,CATERING PROVISIONS,27/11/2023,000009289827438,8.05,SAINSBURYS S/MKTS
OXFORDSHIRE CC,PUBLIC HEALTH,PUBLIC HEALTH GENERAL,TRAINING RELATED EXPENDITURE,27/11/2023,000009289827612,96,EB  THE NEW SUICIDE PR
OXFORDSHIRE CC,CHILDREN'S & EDUCATION,DIDCOT MOVE-ON HOME,CATERING PROVISIONS,27/11/2023,000009289827462,11.19,SAINSBURYS S/MKTS
OXFORDSHIRE CC,CHILDREN'S & EDUCATION,40 THE MOORS,SUBSCRIPTIONS,27/11/2023,000009289828110,21,BUZZ GYM
OXFORDSHIRE CC,RESOURCES,GREENLOG,IT SOFTWARE,27/11/2023,000009289827260,45,SP PATRICKGOUD
OXFORDSHIRE CC,CHILDREN'S & EDUCATION,"	OCCG GRANT",CATERING,27/11/2023,000009289828704,16.45,LSP MONTYS BURGER BAR
OXFORDSHIRE CC,CHILDREN'S & EDUCATION,UASC POST 18,PAYMENT TO GOVERNMENT DEPARTMENTS,27/11/2023,000009289828168,82,2MAA041634967 TD E-PMT
OXFORDSHIRE CC,ADULTS,CSS WALLINGFORD,CATERING PROVISIONS,27/11/2023,000009289826942,7.15,WAITROSE 675
OXFORDSHIRE CC,CHILDREN'S & EDUCATION,THAME E&A HOME,ENTERTAINMENT EXPENSES,27/11/2023,000009289827658,68,RUSH HIGH WYCOMBE
OXFORDSHIRE CC,CHILDREN'S & EDUCATION,THAME E&A HOME,CATERING PROVISIONS,27/11/2023,000009289827320,15.6,TESCO STORES 2008
OXFORDSHIRE CC,CHILDREN'S & EDUCATION,PAUSE PROGRAMME,CATERING,27/11/2023,000009289828736,9.82,MCDONALDS 8261032
OXFORDSHIRE CC,CHILDREN'S & EDUCATION,40 THE MOORS,STATIONERY,27/11/2023,000009289827360,23.43,AMZNMKTPLACE
OXFORDSHIRE CC,ADULTS,INCOME TEAM,REGISTRATION AND INSPECTION FEES,27/11/2023,000009289827728,1.5,FIND A WILL
OXFORDSHIRE CC,CHILDREN'S & EDUCATION,CHILDREN IN CARE NON-STAFFING - NORTH,IT SOFTWARE,27/11/2023,000009289827388,108,BIG ROCK CLIMBING LTD.
OXFORDSHIRE CC,CHILDREN'S & EDUCATION,"	MARLBOROUGH",MATERIALS,27/11/2023,000009289827384,16.22,AMZNMKTPLACE
OXFORDSHIRE CC,CHILDREN'S & EDUCATION,CHILDREN IN CARE NON-STAFFING - NORTH,PAYMENTS TO TRANSPORT OPERATORS,27/11/2023,000009289827390,60.31,TRAINLINE
OXFORDSHIRE CC,CUSTOMER AND CULTURE,"MARKETING, COMMUNICATIONS & ENGAGEMENT","PUBLICITY, PROMOTIONS AND ADVERTISEMENT",27/11/2023,000009289828118,500,FACEBK  VVYRBW3AZ2
OXFORDSHIRE CC,ADULTS,COUNTY PRINT FINSHRS,MATERIALS,27/11/2023,000009289827110,259.75,AMZNMKTPLACE
OXFORDSHIRE CC,CHILDREN'S & EDUCATION,QUALITY ASSURANCE SOUTH TEAM,HIRE OF ACCOMMODATION AND FACILITIES,27/11/2023,000009289828650,10.2,TRAVELODGE
OXFORDSHIRE CC,CHILDREN'S & EDUCATION,THAME E&A HOME,CATERING PROVISIONS,27/11/2023,000009289827810,14.2,SAINSBURY S S/MKTS
OXFORDSHIRE CC,ADULTS,CSS - BANBURY,ENTERTAINMENT EXPENSES,27/11/2023,000009289828622,204,PAYPAL  TICKLED PIN
OXFORDSHIRE CC,CHILDREN'S & EDUCATION,THAME E&A HOME,MATERIALS,27/11/2023,000009289827808,29.99,ARGOS  AYLESBURY GATEH
OXFORDSHIRE CC,CHILDREN'S & EDUCATION,EYNSHAM,LAUNDRY AND DRY CLEANING,27/11/2023,000009289828332,34,WWW.ARGOS.CO.UK
OXFORDSHIRE CC,SOCIAL AND COMMUNITY SERVICES,CSS - ABINGDON,ENTERTAINMENT EXPENSES,27/11/2023,000009289827042,144,CROCSWORLD  #55284
OXFORDSHIRE CC,CHILDREN'S & EDUCATION,FAMILY SOLUTIONS PLUS NON-STAFF � SOUTH,OTHER TRANSPORT ARRANGEMENTS,27/11/2023,000009289828692,89,STAGECOACH SERVICES
OXFORDSHIRE CC,CHILDREN'S & EDUCATION,EYNSHAM,CATERING PROVISIONS,27/11/2023,000009289827746,68.07,SAINSBURYS S/MKTS
OXFORDSHIRE CC,CHILDREN'S & EDUCATION,EYNSHAM,CATERING PROVISIONS,27/11/2023,000009289827412,14.2,ONE STOP 0974
OXFORDSHIRE CC,ADULTS,CSS WITNEY,MATERIALS,27/11/2023,000009289827990,12.91,AMZNMKTPLACE
OXFORDSHIRE CC,ADULTS,CSS WITNEY,MATERIALS,27/11/2023,000009289827986,53.97,AMZNMKTPLACE
OXFORDSHIRE CC,CHILDREN'S & EDUCATION,THAME E&A HOME,MATERIALS,27/11/2023,000009289827328,7,THEWORKS.CO.UK
OXFORDSHIRE CC,CUSTOMER AND CULTURE,HARD FM,PREMISES REPAIRS,27/11/2023,000009289827078,8.07,WWW.SCREWFIX.COM
OXFORDSHIRE CC,ADULTS,CSS BICESTER,MATERIALS,27/11/2023,000009289827030,42.36,AMZNMKTPLACE
OXFORDSHIRE CC,CHILDREN'S & EDUCATION,THAME E&A HOME,CATERING,27/11/2023,000009289827602,19.68,MCDONALDS
OXFORDSHIRE CC,CHILDREN'S & EDUCATION,"	OCCG GRANT",CATERING PROVISIONS,27/11/2023,000009289827608,21,ASDA STORE 4442
OXFORDSHIRE CC,CUSTOMER AND CULTURE,OXFORDSHIRE MUSEUM,MATERIALS,27/11/2023,000009289827948,11.98,AMZNMKTPLACE
OXFORDSHIRE CC,CUSTOMER AND CULTURE,HARD FM,PREMISES REPAIRS,27/11/2023,000009289827084,8.9,GORING HARDWARE
OXFORDSHIRE CC,CUSTOMER AND CULTURE,CENTRAL LIBRARY,"SUPPLIES, STATIONERY AND MATERIALS",27/11/2023,000009289828232,14.99,AMZNMKTPLACE
OXFORDSHIRE CC,CHILDREN'S & EDUCATION,UASC POST 18,CATERING PROVISIONS,27/11/2023,000009289827420,4,WM MORRISONS STORE
OXFORDSHIRE CC,CHILDREN'S & EDUCATION,THAME E&A HOME,MATERIALS,27/11/2023,000009289827752,52.95,AMZNMKTPLACE
OXFORDSHIRE CC,CHILDREN'S & EDUCATION,THAME E&A HOME,CATERING PROVISIONS,27/11/2023,000009289827584,6,SAINSBURYS S/MKTS
OXFORDSHIRE CC,ADULTS,CSS WALLINGFORD,MATERIALS,27/11/2023,000009289826932,7.79,AMZNMKTPLACE
OXFORDSHIRE CC,CHILDREN'S & EDUCATION,CHILDREN IN CARE NON-STAFFING - CENTRL 1,SUBSCRIPTIONS,27/11/2023,000009289827200,30,FLOS OXFORD
OXFORDSHIRE CC,CHILDREN'S & EDUCATION,THAME E&A HOME,CATERING,27/11/2023,000009289827588,4.55,THAME BP SF CONNECT
OXFORDSHIRE CC,CUSTOMER AND CULTURE,"MARKETING, COMMUNICATIONS & ENGAGEMENT",CATERING,27/11/2023,000009289828128,162.5,SUMUP   CREATIVE CATER
OXFORDSHIRE CC,CUSTOMER AND CULTURE,HOLTON SITE,HARDWARE AND CROCKERY,27/11/2023,000009289827250,38.98,WWW.SCREWFIX.COM
OXFORDSHIRE CC,CUSTOMER AND CULTURE,HOLTON SITE,HARDWARE AND CROCKERY,27/11/2023,000009289827248,19.98,WWW.SCREWFIX.COM
OXFORDSHIRE CC,ADULTS,CSS WALLINGFORD,STATIONERY,27/11/2023,000009289826936,24.63,AMZNMKTPLACE
OXFORDSHIRE CC,CHILDREN'S & EDUCATION,"	MALTFIELD HOUSE",MATERIALS,27/11/2023,000009289828330,199.99,VAX LIMITED
OXFORDSHIRE CC,CHILDREN'S & EDUCATION,THAME E&A HOME,OTHER TRANSPORT ARRANGEMENTS,27/11/2023,000009289827598,1.5,OCC ABBINGDON XY
OXFORDSHIRE CC,CUSTOMER AND CULTURE,WALLINGFORD LIBRARY,"NEWSPAPERS, PERIODICALS AND PUBLICATIONS",27/11/2023,000009289828352,43.42,BRIGHTONS NEWSAGEN
OXFORDSHIRE CC,CHILDREN'S & EDUCATION,"	LOOKED AFTER CITY 2",PAYMENTS TO TRANSPORT OPERATORS,27/11/2023,000009289827194,30.97,TRAINLINE
OXFORDSHIRE CC,CHILDREN'S & EDUCATION,STH EARLY HELP-ABNDN,OTHER EXPENSES,27/11/2023,000009289828574,90,WWW.ARGOS.CO.UK
OXFORDSHIRE CC,SOCIAL AND COMMUNITY SERVICES,CSS - ABINGDON,ENTERTAINMENT EXPENSES,27/11/2023,000009289827044,165,READING ARTS & VENUES
OXFORDSHIRE CC,CHILDREN'S & EDUCATION,"	LEAVING CARE CITY 1",OTHER TRANSPORT ARRANGEMENTS,27/11/2023,000009289827432,3.7,UNION STREET CAR PARK
OXFORDSHIRE CC,CHILDREN'S & EDUCATION,REACTIVE MAINTENANCE,PREMISES REPAIRS,27/11/2023,000009289828600,16.32,BOUCHIER LTD
OXFORDSHIRE CC,CHILDREN'S & EDUCATION,QUALITY ASSURANCE NORTH TEAM,PAYMENTS TO TRANSPORT OPERATORS,27/11/2023,000009289828654,22.61,TRAINLINE
OXFORDSHIRE CC,RESOURCES,INCOME TEAM,PAYMENT TO GOVERNMENT DEPARTMENTS,27/11/2023,000009289827820,115,WWW.MONEYCLAIM.GOV
OXFORDSHIRE CC,CHILDREN'S & EDUCATION,CARE LEAVERS STAFFING,PAYMENT TO GOVERNMENT DEPARTMENTS,27/11/2023,000009289828710,13.95,OXFORDSHIRE CC WEB1
OXFORDSHIRE CC,ENVIRONMENT AND PLACE,NATURAL ENVIRONMENT,PAYMENTS TO VOLUNTARY BODIES,27/11/2023,000009289828558,135,CIEEM.NET
OXFORDSHIRE CC,CHILDREN'S & EDUCATION,CARE LEAVERS STAFFING,PAYMENT TO GOVERNMENT DEPARTMENTS,27/11/2023,000009289828714,13.95,OXFORDSHIRE CC WEB1
OXFORDSHIRE CC,CHILDREN'S & EDUCATION,NTS UASC AGENCY,DRUGS AND MEDICAL SUPPLIES,27/11/2023,000009289828432,32.11,SAVERS HEALTH & BEAUTY
OXFORDSHIRE CC,ENVIRONMENT AND PLACE,TVERC,STATIONERY,27/11/2023,000009289827120,13.93,AMZNMKTPLACE
OXFORDSHIRE CC,RESOURCES,FRONTIER CAV EU PROJECT,CATERING PROVISIONS,27/11/2023,000009289827264,17.25,MARKS&SPENCER PLC
OXFORDSHIRE CC,CHILDREN'S & EDUCATION,EYNSHAM,CATERING PROVISIONS,27/11/2023,000009289827744,26.45,HOME BARGAINS
OXFORDSHIRE CC,CHILDREN'S & EDUCATION,DEPUTY DIRECTOR &MAN,MATERIALS,27/11/2023,000009289828294,25.88,WWW.BLOOMANDWILD.COM
OXFORDSHIRE CC,ENVIRONMENT AND PLACE,TVERC,STATIONERY,27/11/2023,000009289827124,7.92,AMZNMKTPLACE
OXFORDSHIRE CC,CHILDREN'S & EDUCATION,FSP NON-STAFFING - CENTRAL,PAYMENT TO GOVERNMENT DEPARTMENTS,27/11/2023,000009289827150,11,OXFORDSHIRE CC WEB1
OXFORDSHIRE CC,CUSTOMER AND CULTURE,WALLINGFORD LIBRARY,CATERING PROVISIONS,27/11/2023,000009289828356,1.55,WAITROSE 675
OXFORDSHIRE CC,CHILDREN'S & EDUCATION,"	LOOKED AFTER CITY 1",PAYMENTS TO TRANSPORT OPERATORS,27/11/2023,000009289827188,30.87,TRAINLINE
OXFORDSHIRE CC,CUSTOMER AND CULTURE,THAME LIBRARY,"NEWSPAPERS, PERIODICALS AND PUBLICATIONS",27/11/2023,000009289828308,5.6,SAINSBURYS S/MKTS
OXFORDSHIRE CC,CORPORATE CORE,,STATIONERY,27/11/2023,000009289828336,15.94,LYRECO UK LTD
OXFORDSHIRE CC,ADULTS,FIELDWORK UASC,OTHER TRANSPORT ARRANGEMENTS,27/11/2023,000009289827678,54.9,BANBURY STATION T/O
OXFORDSHIRE CC,CUSTOMER AND CULTURE,COMMUNITY PARTNERSHIP TEAM,CATERING PROVISIONS,27/11/2023,000009289827314,25.28,LIDL GB ABINGDON
OXFORDSHIRE CC,CUSTOMER AND CULTURE,COUNTY HALL,PAYMENTS TO TRANSPORT OPERATORS,27/11/2023,000009289828046,5.2,GWR OXFORD SST
OXFORDSHIRE CC,CUSTOMER AND CULTURE,HARD FM,PREMISES REPAIRS,27/11/2023,000009289827090,12.78,TOOLSTATION LTD  BOTLE
OXFORDSHIRE CC,PUBLIC HEALTH,CTRYSIDE OPS STAFF,EQUIPMENT,27/11/2023,000009289827790,141.6,PETER KINCH PLANT LIMI
OXFORDSHIRE CC,CUSTOMER AND CULTURE,HARD FM,PREMISES REPAIRS,27/11/2023,000009289827086,25.35,B AND Q
OXFORDSHIRE CC,CUSTOMER AND CULTURE,BOTLEY LIBRARY,"NEWSPAPERS, PERIODICALS AND PUBLICATIONS",27/11/2023,000009289827130,6.8,MARTIN MCCOLL
OXFORDSHIRE CC,CHILDREN'S & EDUCATION,THAME E&A HOME,CATERING PROVISIONS,27/11/2023,000009289827322,222.75,TESCO STORES 2038
OXFORDSHIRE CC,CHILDREN'S & EDUCATION,EYNSHAM,CATERING,27/11/2023,000009289826982,7.84,TESCO STORES 2008
OXFORDSHIRE CC,ADULTS,CSS - BANBURY,MATERIALS,27/11/2023,000009289828630,-10.89,AMZNMKTPLACE
OXFORDSHIRE CC,CHILDREN'S & EDUCATION,MANAGEMENT RECHARGES,HIRED AND CONTRACTED SERVICES,27/11/2023,000009289827234,8.99,AMZNMKTPLACE
OXFORDSHIRE CC,CHILDREN'S & EDUCATION,MANAGEMENT RECHARGES,HIRED AND CONTRACTED SERVICES,27/11/2023,000009289827232,15.58,AMZNMKTPLACE
OXFORDSHIRE CC,CHILDREN'S & EDUCATION,KINGFISHER,HIRE OF ACCOMMODATION AND FACILITIES,27/11/2023,000009289828674,49,PREMIER INN
OXFORDSHIRE CC,CHILDREN'S & EDUCATION,CEF OUR VISION PROJECT,OTHER TRANSPORT ARRANGEMENTS,27/11/2023,000009289827336,57.8,GOGREENT
OXFORDSHIRE CC,CHILDREN'S & EDUCATION,KINGFISHER,PAYMENTS TO TRANSPORT OPERATORS,27/11/2023,000009289827020,250,TRAINLINE
OXFORDSHIRE CC,ADULTS,CSS - BANBURY,CATERING PROVISIONS,27/11/2023,000009289828618,5.34,NISA LOCAL
OXFORDSHIRE CC,CHILDREN'S & EDUCATION,"	LEAVING CARE SOUTH",CATERING PROVISIONS,27/11/2023,000009289827376,109.66,PAYPAL  ARGOSDIRECT
OXFORDSHIRE CC,CHILDREN'S & EDUCATION,"	LEAVING CARE SOUTH",CATERING PROVISIONS,27/11/2023,000009289827372,701.95,PAYPAL  ARGOSDIRECT
OXFORDSHIRE CC,CHILDREN'S & EDUCATION,THAME E&A HOME,MATERIALS,24/11/2023,000009283127170,58.26,AMZNMKTPLACE
OXFORDSHIRE CC,CUSTOMER AND CULTURE,"MARKETING, COMMUNICATIONS & ENGAGEMENT","PUBLICITY, PROMOTIONS AND ADVERTISEMENT",24/11/2023,000009283127544,15.47,SNAP INC SNAP SNAP ADS
OXFORDSHIRE CC,CUSTOMER AND CULTURE,SAMUELSON HOUSE,CATERING PROVISIONS,24/11/2023,000009283126974,53.55,MILK AND MORE (RECUR
OXFORDSHIRE CC,ADULTS,CSS WITNEY,CATERING PROVISIONS,24/11/2023,000009283127442,35.7,MILK AND MORE (RECUR
OXFORDSHIRE CC,CUSTOMER AND CULTURE,HOLTON SITE,CATERING PROVISIONS,24/11/2023,000009283126862,17.5,MILK AND MORE (RECUR
OXFORDSHIRE CC,ENVIRONMENT AND PLACE,FLEET OPERATIONS,CATERING PROVISIONS,24/11/2023,000009283126992,20,MILK AND MORE (RECUR
OXFORDSHIRE CC,CUSTOMER AND CULTURE,MUSEUMS COLLECTIONS,CATERING PROVISIONS,24/11/2023,000009283127328,4.62,MILK AND MORE (RECUR
OXFORDSHIRE CC,RESOURCES,FRONTIER CAV EU PROJECT,CATERING,24/11/2023,000009283128074,"1,521.54",BROWNS OXFORD
OXFORDSHIRE CC,CHILDREN'S & EDUCATION,40 THE MOORS,POCKET MONEY (PAID TO CHILDREN),24/11/2023,000009283127900,50,SAINSBURYS S/MKTS
OXFORDSHIRE CC,CHILDREN'S & EDUCATION,WITNEY,CATERING PROVISIONS,24/11/2023,000009283127110,4.74,LIDL GB WITNEY
OXFORDSHIRE CC,CHILDREN'S & EDUCATION,DIDCOT MOVE-ON HOME,CATERING PROVISIONS,24/11/2023,000009283127866,8.25,SAINSBURYS S/MKTS
OXFORDSHIRE CC,CHILDREN'S & EDUCATION,DIDCOT MOVE-ON HOME,CATERING PROVISIONS,24/11/2023,000009283127858,19.24,SAINSBURYS S/MKTS
OXFORDSHIRE CC,CUSTOMER AND CULTURE,SCHOOLS FM CATERING AREA 1,MATERIALS,24/11/2023,000009283127090,22.99,AMZNMKTPLACE
OXFORDSHIRE CC,CHILDREN'S & EDUCATION,CHILDREN IN CARE NON-STAFFING - CENTRL 1,MATERIALS,24/11/2023,000009283126842,616.94,WWW.ARGOS.CO.UK
OXFORDSHIRE CC,CUSTOMER AND CULTURE,SCHOOLS FM CATERING AREA 1,MATERIALS,24/11/2023,000009283127100,17.98,AMZNMKTPLACE
OXFORDSHIRE CC,CHILDREN'S & EDUCATION,PAUSE PROGRAMME,CATERING,24/11/2023,000009283128080,5.97,KFC
OXFORDSHIRE CC,RESOURCES,ICT OPERATIONS & MAI,PAYMENTS TO TRANSPORT OPERATORS,24/11/2023,000009283127932,119.4,WWW.GWR.COM
OXFORDSHIRE CC,CUSTOMER AND CULTURE,SCHOOLS FM CATERING AREA 1,MATERIALS,24/11/2023,000009283127094,69.96,AMZNMKTPLACE
OXFORDSHIRE CC,CHILDREN'S & EDUCATION,"	LOOKED AFTER NORTH",VEHICLE FUEL,24/11/2023,000009283127786,25.58,MFG TOLLHOUSE
OXFORDSHIRE CC,CHILDREN'S & EDUCATION,QUALITY ASSURANCE NORTH TEAM,MATERIALS,24/11/2023,000009283127986,39.97,PRESTIG EFLOWERS
OXFORDSHIRE CC,CHILDREN'S & EDUCATION,OTFC TEAM,OTHER TRANSPORT ARRANGEMENTS,24/11/2023,000009283127814,8,APCOA -READING STATION
OXFORDSHIRE CC,CHILDREN'S & EDUCATION,QUALITY ASSURANCE SOUTH TEAM,HIRE OF ACCOMMODATION AND FACILITIES,24/11/2023,000009283127990,47.92,TRAVELODGE
OXFORDSHIRE CC,CHILDREN'S & EDUCATION,OTFC TEAM,CATERING PROVISIONS,24/11/2023,000009283127822,3,SAINSBURYS S/MKTS
OXFORDSHIRE CC,CHILDREN'S & EDUCATION,MANAGEMENT RECHARGES,HIRED AND CONTRACTED SERVICES,24/11/2023,000009283126852,6.99,AMZNMKTPLACE
OXFORDSHIRE CC,CHILDREN'S & EDUCATION,40 THE MOORS,CLEANING MATERIALS,24/11/2023,000009283127898,4.85,SAINSBURYS S/MKTS
OXFORDSHIRE CC,CHILDREN'S & EDUCATION,40 THE MOORS,OTHER EXPENSES,24/11/2023,000009283127896,6.75,SAINSBURYS S/MKTS
OXFORDSHIRE CC,CHILDREN'S & EDUCATION,40 THE MOORS,CATERING,24/11/2023,000009283127894,25.84,SAINSBURYS S/MKTS
OXFORDSHIRE CC,CUSTOMER AND CULTURE,LEARNING & ACCESS,"SUPPLIES, STATIONERY AND MATERIALS",24/11/2023,000009283127370,27.98,WWW.E-BADGES.NET
OXFORDSHIRE CC,CHILDREN'S & EDUCATION,OTFC TEAM,CATERING,24/11/2023,000009283127808,22.75,FIVE GUYS READING
OXFORDSHIRE CC,ENVIRONMENT AND PLACE,PARKING STAFF,MATERIALS,24/11/2023,000009283126820,13.74,AMZNMKTPLACE
OXFORDSHIRE CC,CHILDREN'S & EDUCATION,UASC 16&17,CATERING PROVISIONS,24/11/2023,000009283126802,72,ASDA STORE 4442
OXFORDSHIRE CC,CHILDREN'S & EDUCATION,CARE LEAVERS STAFFING,PAYMENTS TO TRANSPORT OPERATORS,24/11/2023,000009283128062,56.24,TRAINLINE
OXFORDSHIRE CC,CHILDREN'S & EDUCATION,CARE LEAVERS STAFFING,MATERIALS,24/11/2023,000009283128066,20.94,WWW.ARGOS.CO.UK
OXFORDSHIRE CC,CHILDREN'S & EDUCATION,OTFC TEAM,CATERING,24/11/2023,000009283127816,10,ZETTLE_ DING TEA READI
OXFORDSHIRE CC,CHILDREN'S & EDUCATION,"	LEAVING CARE CITY 1",EQUIPMENT,24/11/2023,000009283126808,60,VOUCHER EXPRESS
OXFORDSHIRE CC,CHILDREN'S & EDUCATION,CARE LEAVERS STAFFING,MATERIALS,24/11/2023,000009283128070,283.94,WWW.ARGOS.CO.UK
OXFORDSHIRE CC,CHILDREN'S & EDUCATION,PAUSE PROGRAMME,CATERING,24/11/2023,000009283127174,15,NANDOS OXFORD
OXFORDSHIRE CC,CUSTOMER AND CULTURE,"MARKETING, COMMUNICATIONS & ENGAGEMENT",CATERING PROVISIONS,24/11/2023,000009283127538,31.89,SAINSBURY'S S/MKT
OXFORDSHIRE CC,CHILDREN'S & EDUCATION,"	LEAVING CARE SOUTH",MATERIALS,24/11/2023,000009283127624,275.95,WWW.ARGOS.CO.UK
OXFORDSHIRE CC,CUSTOMER AND CULTURE,ABINGDON LIBRARY,"NEWSPAPERS, PERIODICALS AND PUBLICATIONS",24/11/2023,000009283127612,55.99,GUARDIAN NEWS & MEDIA
OXFORDSHIRE CC,CHILDREN'S & EDUCATION,LEADERSHIP TEAM,HIRE OF ACCOMMODATION AND FACILITIES,24/11/2023,000009283127880,134,BRITANNIA
OXFORDSHIRE CC,CUSTOMER AND CULTURE,HARD FM,PREMISES REPAIRS,24/11/2023,000009283126774,11.67,B & Q 1062
OXFORDSHIRE CC,ADULTS,CSS WITNEY,MATERIALS,24/11/2023,000009283127976,4.5,POUNDLAND LTD - 1912
OXFORDSHIRE CC,CHILDREN'S & EDUCATION,THAME E&A HOME,CATERING PROVISIONS,24/11/2023,000009283126792,3.7,SAINSBURYS S/MKTS
OXFORDSHIRE CC,CHILDREN'S & EDUCATION,HOUSE PROJECT,CATERING,24/11/2023,000009283127768,21.28,BURGER KING
OXFORDSHIRE CC,CUSTOMER AND CULTURE,MUSEUM CAFE,MATERIALS,24/11/2023,000009283127372,338.13,AMZNMKTPLACE
OXFORDSHIRE CC,RESOURCES,EYNSHAM,CATERING PROVISIONS,24/11/2023,000009283128056,21.45,CO-OPERATIVE FOOD
OXFORDSHIRE CC,CHILDREN'S & EDUCATION,"	LEAVING CARE NORTH",PROFESSIONAL SUBSCRIPTIONS,24/11/2023,000009283126926,17.84,ONTOPUP.COM
OXFORDSHIRE CC,ADULTS,CSS WANTAGE,ENTERTAINMENT EXPENSES,24/11/2023,000009283126708,10,OXFORD PLAYHOUSE
OXFORDSHIRE CC,CHILDREN'S & EDUCATION,REACTIVE MAINTENANCE,PREMISES REPAIRS,24/11/2023,000009283127938,39.47,BOUCHIER LTD
OXFORDSHIRE CC,CHILDREN'S & EDUCATION,KINGFISHER,HIRE OF ACCOMMODATION AND FACILITIES,24/11/2023,000009283126758,418.17,TRAVELODGE
OXFORDSHIRE CC,ADULTS,CSS WANTAGE,ENTERTAINMENT EXPENSES,24/11/2023,000009283126742,9.9,WWW.BETTER.ORG.UK
OXFORDSHIRE CC,ADULTS,CSS WANTAGE,SUBSCRIPTIONS,24/11/2023,000009283126748,11.04,HOLLYWOOD BOWL
OXFORDSHIRE CC,CHILDREN'S & EDUCATION,PAUSE PROGRAMME,ENTERTAINMENT EXPENSES,24/11/2023,000009283128084,17.4,EA DIGITICKETS CORAL R
OXFORDSHIRE CC,ADULTS,CSS WANTAGE,SUBSCRIPTIONS,24/11/2023,000009283126744,14.72,HOLLYWOOD BOWL
OXFORDSHIRE CC,CHILDREN'S & EDUCATION,"	LEAVING CARE SOUTH",MATERIALS,24/11/2023,000009283127620,"1,029.95",WWW.ARGOS.CO.UK
OXFORDSHIRE CC,CHILDREN'S & EDUCATION,"	LEAVING CARE NORTH",MATERIALS,24/11/2023,000009283127776,165.89,AMZNMKTPLACE
OXFORDSHIRE CC,CUSTOMER AND CULTURE,KNIGHTS COURT,OTHER PREMISES RELATED COSTS,24/11/2023,000009283127218,39.97,AMZNMKTPLACE
OXFORDSHIRE CC,CHILDREN'S & EDUCATION,KINGFISHER,PAYMENTS TO TRANSPORT OPERATORS,24/11/2023,000009283126754,241.24,TRAINLINE
OXFORDSHIRE CC,CHILDREN'S & EDUCATION,FAMILY SOLUTIONS PLUS NON-STAFF - NORTH,CLIENT LODGINGS AND ACCOMMODATION,24/11/2023,000009283127032,606.26,BKG HOTEL AT BOOKING.C
OXFORDSHIRE CC,ADULTS,CSS WANTAGE,MATERIALS,24/11/2023,000009283127450,29.94,AMZNMKTPLACE
OXFORDSHIRE CC,CUSTOMER AND CULTURE,BICESTER LIBRARY,MATERIALS,24/11/2023,000009283127676,22.42,AMZNMKTPLACE
OXFORDSHIRE CC,CUSTOMER AND CULTURE,BICESTER LIBRARY,CATERING PROVISIONS,24/11/2023,000009283127068,14.07,SAINSBURYS S/MKTS
OXFORDSHIRE CC,CUSTOMER AND CULTURE,HISTORY SERVICE,EQUIPMENT,24/11/2023,000009283127366,57.48,SP CONSERVATION RESO
OXFORDSHIRE CC,CUSTOMER AND CULTURE,MUSEUMS COLLECTIONS,OTHER SERVICES,24/11/2023,000009283127374,5.93,AMZNMKTPLACE
OXFORDSHIRE CC,ADULTS,CSS WANTAGE,MATERIALS,24/11/2023,000009283127446,21.98,AMZNMKTPLACE
OXFORDSHIRE CC,ADULTS,CSS WITNEY,MATERIALS,24/11/2023,000009283127842,141.92,AMZNMKTPLACE
OXFORDSHIRE CC,CUSTOMER AND CULTURE,HARD FM,OTHER TRANSPORT ARRANGEMENTS,24/11/2023,000009283127010,1.8,S OXFORDS PARKING FEE
OXFORDSHIRE CC,ADULTS,CSS - ABINGDON,MATERIALS,24/11/2023,000009283128054,48.5,POUNDLAND LTD - 1366
OXFORDSHIRE CC,CUSTOMER AND CULTURE,BICESTER LIBRARY,MATERIALS,24/11/2023,000009283127668,17.99,AMZNMKTPLACE
OXFORDSHIRE CC,ADULTS,CSS - OXFORD,CATERING PROVISIONS,24/11/2023,000009283126782,68.25,TESCO STORES 2994
OXFORDSHIRE CC,CHILDREN'S & EDUCATION,UASC 16&17,MATERIALS,24/11/2023,000009283126796,229.96,PEDAL POWER CYCLES
OXFORDSHIRE CC,ADULTS,CSS - OXFORD,PAYMENT TO GOVERNMENT DEPARTMENTS,24/11/2023,000009283127314,70,OXFORDSHIRE CC (M)
OXFORDSHIRE CC,CUSTOMER AND CULTURE,BULLINGDON PRISON,"SUPPLIES, STATIONERY AND MATERIALS",24/11/2023,000009283127604,5.99,AMZNMKTPLACE
OXFORDSHIRE CC,ADULTS,CSS - ABINGDON,MATERIALS,24/11/2023,000009283126720,27.5,AMZNMKTPLACE
OXFORDSHIRE CC,ADULTS,CSS WANTAGE,MATERIALS,24/11/2023,000009283128018,41.8,I.S SUNDRIES LTD
OXFORDSHIRE CC,CHILDREN'S & EDUCATION,"	LEAVING CARE NORTH",OTHER TRANSPORT ARRANGEMENTS,24/11/2023,000009283128006,6.95,UBER    TRIP
OXFORDSHIRE CC,CHILDREN'S & EDUCATION,"	RIVERSIDE CENTRE",MATERIALS,24/11/2023,000009283126996,6.8,AMZNMKTPLACE
OXFORDSHIRE CC,ADULTS,CSS - OXFORD,MATERIALS,24/11/2023,000009283126920,64.34,HOME BARGAINS
OXFORDSHIRE CC,CORPORATE CORE,"	MEMBERS SERVICES",PAYMENTS TO TRANSPORT OPERATORS,24/11/2023,000009283126978,51.4,WWW.GWR.COM
OXFORDSHIRE CC,ADULTS,CSS WITNEY,CATERING PROVISIONS,24/11/2023,000009283127982,25.56,LIDL GB WITNEY
OXFORDSHIRE CC,ADULTS,CSS - OXFORD,MATERIALS,24/11/2023,000009283126922,19.25,PETS AT HOME LTD
OXFORDSHIRE CC,CHILDREN'S & EDUCATION,UASC 16&17,OTHER EXPENSES,24/11/2023,000009283127782,53.47,SPORTS DIRECT
OXFORDSHIRE CC,ADULTS,CSS WANTAGE,MATERIALS,24/11/2023,000009283128016,5.28,BARNARDS WAY POST OFFI
OXFORDSHIRE CC,CHILDREN'S & EDUCATION,"	LEAVING CARE NORTH",OTHER TRANSPORT ARRANGEMENTS,24/11/2023,000009283128002,7.92,UBER    TRIP
OXFORDSHIRE CC,RESOURCES,LEGAL SERVICES,LEGAL COSTS,24/11/2023,000009283127362,840,WWW.BWBLLP.COM
OXFORDSHIRE CC,CORPORATE CORE,,STATIONERY,24/11/2023,000009283127740,69.52,LYRECO UK LTD
OXFORDSHIRE CC,CORPORATE CORE,,STATIONERY,24/11/2023,000009283127762,41.3,LYRECO UK LTD
OXFORDSHIRE CC,CORPORATE CORE,,STATIONERY,24/11/2023,000009283127734,9,LYRECO UK LTD
OXFORDSHIRE CC,CORPORATE CORE,,STATIONERY,24/11/2023,000009283127754,61.27,LYRECO UK LTD
OXFORDSHIRE CC,CORPORATE CORE,,STATIONERY,24/11/2023,000009283127738,4.98,LYRECO UK LTD
OXFORDSHIRE CC,CORPORATE CORE,,STATIONERY,24/11/2023,000009283127758,12.19,LYRECO UK LTD
OXFORDSHIRE CC,CORPORATE CORE,,STATIONERY,24/11/2023,000009283127748,32.28,LYRECO UK LTD
OXFORDSHIRE CC,CHILDREN'S & EDUCATION,FAMILY SOLUTIONS PLUS NON-STAFF - NORTH,PAYMENTS TO TRANSPORT OPERATORS,24/11/2023,000009283128020,32.5,TRAINLINE
OXFORDSHIRE CC,CHILDREN'S & EDUCATION,FSP NON-STAFFING - CENTRAL,MATERIALS,24/11/2023,000009283126814,104,WWW.ARGOS.CO.UK
OXFORDSHIRE CC,CUSTOMER AND CULTURE,SCHOOLS FM CATERING AREA 1,CATERING PROVISIONS,24/11/2023,000009283127836,139.34,BOOKER LTD - 38584104
OXFORDSHIRE CC,CHILDREN'S & EDUCATION,CNTL ERLY HELP-BBLEY,CATERING PROVISIONS,24/11/2023,000009283127692,9.78,TESCO STORES 2990
OXFORDSHIRE CC,CUSTOMER AND CULTURE,SCHOOLS FM CATERING AREA 2,OTHER TRANSPORT ARRANGEMENTS,24/11/2023,000009283127206,4.3,RINGGO PARKING
OXFORDSHIRE CC,CUSTOMER AND CULTURE,THAME LIBRARY,"NEWSPAPERS, PERIODICALS AND PUBLICATIONS",24/11/2023,000009283127712,5.6,SAINSBURYS S/MKTS
OXFORDSHIRE CC,CHILDREN'S & EDUCATION,CHILDREN IN CARE NON-STAFFING - NORTH,VEHICLE FUEL,24/11/2023,000009283126936,27.1,MORRISON PETROL
OXFORDSHIRE CC,ENVIRONMENT AND PLACE,NAT TRAILS GENERAL,CATERING PROVISIONS,24/11/2023,000009283127230,5.37,SAINSBURYS S/MKTS
OXFORDSHIRE CC,CUSTOMER AND CULTURE,HISTORY SERVICE,"BOOKS, DVDS AND CDS",24/11/2023,000009283127920,70,LIVERPOOL UNIVERSITY P
OXFORDSHIRE CC,CUSTOMER AND CULTURE,HARD FM,PREMISES REPAIRS,24/11/2023,000009283126768,7.87,JEWSON LTD
OXFORDSHIRE CC,CUSTOMER AND CULTURE,HARD FM,MATERIALS,24/11/2023,000009283127202,45.85,SP COOKER HOOD FILTERS
OXFORDSHIRE CC,CHILDREN'S & EDUCATION,"	LEAVING CARE NORTH",PAYMENTS TO TRANSPORT OPERATORS,24/11/2023,000009283128010,18.55,TRAINLINE
OXFORDSHIRE CC,CHILDREN'S & EDUCATION,THAME E&A HOME,MATERIALS,24/11/2023,000009283127166,36.62,AMZNMKTPLACE
OXFORDSHIRE CC,CHILDREN'S & EDUCATION,"	LEAVING CARE CITY 2",VEHICLE FUEL,24/11/2023,000009283126834,31.58,BP TWYFORD CONNECT
OXFORDSHIRE CC,CUSTOMER AND CULTURE,COMMUNITY PARTNERSHIP TEAM,CATERING PROVISIONS,24/11/2023,000009283126910,19.76,ALDI 99 775
OXFORDSHIRE CC,ENVIRONMENT AND PLACE,PARKING STAFF,MATERIALS,24/11/2023,000009283126826,95.36,AMZNMKTPLACE
OXFORDSHIRE CC,CHILDREN'S & EDUCATION,FSP NON-STAFFING - CENTRAL,HIRE OF ACCOMMODATION AND FACILITIES,24/11/2023,000009283127884,311,PREMIER INN
OXFORDSHIRE CC,CHILDREN'S & EDUCATION,"	LEAVING CARE NORTH",HIRE OF ACCOMMODATION AND FACILITIES,24/11/2023,000009283127772,92.14,PREMIER INN
OXFORDSHIRE CC,CHILDREN'S & EDUCATION,PAUSE PROGRAMME,CATERING PROVISIONS,24/11/2023,000009283127162,8.02,ALDI 10 775
OXFORDSHIRE CC,CHILDREN'S & EDUCATION,WITNEY,CATERING,24/11/2023,000009283127802,26.35,MCDONALDS
OXFORDSHIRE CC,CHILDREN'S & EDUCATION,FAMILY SOLUTIONS PLUS NON-STAFF - NORTH,MATERIALS,24/11/2023,000009283127830,94,THEWORKS.CO.UK
OXFORDSHIRE CC,CHILDREN'S & EDUCATION,"	LEAVING CARE SOUTH",CATERING,24/11/2023,000009283127082,13.51,MCDONALDS
OXFORDSHIRE CC,CHILDREN'S & EDUCATION,FAMILY SOLUTIONS PLUS NON-STAFF - NORTH,MATERIALS,24/11/2023,000009283127824,47,THEWORKS.CO.UK
OXFORDSHIRE CC,CHILDREN'S & EDUCATION,"	LEAVING CARE NORTH",PAYMENTS TO TRANSPORT OPERATORS,23/11/2023,000009280486238,15.29,TRAINLINE
OXFORDSHIRE CC,CUSTOMER AND CULTURE,"MARKETING, COMMUNICATIONS & ENGAGEMENT","PUBLICITY, PROMOTIONS AND ADVERTISEMENT",23/11/2023,000009280485448,15.54,SNAP INC SNAP SNAP ADS
OXFORDSHIRE CC,ADULTS,CSS BICESTER,MATERIALS,23/11/2023,000009280484100,7.99,TESCO SUBSCRIPTION
OXFORDSHIRE CC,CHILDREN'S & EDUCATION,CHILDREN IN CARE NON-STAFFING - NORTH,VEHICLE FUEL,23/11/2023,000009280486134,31.02,EMPIRE PETROLEUM
OXFORDSHIRE CC,CHILDREN'S & EDUCATION,THAME E&A HOME,CATERING PROVISIONS,23/11/2023,000009280484648,16.25,ASDA SUPERSTORE
OXFORDSHIRE CC,CHILDREN'S & EDUCATION,"	LEAVING CARE CITY 1",CLOTHING AND UNIFORMS,23/11/2023,000009280484598,88,JD SPORTS FASHION PLC
OXFORDSHIRE CC,CHILDREN'S & EDUCATION,KINGFISHER,CATERING,23/11/2023,000009280484882,11.95,SQ  RICKS DINER
OXFORDSHIRE CC,CHILDREN'S & EDUCATION,UASC 16&17,CATERING PROVISIONS,23/11/2023,000009280484146,106.7,TESCO STORES 4480
OXFORDSHIRE CC,CHILDREN'S & EDUCATION,THAME E&A HOME,ENTERTAINMENT EXPENSES,23/11/2023,000009280484112,41.9,THAME LEISURE CENTRE
OXFORDSHIRE CC,CHILDREN'S & EDUCATION,UASC 16&17,MATERIALS,23/11/2023,000009280484140,105,SPORTSDIRECT.COM
OXFORDSHIRE CC,CHILDREN'S & EDUCATION,40 THE MOORS,CATERING,23/11/2023,000009280485458,36.4,MNK DELIGHT KEBAB HOUS
OXFORDSHIRE CC,CHILDREN'S & EDUCATION,UASC 16&17,MATERIALS,23/11/2023,000009280484134,100,SPORTSDIRECT.COM
OXFORDSHIRE CC,CHILDREN'S & EDUCATION,UASC 16&17,MATERIALS,23/11/2023,000009280484124,105,SPORTSDIRECT.COM
OXFORDSHIRE CC,CUSTOMER AND CULTURE,COMMUNITY PARTNERSHIP TEAM,MATERIALS,23/11/2023,000009280484410,8.94,AMZNMKTPLACE
OXFORDSHIRE CC,CHILDREN'S & EDUCATION,DIDCOT MOVE-ON HOME,CATERING PROVISIONS,23/11/2023,000009280485848,1.5,SAINSBURYS S/MKTS
OXFORDSHIRE CC,CHILDREN'S & EDUCATION,DIDCOT MOVE-ON HOME,CATERING PROVISIONS,23/11/2023,000009280485844,30.49,SAINSBURYS S/MKTS
OXFORDSHIRE CC,CHILDREN'S & EDUCATION,DIDCOT MOVE-ON HOME,CLEANING MATERIALS,23/11/2023,000009280485836,4,SAINSBURYS S/MKTS
OXFORDSHIRE CC,CHILDREN'S & EDUCATION,THAME E&A HOME,CATERING PROVISIONS,23/11/2023,000009280484654,5.8,SAINSBURYS S/MKTS
OXFORDSHIRE CC,CHILDREN'S & EDUCATION,EYNSHAM,CATERING PROVISIONS,23/11/2023,000009280484546,9.97,SPAR EYNSHAM
OXFORDSHIRE CC,CHILDREN'S & EDUCATION,KINGFISHER,SUBSCRIPTIONS,23/11/2023,000009280484888,12.5,BOX FIT PT
OXFORDSHIRE CC,CUSTOMER AND CULTURE,CH REFURB PROJECT,PURCHASE OF IT EQUIPMENT,23/11/2023,000009280484970,126.22,AMAZON.CO.UK HI4UI0BA4
OXFORDSHIRE CC,RESOURCES,ICT OPERATIONS & MAI,PAYMENTS TO TRANSPORT OPERATORS,23/11/2023,000009280486082,85.3,WWW.GWR.COM
OXFORDSHIRE CC,CHILDREN'S & EDUCATION,EYNSHAM,MATERIALS,23/11/2023,000009280484538,16.98,SPORTSDIRECT.COM
OXFORDSHIRE CC,PUBLIC HEALTH,CHILDREN IN CARE NON-STAFFING - SOUTH,OTHER TRANSPORT ARRANGEMENTS,23/11/2023,000009280483870,10,NEALES TAXIS LTD
OXFORDSHIRE CC,CHILDREN'S & EDUCATION,WITNEY,CATERING PROVISIONS,23/11/2023,000009280485858,19.45,CO-OP GROUP 070582
OXFORDSHIRE CC,CHILDREN'S & EDUCATION,OTFC TEAM,ENTERTAINMENT EXPENSES,23/11/2023,000009280485762,10.85,REDKANGAROO READING
OXFORDSHIRE CC,CUSTOMER AND CULTURE,CENTRAL LIBRARY,HEALTH AND SAFETY EQUIPMENT,23/11/2023,000009280485564,55.94,AMZNMKTPLACE
OXFORDSHIRE CC,CHILDREN'S & EDUCATION,FAMILY SOLUTIONS PLUS NON-STAFF - NORTH,PAYMENTS TO TRANSPORT OPERATORS,23/11/2023,000009280485660,77.94,TRAINLINE
OXFORDSHIRE CC,PUBLIC HEALTH,LEAVING CARE SOUTH,PAYMENTS TO TRANSPORT OPERATORS,23/11/2023,000009280483904,21.49,TRAINLINE
OXFORDSHIRE CC,PUBLIC HEALTH,LEAVING CARE SOUTH,PAYMENTS TO TRANSPORT OPERATORS,23/11/2023,000009280483912,21.49,TRAINLINE
OXFORDSHIRE CC,PUBLIC HEALTH,LEAVING CARE SOUTH,PAYMENTS TO TRANSPORT OPERATORS,23/11/2023,000009280483898,21.49,TRAINLINE
OXFORDSHIRE CC,PUBLIC HEALTH,LEAVING CARE SOUTH,PAYMENTS TO TRANSPORT OPERATORS,23/11/2023,000009280483948,21.49,TRAINLINE
OXFORDSHIRE CC,CHILDREN'S & EDUCATION,NTS UASC AGENCY,MATERIALS,23/11/2023,000009280485948,21.97,AMZNMKTPLACE
OXFORDSHIRE CC,PUBLIC HEALTH,LEAVING CARE SOUTH,PAYMENTS TO TRANSPORT OPERATORS,23/11/2023,000009280483954,21.49,TRAINLINE
OXFORDSHIRE CC,PUBLIC HEALTH,LEAVING CARE SOUTH,PAYMENTS TO TRANSPORT OPERATORS,23/11/2023,000009280483918,21.49,TRAINLINE
OXFORDSHIRE CC,CHILDREN'S & EDUCATION,CHILDREN IN CARE NON-STAFFING - NORTH,OTHER TRANSPORT ARRANGEMENTS,23/11/2023,000009280486128,4.7,RIVERSIDE
OXFORDSHIRE CC,ADULTS,CSS WITNEY,PAYMENTS TO TRANSPORT OPERATORS,23/11/2023,000009280485788,43.2,TRAINLINE
OXFORDSHIRE CC,CHILDREN'S & EDUCATION,FAMILY SOLUTIONS PLUS NON-STAFF - NORTH,PAYMENTS TO TRANSPORT OPERATORS,23/11/2023,000009280486270,32.5,TRAINLINE
OXFORDSHIRE CC,CUSTOMER AND CULTURE,COUNTY HALL,FURNITURE,23/11/2023,000009280485130,148.35,DIRECTSHOP
OXFORDSHIRE CC,CHILDREN'S & EDUCATION,"	LEAVING CARE NORTH",HIRE OF ACCOMMODATION AND FACILITIES,23/11/2023,000009280485728,19.75,COUNTY ARMS
OXFORDSHIRE CC,ADULTS,ADULTS AT RISK,HIRE OF ACCOMMODATION AND FACILITIES,23/11/2023,000009280484900,511,ATHENA OXFORD LTD
OXFORDSHIRE CC,ADULTS,ADULTS AT RISK,HIRE OF ACCOMMODATION AND FACILITIES,23/11/2023,000009280484896,511,ATHENA OXFORD LTD
OXFORDSHIRE CC,CHILDREN'S & EDUCATION,"	RIVERSIDE CENTRE",MATERIALS,23/11/2023,000009280484610,19.98,AMZNMKTPLACE
OXFORDSHIRE CC,ADULTS,CSS BICESTER,MATERIALS,23/11/2023,000009280484274,4.95,AMZNMKTPLACE
OXFORDSHIRE CC,ENVIRONMENT AND PLACE,PARKING STAFF,MATERIALS,23/11/2023,000009280484220,199.6,AMZNMKTPLACE
OXFORDSHIRE CC,PUBLIC HEALTH,LEAVING CARE SOUTH,PAYMENTS TO TRANSPORT OPERATORS,23/11/2023,000009280483892,21.49,TRAINLINE
OXFORDSHIRE CC,PUBLIC HEALTH,LEAVING CARE SOUTH,PAYMENTS TO TRANSPORT OPERATORS,23/11/2023,000009280483940,21.49,TRAINLINE
OXFORDSHIRE CC,CUSTOMER AND CULTURE,REACTIVE MAINTENANCE,PREMISES REPAIRS,23/11/2023,000009280484948,74.2,EBAY O 08-10825-82370
OXFORDSHIRE CC,PUBLIC HEALTH,LEAVING CARE SOUTH,PAYMENTS TO TRANSPORT OPERATORS,23/11/2023,000009280483926,21.49,TRAINLINE
OXFORDSHIRE CC,PUBLIC HEALTH,LEAVING CARE SOUTH,PAYMENTS TO TRANSPORT OPERATORS,23/11/2023,000009280483932,21.49,TRAINLINE
OXFORDSHIRE CC,CHILDREN'S & EDUCATION,PAUSE PROGRAMME,CATERING,23/11/2023,000009280486380,4.5,ZETTLE_ LA BAGUETTE LT
OXFORDSHIRE CC,CHILDREN'S & EDUCATION,QUALITY ASSURANCE NORTH TEAM,PAYMENTS TO TRANSPORT OPERATORS,23/11/2023,000009280486216,22.61,TRAINLINE
OXFORDSHIRE CC,CHILDREN'S & EDUCATION,THAME E&A HOME,HARDWARE AND CROCKERY,23/11/2023,000009280486146,40.5,WICKES BICESTER
OXFORDSHIRE CC,PUBLIC HEALTH,LEAVING CARE CITY 2,OTHER EXPENSES,23/11/2023,000009280483866,196.99,AMAZON.CO.UK HI4Q31HK4
OXFORDSHIRE CC,ADULTS,CSS WITNEY,MATERIALS,23/11/2023,000009280485808,5.99,WITNEY SPORTS DIRECT
OXFORDSHIRE CC,CHILDREN'S & EDUCATION,HOUSE PROJECT,MATERIALS,23/11/2023,000009280485652,9.65,TIMPSON LTD
OXFORDSHIRE CC,CHILDREN'S & EDUCATION,BANBURY CC,MATERIALS,23/11/2023,000009280484172,163.13,SETON
OXFORDSHIRE CC,CHILDREN'S & EDUCATION,"	LEAVING CARE NORTH",MATERIALS,23/11/2023,000009280484930,100,VOUCHER EXPRESS
OXFORDSHIRE CC,ADULTS,CSS WITNEY,PAYMENTS TO VOLUNTARY BODIES,23/11/2023,000009280485814,3.99,OXFAM F3732
OXFORDSHIRE CC,ADULTS,CSS - ABINGDON,OTHER TRANSPORT ARRANGEMENTS,23/11/2023,000009280486154,4.8,WESTGATE OXFORD CAR PA
OXFORDSHIRE CC,ADULTS,CSS WITNEY,MATERIALS,23/11/2023,000009280485824,5,POUNDLAND LTD - 1912
OXFORDSHIRE CC,CHILDREN'S & EDUCATION,"	MARLBOROUGH",MATERIALS,23/11/2023,000009280484508,14.98,AMZNMKTPLACE
OXFORDSHIRE CC,CUSTOMER AND CULTURE,SCHOOLS FM CATERING AREA 2,CATERING PROVISIONS,23/11/2023,000009280484940,16.1,TESCO STORES 2994
OXFORDSHIRE CC,ENVIRONMENT AND PLACE,PARKING STAFF,MATERIALS,23/11/2023,000009280484214,24,POST OFFICE COUNTER
OXFORDSHIRE CC,CHILDREN'S & EDUCATION,PAUSE PROGRAMME,OTHER TRANSPORT ARRANGEMENTS,23/11/2023,000009280486368,1.5,VALE OF WH PARKING FEE
OXFORDSHIRE CC,CHILDREN'S & EDUCATION,CARE LEAVERS STAFFING,MATERIALS,23/11/2023,000009280486318,21.95,WWW.ARGOS.CO.UK
OXFORDSHIRE CC,CUSTOMER AND CULTURE,OPERATIONS,MATERIALS,23/11/2023,000009280485106,24.2,AMZNMKTPLACE
OXFORDSHIRE CC,CHILDREN'S & EDUCATION,CARE LEAVERS STAFFING,MATERIALS,23/11/2023,000009280486310,9.99,AMZNMKTPLACE
OXFORDSHIRE CC,PUBLIC HEALTH,LEAVING CARE NORTH,OTHER EXPENSES,23/11/2023,000009280483880,249.96,AMZNMKTPLACE
OXFORDSHIRE CC,ADULTS,CSS WITNEY,CATERING PROVISIONS,23/11/2023,000009280485038,31.45,HOME BARGAINS
OXFORDSHIRE CC,CHILDREN'S & EDUCATION,VIRTUAL SCHOOL POST 16 PPP,"BOOKS, DVDS AND CDS",23/11/2023,000009280484848,100,SQ  OFFICE OF CARE LEA
OXFORDSHIRE CC,CUSTOMER AND CULTURE,HARD FM,PREMISES REPAIRS,23/11/2023,000009280484036,124.69,7064 SIG DISTRIBUTION
OXFORDSHIRE CC,CHILDREN'S & EDUCATION,EYNSHAM,FURNITURE,23/11/2023,000009280483970,24.99,AMZNMKTPLACE
OXFORDSHIRE CC,CHILDREN'S & EDUCATION,CARE LEAVERS STAFFING,FURNITURE,23/11/2023,000009280486306,23.95,DUNELM SOFTFURNISHINGS
OXFORDSHIRE CC,CHILDREN'S & EDUCATION,CHILDREN IN CARE NON-STAFFING - CENTRL 2,PAYMENT TO GOVERNMENT DEPARTMENTS,23/11/2023,000009280484244,14,GEN REGISTER OFFICE
OXFORDSHIRE CC,ADULTS,CSS WALLINGFORD,CATERING PROVISIONS,23/11/2023,000009280483860,5,WAITROSE 675
OXFORDSHIRE CC,ADULTS,CSS WALLINGFORD,CATERING PROVISIONS,23/11/2023,000009280483852,12.2,WAITROSE 675
OXFORDSHIRE CC,CHILDREN'S & EDUCATION,OTFC TEAM,CATERING PROVISIONS,23/11/2023,000009280485768,2.3,SAINSBURYS
OXFORDSHIRE CC,CUSTOMER AND CULTURE,HARD FM,PREMISES REPAIRS,23/11/2023,000009280484014,17.99,WWW.SCREWFIX.COM
OXFORDSHIRE CC,CHILDREN'S & EDUCATION,NTS UASC AGENCY,MATERIALS,23/11/2023,000009280485956,123.4,AMZNMKTPLACE
OXFORDSHIRE CC,CHILDREN'S & EDUCATION,EYNSHAM,FURNITURE,23/11/2023,000009280483978,17.98,AMZNMKTPLACE
OXFORDSHIRE CC,CUSTOMER AND CULTURE,"MARKETING, COMMUNICATIONS & ENGAGEMENT",PAYMENTS TO TRANSPORT OPERATORS,23/11/2023,000009280485430,56.44,TRAINLINE
OXFORDSHIRE CC,CHILDREN'S & EDUCATION,THAME E&A HOME,CATERING PROVISIONS,23/11/2023,000009280484776,19.8,SAINSBURYS S/MKTS
OXFORDSHIRE CC,ADULTS,ECH CENTRAL COSTS,MATERIALS,23/11/2023,000009280484566,14.95,WWW.ARGOS.CO.UK
OXFORDSHIRE CC,CHILDREN'S & EDUCATION,PAUSE PROGRAMME,CATERING,23/11/2023,000009280486362,4.5,WRAP N SHAKE
OXFORDSHIRE CC,CHILDREN'S & EDUCATION,40 THE MOORS,CATERING PROVISIONS,23/11/2023,000009280484472,3.1,CO-OPERATIVE FOOD
OXFORDSHIRE CC,ADULTS,CSS WITNEY,CATERING PROVISIONS,23/11/2023,000009280485816,5,B&M 515 - ABINGDON
OXFORDSHIRE CC,CHILDREN'S & EDUCATION,"BICESTER CC, LAUNTON RD",PAYMENTS TO VOLUNTARY BODIES,23/11/2023,000009280485774,38,BLUE CROSS
OXFORDSHIRE CC,CHILDREN'S & EDUCATION,STH EARLY HELP-DDCOT,CATERING PROVISIONS,23/11/2023,000009280484618,15.72,TESCO STORES 4377
OXFORDSHIRE CC,CUSTOMER AND CULTURE,KNIGHTS COURT,OTHER PREMISES RELATED COSTS,23/11/2023,000009280484958,39.97,AMZNMKTPLACE
OXFORDSHIRE CC,CHILDREN'S & EDUCATION,"	DISABILITIES TEAM-C",DOMESTIC SUPPLIES,23/11/2023,000009280485670,344,AO RETAIL LIMITED
OXFORDSHIRE CC,CHILDREN'S & EDUCATION,EYNSHAM,FURNITURE,23/11/2023,000009280483962,20.07,AMZNMKTPLACE
OXFORDSHIRE CC,RESOURCES,ICT OPERATIONS & MAI,PURCHASE OF IT EQUIPMENT,23/11/2023,000009280486110,265.5,AMAZON.CO.UK HI76466V4
OXFORDSHIRE CC,RESOURCES,ICT OPERATIONS & MAI,PURCHASE OF IT EQUIPMENT,23/11/2023,000009280486074,354,AMAZON.CO.UK HI4GW78A4
OXFORDSHIRE CC,CUSTOMER AND CULTURE,HARD FM,PREMISES REPAIRS,23/11/2023,000009280484032,9.76,AGHOCO 2231 LTD
OXFORDSHIRE CC,RESOURCES,ICT OPERATIONS & MAI,PURCHASE OF IT EQUIPMENT,23/11/2023,000009280486072,354,AMAZON.CO.UK HI3MU98D4
OXFORDSHIRE CC,CUSTOMER AND CULTURE,"MARKETING, COMMUNICATIONS & ENGAGEMENT",STAFF SUBSISTENCE,23/11/2023,000009280485438,72,UNAWARDS TICKETS
OXFORDSHIRE CC,RESOURCES,ICT OPERATIONS & MAI,PURCHASE OF IT EQUIPMENT,23/11/2023,000009280486100,265.5,AMAZON.CO.UK HI26G76B4
OXFORDSHIRE CC,RESOURCES,ICT OPERATIONS & MAI,PURCHASE OF IT EQUIPMENT,23/11/2023,000009280486092,265.5,AMAZON.CO.UK HI1ZN0634
OXFORDSHIRE CC,ADULTS,CSS - ABINGDON,"SUPPLIES, STATIONERY AND MATERIALS",23/11/2023,000009280483990,44.89,VISTAPRINT
OXFORDSHIRE CC,RESOURCES,ICT OPERATIONS & MAI,PURCHASE OF IT EQUIPMENT,23/11/2023,000009280486114,265.5,AMAZON.CO.UK HI9WH36Q4
OXFORDSHIRE CC,CHILDREN'S & EDUCATION,"BICESTER CC, LAUNTON RD",PAYMENTS TO VOLUNTARY BODIES,23/11/2023,000009280485784,10.8,BRITISH HEART FOUNDATI
OXFORDSHIRE CC,PUBLIC HEALTH,CHILDREN IN CARE NON-STAFFING - SOUTH,OTHER TRANSPORT ARRANGEMENTS,23/11/2023,000009280483886,17.92,TRAINLINE
OXFORDSHIRE CC,CHILDREN'S & EDUCATION,WITNEY,CATERING PROVISIONS,23/11/2023,000009280484820,34.14,LIDL GB WITNEY
OXFORDSHIRE CC,CHILDREN'S & EDUCATION,CHILDREN IN CARE NON-STAFFING - CENTRL 1,SUBSCRIPTIONS,23/11/2023,000009280484252,36.53,HOLLYWOOD BOWL
OXFORDSHIRE CC,CHILDREN'S & EDUCATION,PAUSE PROGRAMME,ENTERTAINMENT EXPENSES,23/11/2023,000009280484872,13,RUGRATS AND HALFPINTS
OXFORDSHIRE CC,CHILDREN'S & EDUCATION,"	LEAVING CARE CITY 2",PAYMENTS TO TRANSPORT OPERATORS,23/11/2023,000009280484918,83.5,BKG HOTEL AT BOOKING.C
OXFORDSHIRE CC,ADULTS,CSS WITNEY,CATERING PROVISIONS,23/11/2023,000009280485826,98.2,LIDL GB WITNEY
OXFORDSHIRE CC,CHILDREN'S & EDUCATION,HOUSE PROJECT,PAYMENT TO GOVERNMENT DEPARTMENTS,23/11/2023,000009280484158,341,WWW.OXFORD.GOV.UK
OXFORDSHIRE CC,CUSTOMER AND CULTURE,HARD FM,PREMISES REPAIRS,23/11/2023,000009280484022,53.39,AGHOCO 2231 LTD
OXFORDSHIRE CC,CHILDREN'S & EDUCATION,"DIDCOT CC, PARK ROAD",CATERING PROVISIONS,23/11/2023,000009280484850,9.5,CO-OPERATIVE FUEL
OXFORDSHIRE CC,CUSTOMER AND CULTURE,HARD FM,PREMISES REPAIRS,23/11/2023,000009280484042,20,HOMEBASE LTD 091
OXFORDSHIRE CC,CHILDREN'S & EDUCATION,FSP NON-STAFFING - CENTRAL,PAYMENTS TO TRANSPORT OPERATORS,23/11/2023,000009280485910,35.2,WWW.GWR.COM
OXFORDSHIRE CC,CHILDREN'S & EDUCATION,FSP NON-STAFFING - CENTRAL,PAYMENTS TO TRANSPORT OPERATORS,23/11/2023,000009280485904,35.2,WWW.GWR.COM
OXFORDSHIRE CC,CHILDREN'S & EDUCATION,FSP NON-STAFFING - CENTRAL,PAYMENTS TO TRANSPORT OPERATORS,23/11/2023,000009280485900,35.2,WWW.GWR.COM
OXFORDSHIRE CC,CHILDREN'S & EDUCATION,FSP NON-STAFFING - CENTRAL,PAYMENTS TO TRANSPORT OPERATORS,23/11/2023,000009280485894,35.2,WWW.GWR.COM
OXFORDSHIRE CC,PUBLIC HEALTH,CHILDREN IN CARE NON-STAFFING - SOUTH,OTHER EXPENSES,23/11/2023,000009280483878,100,ASDA STORES LTD
OXFORDSHIRE CC,CHILDREN'S & EDUCATION,FSP NON-STAFFING - CENTRAL,PAYMENTS TO TRANSPORT OPERATORS,23/11/2023,000009280485886,35.2,WWW.GWR.COM
OXFORDSHIRE CC,ADULTS,PAUSE PROGRAMME,CATERING PROVISIONS,23/11/2023,000009280484530,5.39,B&M 515 - ABINGDON
OXFORDSHIRE CC,CORPORATE CORE,,STATIONERY,23/11/2023,000009280485636,216.79,LYRECO UK LTD
OXFORDSHIRE CC,CORPORATE CORE,,STATIONERY,23/11/2023,000009280485630,15.94,LYRECO UK LTD
OXFORDSHIRE CC,CORPORATE CORE,,STATIONERY,23/11/2023,000009280485622,111.1,LYRECO UK LTD
OXFORDSHIRE CC,CUSTOMER AND CULTURE,DEPARTMENTAL MANAGE,PAYMENTS TO TRANSPORT OPERATORS,23/11/2023,000009280485970,12.22,TRAINLINE
OXFORDSHIRE CC,CHILDREN'S & EDUCATION,FAMILY SOLUTIONS PLUS NON-STAFF - NORTH,CATERING PROVISIONS,23/11/2023,000009280486262,6.5,ICELAND
OXFORDSHIRE CC,CUSTOMER AND CULTURE,SCHOOLS FM CATERING AREA 4,CATERING PROVISIONS,23/11/2023,000009280484806,25.1,SAINSBURYS S/MKTS
OXFORDSHIRE CC,RESOURCES,CORPORATE FINANCE,PAYMENTS TO TRANSPORT OPERATORS,23/11/2023,000009280484732,20.3,WWW.GWR.COM
OXFORDSHIRE CC,CUSTOMER AND CULTURE,OPERATIONS,MATERIALS,23/11/2023,000009280485094,3.99,AMZNMKTPLACE
OXFORDSHIRE CC,RESOURCES,SCHOOLS FM CATERING AREA 2,CATERING PROVISIONS,23/11/2023,000009280485696,18.2,TESCO STORES 2008
OXFORDSHIRE CC,CUSTOMER AND CULTURE,HARD FM,PREMISES REPAIRS,23/11/2023,000009280484050,236.18,AGHOCO 2231 LTD
OXFORDSHIRE CC,CHILDREN'S & EDUCATION,"	PARENT PARTNERSHIP",MATERIALS,23/11/2023,000009280485396,14.76,AMZNMKTPLACE
OXFORDSHIRE CC,CHILDREN'S & EDUCATION,UASC 16&17,RESIDENTIAL ACTIVITIES,23/11/2023,000009280484706,22.99,THE GYM GROUP
OXFORDSHIRE CC,ENVIRONMENT AND PLACE,NAT TRAILS GENERAL,CATERING PROVISIONS,23/11/2023,000009280484966,1,CO OPERATIVE FOOD
OXFORDSHIRE CC,CHILDREN'S & EDUCATION,PAUSE PROGRAMME,MATERIALS,23/11/2023,000009280486354,1,POUNDLAND LTD - 1366
OXFORDSHIRE CC,CHILDREN'S & EDUCATION,"	LEAVING CARE NORTH",HIRE OF ACCOMMODATION AND FACILITIES,23/11/2023,000009280485720,85,COUNTY ARMS
OXFORDSHIRE CC,CHILDREN'S & EDUCATION,THAME E&A HOME,CATERING PROVISIONS,23/11/2023,000009280484422,9.2,THAME BP SF CONNECT
OXFORDSHIRE CC,ADULTS,CSS BICESTER,MATERIALS,23/11/2023,000009280484280,38.3,AMZNMKTPLACE
OXFORDSHIRE CC,CHILDREN'S & EDUCATION,"	LEAVING CARE NORTH",FURNITURE,23/11/2023,000009280484434,8.89,AMZNMKTPLACE
OXFORDSHIRE CC,CHILDREN'S & EDUCATION,"	LEAVING CARE SOUTH",CATERING,23/11/2023,000009280485578,15.72,MCDONALDS
OXFORDSHIRE CC,CHILDREN'S & EDUCATION,PAUSE PROGRAMME,MATERIALS,23/11/2023,000009280484908,8.5,THEWORKS.CO.UK
OXFORDSHIRE CC,ADULTS,CSS - ABINGDON,VEHICLE FUEL,23/11/2023,000009280486296,13.98,VINEYARD SERVICE STATI
OXFORDSHIRE CC,CHILDREN'S & EDUCATION,QUALITY ASSURANCE SOUTH TEAM,HIRE OF ACCOMMODATION AND FACILITIES,23/11/2023,000009280486208,47,PREMIER INN
OXFORDSHIRE CC,ADULTS,CSS - BANBURY,MATERIALS,22/11/2023,000009275706396,8.9,AMZNMKTPLACE
OXFORDSHIRE CC,CUSTOMER AND CULTURE,"MARKETING, COMMUNICATIONS & ENGAGEMENT","PUBLICITY, PROMOTIONS AND ADVERTISEMENT",22/11/2023,000009275705184,15.5,SNAP INC SNAP SNAP ADS
OXFORDSHIRE CC,CUSTOMER AND CULTURE,SCHOOLS FM CATERING AREA 1,MATERIALS,22/11/2023,000009275705848,27.96,AMZNMKTPLACE
OXFORDSHIRE CC,CUSTOMER AND CULTURE,SCHOOLS FM CATERING AREA 1,MATERIALS,22/11/2023,000009275705838,71.97,AMZNMKTPLACE
OXFORDSHIRE CC,CHILDREN'S & EDUCATION,OTFC TEAM,ENTERTAINMENT EXPENSES,22/11/2023,000009275705810,25.9,REDKANGAROO READING
OXFORDSHIRE CC,ADULTS,CSS - BANBURY,MATERIALS,22/11/2023,000009275706390,11.35,AMZNMKTPLACE
OXFORDSHIRE CC,CHILDREN'S & EDUCATION,DIDCOT MOVE-ON HOME,CATERING PROVISIONS,22/11/2023,000009275705902,24.59,SAINSBURYS S/MKTS
OXFORDSHIRE CC,CHILDREN'S & EDUCATION,DIDCOT MOVE-ON HOME,CATERING PROVISIONS,22/11/2023,000009275705896,5.2,SAINSBURYS S/MKTS
OXFORDSHIRE CC,CHILDREN'S & EDUCATION,40 THE MOORS,OTHER EXPENSES,22/11/2023,000009275706048,4.5,SAINSBURYS S/MKTS
OXFORDSHIRE CC,CHILDREN'S & EDUCATION,OTFC TEAM,CATERING,22/11/2023,000009275705816,29.69,PRET A MANGER
OXFORDSHIRE CC,CUSTOMER AND CULTURE,OPERATIONS,"SUPPLIES, STATIONERY AND MATERIALS",22/11/2023,000009275705306,9.39,AMZNMKTPLACE
OXFORDSHIRE CC,CHILDREN'S & EDUCATION,EYNSHAM,DRUGS AND MEDICAL SUPPLIES,22/11/2023,000009275703284,10.98,ALLIED PHARMACY - EYNS
OXFORDSHIRE CC,CUSTOMER AND CULTURE,MUSEUMS COLLECTIONS,OTHER SERVICES,22/11/2023,000009275704864,7.79,AMZNMKTPLACE
OXFORDSHIRE CC,CHILDREN'S & EDUCATION,EYNSHAM,CATERING,22/11/2023,000009275703276,4.9,TESCO PFS 2488
OXFORDSHIRE CC,ADULTS,CSS - BANBURY,FURNITURE,22/11/2023,000009275706344,359.5,IKEA LTD SHOP ONLINE
OXFORDSHIRE CC,ADULTS,CSS WANTAGE,VEHICLE EQUIPMENT AND EXPENSES - OTHER,22/11/2023,000009275704986,16.99,AMZNMKTPLACE
OXFORDSHIRE CC,CHILDREN'S & EDUCATION,"	LEAVING CARE NORTH",CATERING PROVISIONS,22/11/2023,000009275703702,50,TESCO GIFT CARD
OXFORDSHIRE CC,RESOURCES,CORPORATE FINANCE,PAYMENTS TO TRANSPORT OPERATORS,22/11/2023,000009275704160,20.3,WWW.GWR.COM
OXFORDSHIRE CC,CHILDREN'S & EDUCATION,REACTIVE MAINTENANCE,PREMISES REPAIRS,22/11/2023,000009275706276,22,WICKES BICESTER
OXFORDSHIRE CC,ENVIRONMENT AND PLACE,PARKING STAFF,MATERIALS,22/11/2023,000009275703510,3.99,AMZNMKTPLACE
OXFORDSHIRE CC,CUSTOMER AND CULTURE,LIB ICT SUPPRT&MAINT,PURCHASE OF IT EQUIPMENT,22/11/2023,000009275704492,126.22,AMAZON.CO.UK HI4K44VY4
OXFORDSHIRE CC,CHILDREN'S & EDUCATION,UASC 16&17,OTHER TRANSPORT ARRANGEMENTS,22/11/2023,000009275704078,25.77,TRAINLINE
OXFORDSHIRE CC,CHILDREN'S & EDUCATION,THAME E&A HOME,CATERING PROVISIONS,22/11/2023,000009275704362,2.3,SAINSBURYS S/MKTS
OXFORDSHIRE CC,RESOURCES,EYNSHAM,CATERING PROVISIONS,22/11/2023,000009275706854,7.16,WAITROSE 142
OXFORDSHIRE CC,CHILDREN'S & EDUCATION,THAME E&A HOME,MATERIALS,22/11/2023,000009275704352,7.35,"BOOTS,THAME"
OXFORDSHIRE CC,CHILDREN'S & EDUCATION,ATV ADOPTION WOODLEY,POSTAGE AND DELIVERY,22/11/2023,000009275703242,7.4,POST OFFICE COUNTER
OXFORDSHIRE CC,CHILDREN'S & EDUCATION,"	LEAVING CARE CITY 2",PAYMENTS TO TRANSPORT OPERATORS,22/11/2023,000009275706470,50,OXFORD BUS CO
OXFORDSHIRE CC,ADULTS,LEADERSHIP TEAM,PAYMENTS TO TRANSPORT OPERATORS,22/11/2023,000009275705924,63.07,TRAINLINE
OXFORDSHIRE CC,CUSTOMER AND CULTURE,CENTRAL LIBRARY,MATERIALS,22/11/2023,000009275704848,3.5,EXTRA
OXFORDSHIRE CC,CHILDREN'S & EDUCATION,EYNSHAM,CATERING PROVISIONS,22/11/2023,000009275703872,2,TESCO STORES 2008
OXFORDSHIRE CC,ADULTS,CSS WITNEY,MATERIALS,22/11/2023,000009275705876,31.5,POUNDLAND LTD - 1912
OXFORDSHIRE CC,CHILDREN'S & EDUCATION,"	LEAVING CARE NORTH",CATERING,22/11/2023,000009275705662,11.48,KFC-BANBURY
OXFORDSHIRE CC,CHILDREN'S & EDUCATION,REACTIVE MAINTENANCE,PREMISES REPAIRS,22/11/2023,000009275706270,48,BOUCHIER LTD
OXFORDSHIRE CC,ADULTS,CSS - ABINGDON,CATERING PROVISIONS,22/11/2023,000009275703324,72.01,TESCO STORES 2008
OXFORDSHIRE CC,RESOURCES,SKILLS & LEARNING,"SUPPLIES, STATIONERY AND MATERIALS",22/11/2023,000009275704746,"2,700.00",ONE4ALL
OXFORDSHIRE CC,PUBLIC HEALTH,TRANSPORT COSTS,TRANSPORT TO SCHOOL,22/11/2023,000009275703230,24.5,OXFORDBUS.CO.UK
OXFORDSHIRE CC,"COMMUNICATIONS, STRATEGY AND INSIGHT",STRAT&COMMS TRAINING,TRAINING RELATED EXPENDITURE,22/11/2023,000009275705976,10,COSTA COFFEE 43010835
OXFORDSHIRE CC,"COMMUNICATIONS, STRATEGY AND INSIGHT",STRAT&COMMS TRAINING,CATERING,22/11/2023,000009275705972,10,COSTA COFFEE 43010835
OXFORDSHIRE CC,"COMMUNICATIONS, STRATEGY AND INSIGHT",STRAT&COMMS TRAINING,TRAINING RELATED EXPENDITURE,22/11/2023,000009275705962,10,COSTA COFFEE 43010835
OXFORDSHIRE CC,ADULTS,CSS WANTAGE,CATERING PROVISIONS,22/11/2023,000009275703344,22.45,HOME BARGAINS
OXFORDSHIRE CC,PUBLIC HEALTH,TRANSPORT COSTS,TRANSPORT TO SCHOOL,22/11/2023,000009275703216,24.5,OXFORDBUS.CO.UK
OXFORDSHIRE CC,CUSTOMER AND CULTURE,MUSEUMS COLLECTIONS,EQUIPMENT,22/11/2023,000009275706660,34.39,ELESA (UK) LTD
OXFORDSHIRE CC,CHILDREN'S & EDUCATION,THAME E&A HOME,CATERING PROVISIONS,22/11/2023,000009275703672,13.75,TESCO STORES 4480
OXFORDSHIRE CC,RESOURCES,GREENLOG,CATERING,22/11/2023,000009275706894,256.8,ZETTLE_ ART CAFE
OXFORDSHIRE CC,RESOURCES,FRONTIER CAV EU PROJECT,CATERING,22/11/2023,000009275706904,709.2,ZETTLE_ ART CAFE
OXFORDSHIRE CC,CUSTOMER AND CULTURE,MUSEUMS COLLECTIONS,MATERIALS,22/11/2023,000009275706670,14.39,SIMPLY BEARINGS
OXFORDSHIRE CC,CHILDREN'S & EDUCATION,"	LEAVING CARE NORTH",OTHER TRANSPORT ARRANGEMENTS,22/11/2023,000009275703832,6.2,UNION STREET CAR PARK
OXFORDSHIRE CC,CUSTOMER AND CULTURE,COMMUNITY PARTNERSHIP TEAM,MATERIALS,22/11/2023,000009275703654,3.83,AMZNMKTPLACE
OXFORDSHIRE CC,ADULTS,CSS - BANBURY,CATERING PROVISIONS,22/11/2023,000009275706354,22.5,TESCO STORES 2064
OXFORDSHIRE CC,ADULTS,CSS - BANBURY,ENTERTAINMENT EXPENSES,22/11/2023,000009275706632,13,SPICEBALL LEISURE CENT
OXFORDSHIRE CC,CHILDREN'S & EDUCATION,CHILDREN IN CARE NON-STAFFING - NORTH,OTHER TRANSPORT ARRANGEMENTS,22/11/2023,000009275703434,115.44,TRAINLINE
OXFORDSHIRE CC,ADULTS,CSS - ABINGDON,MATERIALS,22/11/2023,000009275703306,19.45,AMZNMKTPLACE
OXFORDSHIRE CC,CUSTOMER AND CULTURE,HEADINGTON LIBRARY,POSTAGE AND DELIVERY,22/11/2023,000009275704602,2.75,POST OFFICE COUNTER
OXFORDSHIRE CC,CHILDREN'S & EDUCATION,PAUSE PROGRAMME,CATERING,22/11/2023,000009275704376,13,BOSWELLS COFFEE COMPAN
OXFORDSHIRE CC,CUSTOMER AND CULTURE,COMMUNITY PARTNERSHIP TEAM,MATERIALS,22/11/2023,000009275703646,4.5,AMZNMKTPLACE
OXFORDSHIRE CC,ADULTS,CSS WITNEY,CATERING PROVISIONS,22/11/2023,000009275706416,11.62,HOME BARGAINS
OXFORDSHIRE CC,ADULTS,CSS - BANBURY,CATERING PROVISIONS,22/11/2023,000009275706334,234.3,POUNDSTRETCHER 322
OXFORDSHIRE CC,CHILDREN'S & EDUCATION,MANAGEMENT,OTHER SERVICES,22/11/2023,000009275703254,657,MARKS&SPENCER PLC
OXFORDSHIRE CC,ADULTS,INCOME TEAM,PAYMENT TO GOVERNMENT DEPARTMENTS,22/11/2023,000009275703764,1.5,FIND A WILL
OXFORDSHIRE CC,CHILDREN'S & EDUCATION,CARE LEAVERS STAFFING,"SUPPLIES, STATIONERY AND MATERIALS",22/11/2023,000009275706866,30,BLACKHAWK CS   ICELAND
OXFORDSHIRE CC,CHILDREN'S & EDUCATION,DIDCOT MOVE-ON HOME,CATERING PROVISIONS,22/11/2023,000009275704022,2.02,SAINSBURYS S/MKTS
OXFORDSHIRE CC,ADULTS,CSS WITNEY,CATERING PROVISIONS,22/11/2023,000009275706430,18.42,HOME BARGAINS
OXFORDSHIRE CC,ADULTS,CSS - BANBURY,CATERING PROVISIONS,22/11/2023,000009275706364,11.67,HOME BARGAINS BANBURY
OXFORDSHIRE CC,CHILDREN'S & EDUCATION,REACTIVE MAINTENANCE,PREMISES REPAIRS,22/11/2023,000009275706260,108.65,BOUCHIER LTD
OXFORDSHIRE CC,CHILDREN'S & EDUCATION,WITNEY,CATERING PROVISIONS,22/11/2023,000009275705776,7.9,LIDL GB WITNEY
OXFORDSHIRE CC,CHILDREN'S & EDUCATION,QUALITY ASSURANCE SOUTH TEAM,PAYMENTS TO TRANSPORT OPERATORS,22/11/2023,000009275706446,54.4,TRAINLINE
OXFORDSHIRE CC,CUSTOMER AND CULTURE,LIBRARY COLLECTIONS,"BOOKS, DVDS AND CDS",22/11/2023,000009275703986,805.78,OVERDRIVE DIST
OXFORDSHIRE CC,ADULTS,CSS WANTAGE,CATERING PROVISIONS,22/11/2023,000009275703362,9.31,SAINSBURYS S/MKTS
OXFORDSHIRE CC,ADULTS,PAUSE PROGRAMME,MATERIALS,22/11/2023,000009275703924,120,WWW.ARGOS.CO.UK
OXFORDSHIRE CC,CHILDREN'S & EDUCATION,40 THE MOORS,OTHER TRANSPORT ARRANGEMENTS,22/11/2023,000009275706028,15.2,UNION STREET CAR PARK
OXFORDSHIRE CC,CHILDREN'S & EDUCATION,CNTL ERLY HELP-BBLEY,CATERING PROVISIONS,22/11/2023,000009275705426,1.55,MARTIN MCCOLL
OXFORDSHIRE CC,CUSTOMER AND CULTURE,SCHOOLS FM CATERING AREA 4,CATERING PROVISIONS,22/11/2023,000009275704242,23.75,CO-OPERATIVE FOOD
OXFORDSHIRE CC,ENVIRONMENT AND PLACE,MAINTENANCE STAFF,MATERIALS,22/11/2023,000009275704730,172.44,AMZNMKTPLACE
OXFORDSHIRE CC,CHILDREN'S & EDUCATION,40 THE MOORS,CATERING PROVISIONS,22/11/2023,000009275705138,10.9,TESCO STORES 2990
OXFORDSHIRE CC,CORPORATE CORE,,STATIONERY,22/11/2023,000009275705548,97.29,LYRECO UK LTD
OXFORDSHIRE CC,ADULTS,THAME E&A HOME,OTHER TRANSPORT ARRANGEMENTS,22/11/2023,000009275705340,15.2,UNION STREET CAR PARK
OXFORDSHIRE CC,ENVIRONMENT AND PLACE,MAINTENANCE STAFF,MATERIALS,22/11/2023,000009275704714,164.07,AMZNMKTPLACE
OXFORDSHIRE CC,CORPORATE CORE,,STATIONERY,22/11/2023,000009275705524,40.32,LYRECO UK LTD
OXFORDSHIRE CC,CORPORATE CORE,,STATIONERY,22/11/2023,000009275705536,86.09,LYRECO UK LTD
OXFORDSHIRE CC,CUSTOMER AND CULTURE,HISTORY SERVICE,EQUIPMENT,22/11/2023,000009275704788,12.04,WWW.YPO.CO.UK
OXFORDSHIRE CC,ENTERPRISEVC,,CAR LEASING - PRIVATE RENTALS,22/11/2023,000009275705614,144.9,ENTERPRISE RENT-A-CAR
OXFORDSHIRE CC,ENTERPRISEVC,,CAR LEASING - PRIVATE RENTALS,22/11/2023,000009275705604,172.01,ENTERPRISE RENT-A-CAR
OXFORDSHIRE CC,ENTERPRISEVC,,CAR LEASING - PRIVATE RENTALS,22/11/2023,000009275705566,81.1,ENTERPRISE RENT-A-CAR
OXFORDSHIRE CC,ENTERPRISEVC,,CAR LEASING - PRIVATE RENTALS,22/11/2023,000009275705598,78.7,ENTERPRISE RENT-A-CAR
OXFORDSHIRE CC,ENTERPRISEVC,,CAR LEASING - PRIVATE RENTALS,22/11/2023,000009275705594,95.5,ENTERPRISE RENT-A-CAR
OXFORDSHIRE CC,ENTERPRISEVC,,CAR LEASING - PRIVATE RENTALS,22/11/2023,000009275705586,38.75,ENTERPRISE RENT-A-CAR
OXFORDSHIRE CC,ENTERPRISEVC,,CAR LEASING - PRIVATE RENTALS,22/11/2023,000009275705574,191.2,ENTERPRISE RENT-A-CAR
OXFORDSHIRE CC,CHILDREN'S & EDUCATION,THAME E&A HOME,OTHER TRANSPORT ARRANGEMENTS,22/11/2023,000009275704322,15.2,UNION STREET CAR PARK
OXFORDSHIRE CC,CUSTOMER AND CULTURE,THAME LIBRARY,"NEWSPAPERS, PERIODICALS AND PUBLICATIONS",22/11/2023,000009275705444,5.6,SAINSBURYS S/MKTS
OXFORDSHIRE CC,CHILDREN'S & EDUCATION,THAME E&A HOME,OTHER TRANSPORT ARRANGEMENTS,22/11/2023,000009275706516,20.4,WORCESTER STREET CAR P
OXFORDSHIRE CC,CUSTOMER AND CULTURE,SCHOOLS FM CATERING AREA 2,CATERING PROVISIONS,22/11/2023,000009275704446,16.6,SAINSBURY'S S/MKT
OXFORDSHIRE CC,CHILDREN'S & EDUCATION,DIDCOT MOVE-ON HOME,MATERIALS,22/11/2023,000009275703696,27.57,AMZNMKTPLACE
OXFORDSHIRE CC,CUSTOMER AND CULTURE,HARD FM,PREMISES REPAIRS,22/11/2023,000009275703422,22.4,SCREWFIX OXFORD COWLEY
OXFORDSHIRE CC,CHILDREN'S & EDUCATION,EYNSHAM,CATERING,22/11/2023,000009275703266,127.87,TESCO STORES 2008
OXFORDSHIRE CC,CUSTOMER AND CULTURE,COMMUNITY PARTNERSHIP TEAM,CATERING PROVISIONS,22/11/2023,000009275703662,177.85,TESCO STORES 2008
OXFORDSHIRE CC,CHILDREN'S & EDUCATION,NTS UASC AGENCY,MATERIALS,22/11/2023,000009275704808,116.59,AMAZON.CO.UK HI0DQ5X24
OXFORDSHIRE CC,CHILDREN'S & EDUCATION,NTS UASC AGENCY,MATERIALS,22/11/2023,000009275704822,116.59,AMAZON.CO.UK HI5GD5XU4
OXFORDSHIRE CC,CHILDREN'S & EDUCATION,"	SEN/ICT EQUIPMENT",OTHER TRANSPORT ARRANGEMENTS,22/11/2023,000009275703882,13.19,UPS LTD
OXFORDSHIRE CC,CHILDREN'S & EDUCATION,"	SEN/ICT EQUIPMENT",OTHER TRANSPORT ARRANGEMENTS,22/11/2023,000009275703892,13.79,UPS LTD
OXFORDSHIRE CC,CHILDREN'S & EDUCATION,"	LOOKED AFTER CITY 2",PAYMENT TO GOVERNMENT DEPARTMENTS,22/11/2023,000009275704480,-34,DRIVING LICENCE WEB
OXFORDSHIRE CC,ADULTS,CSS - BANBURY,MATERIALS,22/11/2023,000009275706372,13.95,AMZNMKTPLACE
OXFORDSHIRE CC,CHILDREN'S & EDUCATION,THAME E&A HOME,CATERING PROVISIONS,22/11/2023,000009275705352,9.15,THAME BP SF CONNECT
OXFORDSHIRE CC,ADULTS,CSS WANTAGE,MATERIALS,22/11/2023,000009275703354,6.81,AMZNMKTPLACE
OXFORDSHIRE CC,CHILDREN'S & EDUCATION,THAME E&A HOME,CATERING,22/11/2023,000009275703480,15.06,MCDONALDS 1383
OXFORDSHIRE CC,CUSTOMER AND CULTURE,SCHOOLS FM CATERING AREA 4,MATERIALS,22/11/2023,000009275704232,64.47,AMZNMKTPLACE
OXFORDSHIRE CC,CHILDREN'S & EDUCATION,NRPF & HOMELESSNESS,HIRE OF ACCOMMODATION AND FACILITIES,22/11/2023,000009275704310,491,PREMIER INN
OXFORDSHIRE CC,ADULTS,CSS - BANBURY,MATERIALS,22/11/2023,000009275706382,26.32,AMZNMKTPLACE
OXFORDSHIRE CC,ADULTS,CSS - OXFORD,EDUCATIONAL AND VOCATIONAL TRAINING ,22/11/2023,000009275704676,116.4,SJA SUPPLIES TRAINING
OXFORDSHIRE CC,CHILDREN'S & EDUCATION,NRPF & HOMELESSNESS,HIRE OF ACCOMMODATION AND FACILITIES,22/11/2023,000009275704308,493,PREMIER INN
OXFORDSHIRE CC,CHILDREN'S & EDUCATION,NRPF & HOMELESSNESS,HIRE OF ACCOMMODATION AND FACILITIES,22/11/2023,000009275704300,742,PREMIER INN
OXFORDSHIRE CC,CHILDREN'S & EDUCATION,NRPF & HOMELESSNESS,HIRE OF ACCOMMODATION AND FACILITIES,22/11/2023,000009275704294,868,PREMIER INN
OXFORDSHIRE CC,CHILDREN'S & EDUCATION,NRPF & HOMELESSNESS,HIRE OF ACCOMMODATION AND FACILITIES,22/11/2023,000009275704284,850,PREMIER INN
OXFORDSHIRE CC,ADULTS,CSS - ABINGDON,MATERIALS,22/11/2023,000009275703300,13.57,AMZNMKTPLACE
OXFORDSHIRE CC,ADULTS,CSS - OXFORD,PURCHASE OF IT EQUIPMENT,22/11/2023,000009275704692,13.99,AMZNMKTPLACE
OXFORDSHIRE CC,CHILDREN'S & EDUCATION,THAME E&A HOME,MATERIALS,22/11/2023,000009275706494,19.5,THEWORKS
OXFORDSHIRE CC,CHILDREN'S & EDUCATION,THAME E&A HOME,MATERIALS,22/11/2023,000009275706506,60,THEWORKS
OXFORDSHIRE CC,CHILDREN'S & EDUCATION,KINGFISHER,HIRE OF ACCOMMODATION AND FACILITIES,22/11/2023,000009275703726,127,PREMIER INN
OXFORDSHIRE CC,ADULTS,CSS - OXFORD,MATERIALS,22/11/2023,000009275703688,22.85,ALDI STORES 775-142
OXFORDSHIRE CC,ADULTS,CSS - OXFORD,CATERING PROVISIONS,22/11/2023,000009275703682,3.96,ALDI STORES 775-142
OXFORDSHIRE CC,ADULTS,CSS - ABINGDON,CATERING PROVISIONS,22/11/2023,000009275706826,25.9,ALDI STORES
OXFORDSHIRE CC,CUSTOMER AND CULTURE,"MARKETING, COMMUNICATIONS & ENGAGEMENT","PUBLICITY, PROMOTIONS AND ADVERTISEMENT",21/11/2023,000009271357074,31.73,SNAP INC SNAP SNAP ADS
OXFORDSHIRE CC,ADULTS,CSS - BANBURY,MATERIALS,21/11/2023,000009271357502,10.89,AMZNMKTPLACE
OXFORDSHIRE CC,CHILDREN'S & EDUCATION,40 THE MOORS,OTHER TRANSPORT ARRANGEMENTS,21/11/2023,000009271357062,4.5,STGCOACH/CTYLINK
OXFORDSHIRE CC,CHILDREN'S & EDUCATION,40 THE MOORS,OTHER EXPENSES,21/11/2023,000009271357340,15.29,AMAZON.CO.UK HI4LC7PO4
OXFORDSHIRE CC,CHILDREN'S & EDUCATION,40 THE MOORS,OTHER EXPENSES,21/11/2023,000009271357336,12.85,AMAZON.CO.UK HI3E461J4
OXFORDSHIRE CC,CHILDREN'S & EDUCATION,EYNSHAM,OTHER TRANSPORT ARRANGEMENTS,21/11/2023,000009271357348,3.8,WESTGATE OXFORD CAR PA
OXFORDSHIRE CC,CHILDREN'S & EDUCATION,THAME E&A HOME,OTHER TRANSPORT ARRANGEMENTS,21/11/2023,000009271356456,8.9,M6 TOLL
OXFORDSHIRE CC,ADULTS,CSS - BANBURY,MATERIALS,21/11/2023,000009271357488,27.53,AMAZON.CO.UK HI4X94134
OXFORDSHIRE CC,CHILDREN'S & EDUCATION,CHILDREN IN CARE NON-STAFFING - SOUTH,PAYMENTS TO TRANSPORT OPERATORS,21/11/2023,000009271357428,23.94,TRAINLINE
OXFORDSHIRE CC,CHILDREN'S & EDUCATION,CHILDREN IN CARE NON-STAFFING - SOUTH,PAYMENTS TO TRANSPORT OPERATORS,21/11/2023,000009271357416,23.94,TRAINLINE
OXFORDSHIRE CC,CHILDREN'S & EDUCATION,CHILDREN IN CARE NON-STAFFING - SOUTH,PAYMENTS TO TRANSPORT OPERATORS,21/11/2023,000009271357424,23.94,TRAINLINE
OXFORDSHIRE CC,CHILDREN'S & EDUCATION,EYNSHAM,CATERING,21/11/2023,000009271357352,8,ZETTLE_ JUNKYARD GOLF
OXFORDSHIRE CC,CHILDREN'S & EDUCATION,DIDCOT MOVE-ON HOME,CATERING PROVISIONS,21/11/2023,000009271356702,8.45,SAINSBURYS S/MKTS
OXFORDSHIRE CC,ADULTS,CSS - BANBURY,MATERIALS,21/11/2023,000009271357492,4.89,AMZNMKTPLACE
OXFORDSHIRE CC,RESOURCES,MULTICAV,PAYMENTS TO TRANSPORT OPERATORS,21/11/2023,000009271357628,85.3,CHILTERN RAILWAYS
OXFORDSHIRE CC,ADULTS,CSS WANTAGE,CATERING PROVISIONS,21/11/2023,000009271357012,49.98,AMZNMKTPLACE
OXFORDSHIRE CC,ADULTS,CSS WANTAGE,CATERING PROVISIONS,21/11/2023,000009271357006,9.97,AMZNMKTPLACE
OXFORDSHIRE CC,ADULTS,CSS WITNEY,MATERIALS,21/11/2023,000009271357002,129.99,AMZNMKTPLACE
OXFORDSHIRE CC,CHILDREN'S & EDUCATION,PAUSE PROGRAMME,CATERING PROVISIONS,21/11/2023,000009271356832,25.87,TESCO STORES 2064
OXFORDSHIRE CC,CHILDREN'S & EDUCATION,FAMILY SOLUTIONS PLUS NON-STAFF - NORTH,OTHER TRANSPORT ARRANGEMENTS,21/11/2023,000009271356688,22,SUMUP   CAPITAL CARS R
OXFORDSHIRE CC,CHILDREN'S & EDUCATION,FSP STAFFING � NORTH,ENTERTAINMENT EXPENSES,21/11/2023,000009271356678,41.8,BIG ROCK CLIMBING LIMI
OXFORDSHIRE CC,CHILDREN'S & EDUCATION,THAME E&A HOME,MATERIALS,21/11/2023,000009271356836,5.25,AMZNMKTPLACE
OXFORDSHIRE CC,CHILDREN'S & EDUCATION,THAME E&A HOME,MATERIALS,21/11/2023,000009271356840,6.26,AMZNMKTPLACE
OXFORDSHIRE CC,CHILDREN'S & EDUCATION,EYNSHAM,ENTERTAINMENT EXPENSES,21/11/2023,000009271357344,19,TICKETCO
OXFORDSHIRE CC,CHILDREN'S & EDUCATION,FSP NON-STAFFING - CENTRAL,PAYMENTS TO TRANSPORT OPERATORS,21/11/2023,000009271357308,77.2,WWW.GWR.COM
OXFORDSHIRE CC,CHILDREN'S & EDUCATION,FSP NON-STAFFING - CENTRAL,PAYMENTS TO TRANSPORT OPERATORS,21/11/2023,000009271357302,35.2,WWW.GWR.COM
OXFORDSHIRE CC,CHILDREN'S & EDUCATION,UASC POST 18,"SUPPLIES, STATIONERY AND MATERIALS",21/11/2023,000009271356646,2,CO-OPERATIVE FOOD
OXFORDSHIRE CC,ADULTS,CSS WANTAGE,ENTERTAINMENT EXPENSES,21/11/2023,000009271357016,14.72,HOLLYWOOD BOWL
OXFORDSHIRE CC,CHILDREN'S & EDUCATION,FAMILY SOLUTIONS PLUS NON-STAFF - NORTH,PAYMENTS TO TRANSPORT OPERATORS,21/11/2023,000009271357282,545,BKG HOTEL AT BOOKING.C
OXFORDSHIRE CC,CHILDREN'S & EDUCATION,"	LEAVING CARE CITY 1",OTHER TRANSPORT ARRANGEMENTS,21/11/2023,000009271356666,2,OXFORDBUS.CO.UK
OXFORDSHIRE CC,CHILDREN'S & EDUCATION,THAME E&A HOME,OTHER EXPENSES,21/11/2023,000009271356446,41.98,SMYTHS TOYS LONGTON
OXFORDSHIRE CC,CUSTOMER AND CULTURE,KIDLINGTON LIBRARY,"NEWSPAPERS, PERIODICALS AND PUBLICATIONS",21/11/2023,000009271357110,159,OXFORD HOUSE CAF?
OXFORDSHIRE CC,CUSTOMER AND CULTURE,KIDLINGTON LIBRARY,"NEWSPAPERS, PERIODICALS AND PUBLICATIONS",21/11/2023,000009271357108,106,OXFORD HOUSE CAF?
OXFORDSHIRE CC,ADULTS,CSS WANTAGE,ENTERTAINMENT EXPENSES,21/11/2023,000009271357022,11.04,HOLLYWOOD BOWL
OXFORDSHIRE CC,CUSTOMER AND CULTURE,SCHOOLS FM CATERING AREA 4,MATERIALS,21/11/2023,000009271356796,37.06,NISBETS LTD
OXFORDSHIRE CC,ADULTS,CSS - BANBURY,MATERIALS,21/11/2023,000009271357498,4.95,AMZNMKTPLACE
OXFORDSHIRE CC,CHILDREN'S & EDUCATION,"	LEAVING CARE CITY 1",OTHER TRANSPORT ARRANGEMENTS,21/11/2023,000009271356662,2,OXFORDBUS.CO.UK
OXFORDSHIRE CC,CHILDREN'S & EDUCATION,"	LEAVING CARE CITY 1",OTHER TRANSPORT ARRANGEMENTS,21/11/2023,000009271356658,2,OXFORDBUS.CO.UK
OXFORDSHIRE CC,CUSTOMER AND CULTURE,SCHOOLS FM CATERING AREA 4,MATERIALS,21/11/2023,000009271356788,51.92,AMZNMKTPLACE
OXFORDSHIRE CC,ADULTS,CSS WITNEY,MATERIALS,21/11/2023,000009271357506,11,POUNDLAND LTD - 1912
OXFORDSHIRE CC,CHILDREN'S & EDUCATION,"	LEAVING CARE CITY 1",PAYMENTS TO TRANSPORT OPERATORS,21/11/2023,000009271356674,17.92,TRAINLINE
OXFORDSHIRE CC,CHILDREN'S & EDUCATION,40 THE MOORS,CATERING,21/11/2023,000009271357064,10.7,COSTA COFFEE
OXFORDSHIRE CC,CHILDREN'S & EDUCATION,40 THE MOORS,CATERING PROVISIONS,21/11/2023,000009271357068,21.64,CO-OPERATIVE FOOD
OXFORDSHIRE CC,CHILDREN'S & EDUCATION,"	LEAVING CARE CITY 1",PAYMENTS TO VOLUNTARY BODIES,21/11/2023,000009271356670,6.2,OXSRAD
OXFORDSHIRE CC,CHILDREN'S & EDUCATION,VIRTUAL SCHOOL POST 16 PPP,PURCHASE OF IT EQUIPMENT,21/11/2023,000009271356818,"2,509.92",CURRYS BUSINESS
OXFORDSHIRE CC,CUSTOMER AND CULTURE,HARD FM,PREMISES REPAIRS,21/11/2023,000009271356430,4,HOMEBASE LTD 091
OXFORDSHIRE CC,CHILDREN'S & EDUCATION,FAMILY SOLUTIONS PLUS NON-STAFF � SOUTH,FURNITURE,21/11/2023,000009271357604,171,DUNELM SOFTFURNISHINGS
OXFORDSHIRE CC,CHILDREN'S & EDUCATION,SEND CASEWORK TEAM,POSTAGE AND DELIVERY,21/11/2023,000009271357542,6.29,ROYAL MAIL GROUP LTD
OXFORDSHIRE CC,CHILDREN'S & EDUCATION,"	LEAVING CARE NORTH",CATERING PROVISIONS,21/11/2023,000009271356860,100,TESCO GIFT CARD
OXFORDSHIRE CC,ADULTS,CSS BICESTER,MATERIALS,21/11/2023,000009271357538,13.98,AMZNMKTPLACE
OXFORDSHIRE CC,CHILDREN'S & EDUCATION,FAMILY SOLUTIONS PLUS NON-STAFF - NORTH,PAYMENT TO GOVERNMENT DEPARTMENTS,21/11/2023,000009271357220,70,GEN REGISTER OFFICE
OXFORDSHIRE CC,ADULTS,CSS BICESTER,PURCHASE OF IT EQUIPMENT,21/11/2023,000009271357534,33.98,AMZNMKTPLACE
OXFORDSHIRE CC,CHILDREN'S & EDUCATION,PAUSE PROGRAMME,CATERING,21/11/2023,000009271357632,4.3,COSTA COFFEE 43011690
OXFORDSHIRE CC,ADULTS,CSS - OXFORD,EDUCATIONAL AND VOCATIONAL TRAINING ,21/11/2023,000009271356932,80,ZETTLE_ DELTAVIOLIN
OXFORDSHIRE CC,PUBLIC HEALTH,CHILDREN IN CARE NON-STAFFING - SOUTH,PAYMENT TO GOVERNMENT DEPARTMENTS,21/11/2023,000009271356394,93,HM PASSPORT OFFICE
OXFORDSHIRE CC,RESOURCES,INCOME TEAM,PAYMENT TO GOVERNMENT DEPARTMENTS,21/11/2023,000009271356874,80,WWW.MONEYCLAIM.GOV
OXFORDSHIRE CC,CHILDREN'S & EDUCATION,THAME E&A HOME,OTHER TRANSPORT ARRANGEMENTS,21/11/2023,000009271356454,8.9,M6 TOLL
OXFORDSHIRE CC,CHILDREN'S & EDUCATION,HOUSE PROJECT,PAYMENTS TO VOLUNTARY BODIES,21/11/2023,000009271357216,3.6,OXSRAD
OXFORDSHIRE CC,CHILDREN'S & EDUCATION,EYNSHAM,CATERING PROVISIONS,21/11/2023,000009271357312,1.99,SPAR EYNSHAM
OXFORDSHIRE CC,CUSTOMER AND CULTURE,HARD FM,PREMISES REPAIRS,21/11/2023,000009271357588,1.95,NCP BANBURY MARLBOROUG
OXFORDSHIRE CC,ADULTS,CSS WALLINGFORD,CATERING PROVISIONS,21/11/2023,000009271356384,5.65,WAITROSE 675
OXFORDSHIRE CC,CHILDREN'S & EDUCATION,DIDCOT MOVE-ON HOME,CATERING PROVISIONS,21/11/2023,000009271357278,12.45,SAINSBURYS S/MKTS
OXFORDSHIRE CC,CHILDREN'S & EDUCATION,MARKETING,OTHER SERVICES,21/11/2023,000009271356400,345.99,ONE4ALL
OXFORDSHIRE CC,CHILDREN'S & EDUCATION,DIDCOT MOVE-ON HOME,CLEANING MATERIALS,21/11/2023,000009271357274,29.82,SAINSBURYS S/MKTS
OXFORDSHIRE CC,CHILDREN'S & EDUCATION,UASC 16&17,BIRTHDAY ALLOWANCE,21/11/2023,000009271356752,62.98,SPORTSDIRECT
OXFORDSHIRE CC,CHILDREN'S & EDUCATION,CHILDREN IN CARE NON-STAFFING - SOUTH,PAYMENTS TO TRANSPORT OPERATORS,21/11/2023,000009271357420,23.94,TRAINLINE
OXFORDSHIRE CC,ADULTS,CSS - ABINGDON,MATERIALS,21/11/2023,000009271356404,2.28,CARD FACTORY
OXFORDSHIRE CC,CHILDREN'S & EDUCATION,"	LEAVING CARE NORTH",OTHER TRANSPORT ARRANGEMENTS,21/11/2023,000009271357226,18,OXFORDBUS.CO.UK
OXFORDSHIRE CC,CHILDREN'S & EDUCATION,THAME E&A HOME,VEHICLE FUEL,21/11/2023,000009271356450,40.02,ESSO BAYNARDS GN SSTN
OXFORDSHIRE CC,CUSTOMER AND CULTURE,HARD FM,PREMISES REPAIRS,21/11/2023,000009271356434,41.63,DULUX DECORATOR CENTRE
OXFORDSHIRE CC,ADULTS,CSS WITNEY,ENTERTAINMENT EXPENSES,21/11/2023,000009271356896,9,WWW.BETTER.ORG.UK
OXFORDSHIRE CC,ADULTS,CSS - ABINGDON,CATERING PROVISIONS,21/11/2023,000009271356408,20,WAITROSE 211
OXFORDSHIRE CC,CHILDREN'S & EDUCATION,FAMILY SOLUTIONS PLUS NON-STAFF - NORTH,PAYMENTS TO TRANSPORT OPERATORS,21/11/2023,000009271357262,27.4,TRAINLINE
OXFORDSHIRE CC,ADULTS,CSS WITNEY,CATERING PROVISIONS,21/11/2023,000009271356898,29.48,CO-OP GROUP 070582
OXFORDSHIRE CC,CHILDREN'S & EDUCATION,KINGFISHER,PAYMENTS TO TRANSPORT OPERATORS,21/11/2023,000009271356582,114.22,TRAINLINE
OXFORDSHIRE CC,CHILDREN'S & EDUCATION,"	RIVERSIDE CENTRE",CATERING PROVISIONS,21/11/2023,000009271356682,4.25,WAITROSE 142
OXFORDSHIRE CC,CUSTOMER AND CULTURE,SCHOOLS FM CATERING AREA 1,CATERING PROVISIONS,21/11/2023,000009271357266,40,TESCO STORES 4480
OXFORDSHIRE CC,CUSTOMER AND CULTURE,SCHOOLS FM CATERING AREA 4,CATERING PROVISIONS,21/11/2023,000009271356792,44.65,CO-OPERATIVE FOOD
OXFORDSHIRE CC,ENVIRONMENT AND PLACE,MAINTENANCE STAFF,MATERIALS,21/11/2023,000009271356936,228.85,AMZNMKTPLACE
OXFORDSHIRE CC,CORPORATE CORE,,STATIONERY,21/11/2023,000009271357202,151.32,LYRECO UK LTD
OXFORDSHIRE CC,CORPORATE CORE,,STATIONERY,21/11/2023,000009271357188,9.26,LYRECO UK LTD
OXFORDSHIRE CC,CORPORATE CORE,,STATIONERY,21/11/2023,000009271357208,73.3,LYRECO UK LTD
OXFORDSHIRE CC,CORPORATE CORE,,STATIONERY,21/11/2023,000009271357198,37.8,LYRECO UK LTD
OXFORDSHIRE CC,CORPORATE CORE,,STATIONERY,21/11/2023,000009271357192,82.56,LYRECO UK LTD
OXFORDSHIRE CC,RESOURCES,LEGAL SERVICES,LEGAL COSTS,21/11/2023,000009271357396,33,OXFORDSHIRE CC WEB1
OXFORDSHIRE CC,CHILDREN'S & EDUCATION,DISABILITIES TEAM S,FURNITURE,21/11/2023,000009271356506,27,WWW.ARGOS.CO.UK
OXFORDSHIRE CC,CHILDREN'S & EDUCATION,NTH EARLY HELP-WITNY,CATERING PROVISIONS,21/11/2023,000009271357224,7.72,WAITROSE 142
OXFORDSHIRE CC,CHILDREN'S & EDUCATION,REACTIVE MAINTENANCE,PREMISES REPAIRS,21/11/2023,000009271357448,67.5,HOMEBASE LTD 091
OXFORDSHIRE CC,CUSTOMER AND CULTURE,THAME LIBRARY,"NEWSPAPERS, PERIODICALS AND PUBLICATIONS",21/11/2023,000009271357150,5.6,SAINSBURYS S/MKTS
OXFORDSHIRE CC,CHILDREN'S & EDUCATION,DISABILITIES TEAM S,FURNITURE,21/11/2023,000009271356502,14,DUNELM SOFTFURNISHINGS
OXFORDSHIRE CC,CHILDREN'S & EDUCATION,40 THE MOORS,CATERING PROVISIONS,21/11/2023,000009271357410,195.8,SAINSBURYS.CO.UK
OXFORDSHIRE CC,ADULTS,CSS BICESTER,CATERING PROVISIONS,21/11/2023,000009271356442,143.24,TESCO STORES 2162
OXFORDSHIRE CC,CHILDREN'S & EDUCATION,"	LEAVING CARE NORTH",CLOTHING AND UNIFORMS,21/11/2023,000009271357230,94,NEXT DIRECTORY
OXFORDSHIRE CC,CHILDREN'S & EDUCATION,THAME E&A HOME,CATERING PROVISIONS,21/11/2023,000009271356560,248.13,TESCO STORES 2038
OXFORDSHIRE CC,ADULTS,CSS - BANBURY,CATERING PROVISIONS,21/11/2023,000009271357440,82.1,SAINSBURYS.CO.UK
OXFORDSHIRE CC,CHILDREN'S & EDUCATION,FAMILY SOLUTIONS PLUS NON-STAFF - NORTH,PAYMENTS TO TRANSPORT OPERATORS,21/11/2023,000009271357434,-58.7,WWW.GWR.COM
OXFORDSHIRE CC,CHILDREN'S & EDUCATION,THAME E&A HOME,CATERING PROVISIONS,21/11/2023,000009271356562,-11.4,TESCO STORES 2038
OXFORDSHIRE CC,CHILDREN'S & EDUCATION,HOUSE PROJECT,PAYMENT TO GOVERNMENT DEPARTMENTS,21/11/2023,000009271357212,1,OXFORD CITY COUNCIL
OXFORDSHIRE CC,CHILDREN'S & EDUCATION,THAME E&A HOME,CATERING,21/11/2023,000009271356554,4.75,THAME BP SF CONNECT
OXFORDSHIRE CC,ADULTS,CSS - BANBURY,MATERIALS,21/11/2023,000009271357496,47.78,AMZNMKTPLACE
OXFORDSHIRE CC,SOCIAL AND COMMUNITY SERVICES,CSS - ABINGDON,CLOTHING AND UNIFORMS,21/11/2023,000009271356422,33.99,AMZNMKTPLACE
OXFORDSHIRE CC,CHILDREN'S & EDUCATION,THAME E&A HOME,CATERING PROVISIONS,21/11/2023,000009271357444,4.49,THAME BP SF CONNECT
OXFORDSHIRE CC,CHILDREN'S & EDUCATION,"	LOOKED AFTER NORTH",VEHICLE FUEL,21/11/2023,000009271357244,50.01,LEIGH DELAMERE WEST MW
OXFORDSHIRE CC,CUSTOMER AND CULTURE,BULLINGDON PRISON,MATERIALS,20/11/2023,000009263830622,7.78,AMZNMKTPLACE
OXFORDSHIRE CC,CUSTOMER AND CULTURE,BULLINGDON PRISON,MATERIALS,20/11/2023,000009263830624,2.59,AMZNMKTPLACE
OXFORDSHIRE CC,CUSTOMER AND CULTURE,"MARKETING, COMMUNICATIONS & ENGAGEMENT","PUBLICITY, PROMOTIONS AND ADVERTISEMENT",20/11/2023,000009263830570,38.66,SNAP INC SNAP SNAP ADS
OXFORDSHIRE CC,ADULTS,CSS - OXFORD,MATERIALS,20/11/2023,000009263830464,25.9,AMZNMKTPLACE
OXFORDSHIRE CC,CHILDREN'S & EDUCATION,THAME E&A HOME,TELEPHONE - EQUIPMENT,20/11/2023,000009263830260,10,VESTA   VODAFONE TOPUP
OXFORDSHIRE CC,CHILDREN'S & EDUCATION,THAME E&A HOME,MATERIALS,20/11/2023,000009263830774,99,WWW.ARGOS.CO.UK
OXFORDSHIRE CC,CHILDREN'S & EDUCATION,40 THE MOORS,CLOTHING AND UNIFORMS,20/11/2023,000009263830556,88,JD SPORTS FASHION PLC
OXFORDSHIRE CC,ADULTS,CSS BICESTER,MATERIALS,20/11/2023,000009263830222,57.88,AMZNMKTPLACE
OXFORDSHIRE CC,ADULTS,CSS WITNEY,MATERIALS,20/11/2023,000009263830518,17.98,AMZNMKTPLACE
OXFORDSHIRE CC,CHILDREN'S & EDUCATION,EYNSHAM,CATERING PROVISIONS,20/11/2023,000009263830302,4.87,CO-OPERATIVE FOOD
OXFORDSHIRE CC,ADULTS,CSS WITNEY,MATERIALS,20/11/2023,000009263830516,21.95,AMZNMKTPLACE
OXFORDSHIRE CC,CHILDREN'S & EDUCATION,40 THE MOORS,CATERING PROVISIONS,20/11/2023,000009263830764,16.69,SAINSBURY'S S/MKT
OXFORDSHIRE CC,ENVIRONMENT AND PLACE,MAINTENANCE STAFF,HARDWARE AND CROCKERY,20/11/2023,000009263830478,43,WICKES BANBURY
OXFORDSHIRE CC,CHILDREN'S & EDUCATION,FSP NON-STAFFING - CENTRAL,CATERING,20/11/2023,000009263830648,6.85,COSTA COFFEE 43011581
OXFORDSHIRE CC,CHILDREN'S & EDUCATION,THAME E&A HOME,ENTERTAINMENT EXPENSES,20/11/2023,000009263830258,19.4,THAME LEISURE CENTRE
OXFORDSHIRE CC,CHILDREN'S & EDUCATION,THAME E&A HOME,TELEPHONE - EQUIPMENT,20/11/2023,000009263830256,10,VESTA VODAFONE TOPUP
OXFORDSHIRE CC,CUSTOMER AND CULTURE,"MARKETING, COMMUNICATIONS & ENGAGEMENT",SUBSCRIPTIONS,20/11/2023,000009263830568,24.98,LINKEDIN 9637820744
OXFORDSHIRE CC,CUSTOMER AND CULTURE,BULLINGDON PRISON,MATERIALS,20/11/2023,000009263830618,1.95,AMZNMKTPLACE
OXFORDSHIRE CC,CUSTOMER AND CULTURE,BULLINGDON PRISON,MATERIALS,20/11/2023,000009263830620,13.97,AMZNMKTPLACE
OXFORDSHIRE CC,CHILDREN'S & EDUCATION,CNTL ERLY HELP-BBLEY,HARDWARE AND CROCKERY,20/11/2023,000009263830652,13.95,NOTCUTTS GARDEN CE
OXFORDSHIRE CC,CHILDREN'S & EDUCATION,CNTL ERLY HELP-BBLEY,HARDWARE AND CROCKERY,20/11/2023,000009263830650,20.85,NOTCUTTS GARDEN CE
OXFORDSHIRE CC,CUSTOMER AND CULTURE,HOLTON SITE,MATERIALS,20/11/2023,000009263830224,83.31,AMAZON.CO.UK HI6FY6ZI4
OXFORDSHIRE CC,CHILDREN'S & EDUCATION,UASC 16&17,CATERING PROVISIONS,20/11/2023,000009263830716,37.95,WWW.ARGOS.CO.UK
OXFORDSHIRE CC,CHILDREN'S & EDUCATION,"	SEN/ICT EQUIPMENT",PURCHASE OF IT EQUIPMENT,20/11/2023,000009263830832,26.98,AMZNMKTPLACE
OXFORDSHIRE CC,CHILDREN'S & EDUCATION,FSP NON-STAFFING - CENTRAL,CATERING,20/11/2023,000009263830644,9.5,SQ  HORSEBOX COFFEE CO
OXFORDSHIRE CC,CHILDREN'S & EDUCATION,FSP NON-STAFFING - CENTRAL,EDUCATIONAL AND VOCATIONAL TRAINING ,20/11/2023,000009263830646,7.3,OU ARBORETUM
OXFORDSHIRE CC,CHILDREN'S & EDUCATION,"	OCCG GRANT",CATERING,20/11/2023,000009263830430,14.83,ALDI STORES 775-142
OXFORDSHIRE CC,ENVIRONMENT AND PLACE,SCH&SOC CARE TRANSP,EQUIPMENT,20/11/2023,000009263830524,68.9,AMAZON.CO.UK HI6DS7TP4
OXFORDSHIRE CC,CUSTOMER AND CULTURE,"MARKETING, COMMUNICATIONS & ENGAGEMENT","PUBLICITY, PROMOTIONS AND ADVERTISEMENT",20/11/2023,000009263830564,500,GOOGLE ADS4896546035
OXFORDSHIRE CC,ADULTS,CSS BICESTER,MATERIALS,20/11/2023,000009263830192,30.36,AMZNMKTPLACE
OXFORDSHIRE CC,CUSTOMER AND CULTURE,"MARKETING, COMMUNICATIONS & ENGAGEMENT","PUBLICITY, PROMOTIONS AND ADVERTISEMENT",20/11/2023,000009263830566,35.69,SNAP INC SNAP SNAP ADS
OXFORDSHIRE CC,CUSTOMER AND CULTURE,"MARKETING, COMMUNICATIONS & ENGAGEMENT","PUBLICITY, PROMOTIONS AND ADVERTISEMENT",20/11/2023,000009263830562,500,FACEBK  NAMTLW39Z2
OXFORDSHIRE CC,CHILDREN'S & EDUCATION,EYNSHAM,CATERING PROVISIONS,20/11/2023,000009263830626,8.75,MAYFIELDEGGS
OXFORDSHIRE CC,CHILDREN'S & EDUCATION,FSP NON-STAFFING - CENTRAL,HARDWARE AND CROCKERY,20/11/2023,000009263830654,-8.95,NOTCUTTS GARDEN CE
OXFORDSHIRE CC,CHILDREN'S & EDUCATION,THAME E&A HOME,CATERING PROVISIONS,20/11/2023,000009263830440,3.1,MARTIN MCCOLL
OXFORDSHIRE CC,CHILDREN'S & EDUCATION,EYNSHAM,CATERING PROVISIONS,20/11/2023,000009263830288,10.83,SPAR EYNSHAM
OXFORDSHIRE CC,CHILDREN'S & EDUCATION,"	OCCG GRANT",OTHER EXPENSES,20/11/2023,000009263830428,3.74,LONDIS
OXFORDSHIRE CC,ADULTS,THAME E&A HOME,OTHER MISC INC,20/11/2023,000009263830508,37.73,HOME BARGAINS
OXFORDSHIRE CC,CHILDREN'S & EDUCATION,THAME E&A HOME,CATERING,20/11/2023,000009263830772,23.45,SHELL PRINCES
OXFORDSHIRE CC,CHILDREN'S & EDUCATION,"	OCCG GRANT",MATERIALS,20/11/2023,000009263830298,12.3,POUNDLAND LTD - 1586
OXFORDSHIRE CC,CHILDREN'S & EDUCATION,THAME E&A HOME,OTHER TRANSPORT ARRANGEMENTS,20/11/2023,000009263830770,2.1,PARKING-AQUA VALE
OXFORDSHIRE CC,CHILDREN'S & EDUCATION,THAME E&A HOME,TELEPHONE - EQUIPMENT,20/11/2023,000009263830438,20,GIFFGAFF
OXFORDSHIRE CC,ADULTS,THAME E&A HOME,OTHER MISC INC,20/11/2023,000009263830506,24.98,HARTWELL NURSERIES
OXFORDSHIRE CC,CUSTOMER AND CULTURE,SCHOOLS FM CATERING AREA 1,MATERIALS,20/11/2023,000009263830358,82.46,AMZNMKTPLACE
OXFORDSHIRE CC,CHILDREN'S & EDUCATION,FSP NON-STAFFING - CENTRAL,ENTERTAINMENT EXPENSES,20/11/2023,000009263830638,5.99,COTSWOLD WILDLIFE PARK
OXFORDSHIRE CC,CHILDREN'S & EDUCATION,THAME E&A HOME,DRUGS AND MEDICAL SUPPLIES,20/11/2023,000009263830814,12.49,"BOOTS,THAME"
OXFORDSHIRE CC,CUSTOMER AND CULTURE,SCHOOLS FM CATERING AREA 4,MATERIALS,20/11/2023,000009263830356,35.98,AMZNMKTPLACE
OXFORDSHIRE CC,CHILDREN'S & EDUCATION,FSP NON-STAFFING - CENTRAL,ENTERTAINMENT EXPENSES,20/11/2023,000009263830640,22.35,COTSWOLD WILDLIFE PARK
OXFORDSHIRE CC,CHILDREN'S & EDUCATION,CYPF ADMIN,MATERIALS,20/11/2023,000009263830218,20.47,AMZNMKTPLACE
OXFORDSHIRE CC,CUSTOMER AND CULTURE,HARD FM,VEHICLES AND PLANT - REPAIRS AND MAIN,20/11/2023,000009263830824,252,SP MK PLYLINING LTD
OXFORDSHIRE CC,ENVIRONMENT AND PLACE,MAINTENANCE STAFF,HARDWARE AND CROCKERY,20/11/2023,000009263830476,86,WICKES BANBURY
OXFORDSHIRE CC,ADULTS,THAME E&A HOME,OTHER MISC INC,20/11/2023,000009263830510,19.48,YARNTON NURSERIES
OXFORDSHIRE CC,CHILDREN'S & EDUCATION,FSP NON-STAFFING - CENTRAL,ENTERTAINMENT EXPENSES,20/11/2023,000009263830642,13.9,COTSWOLD WILDLIFE PARK
OXFORDSHIRE CC,CHILDREN'S & EDUCATION,FSP NON-STAFFING - CENTRAL,ENTERTAINMENT EXPENSES,20/11/2023,000009263830636,33,COTSWOLD WILDLIFE PARK
OXFORDSHIRE CC,CHILDREN'S & EDUCATION,THAME E&A HOME,RESIDENTIAL ACTIVITIES,20/11/2023,000009263830768,27,EVERYONE ACTIVE-DOM
OXFORDSHIRE CC,ENVIRONMENT AND PLACE,WASTE REDUCTION GEN,"PUBLICITY, PROMOTIONS AND ADVERTISEMENT",20/11/2023,000009263830262,35.67,FACEBK  F7N6SXB8M2
OXFORDSHIRE CC,CUSTOMER AND CULTURE,THAME LIBRARY,"NEWSPAPERS, PERIODICALS AND PUBLICATIONS",20/11/2023,000009263830658,7.3,SAINSBURYS S/MKTS
OXFORDSHIRE CC,CUSTOMER AND CULTURE,SCHOOLS FM CATERING AREA 4,MATERIALS,20/11/2023,000009263830354,30.9,AMZNMKTPLACE
OXFORDSHIRE CC,CUSTOMER AND CULTURE,"MARKETING, COMMUNICATIONS & ENGAGEMENT","PUBLICITY, PROMOTIONS AND ADVERTISEMENT",20/11/2023,000009263830558,33.65,SNAP INC SNAP SNAP ADS
OXFORDSHIRE CC,CUSTOMER AND CULTURE,SCHOOLS FM CATERING AREA 4,MATERIALS,20/11/2023,000009263830352,51.92,AMZNMKTPLACE
OXFORDSHIRE CC,CHILDREN'S & EDUCATION,"	LEAVING CARE NORTH",PAYMENTS TO TRANSPORT OPERATORS,20/11/2023,000009263830700,162.52,TRAINLINE
OXFORDSHIRE CC,CUSTOMER AND CULTURE,COUNTY HALL,FURNITURE,20/11/2023,000009263830468,292,IKEA LTD 461 READING M
OXFORDSHIRE CC,CHILDREN'S & EDUCATION,"	MALTFIELD HOUSE",MATERIALS,20/11/2023,000009263830670,24.97,AMZNMKTPLACE
OXFORDSHIRE CC,ENVIRONMENT AND PLACE,BRIDGES GENERAL,PAYMENT TO GOVERNMENT DEPARTMENTS,20/11/2023,000009263830870,435.05,SOUTH OXFORD DISTR
OXFORDSHIRE CC,CHILDREN'S & EDUCATION,PAUSE PROGRAMME,CATERING,20/11/2023,000009263830876,9.59,MCDONALDS
OXFORDSHIRE CC,CHILDREN'S & EDUCATION,ATV ADOPTION OXFORD,CATERING,20/11/2023,000009263830822,81.77,ZETTLE_ ART CAFE
OXFORDSHIRE CC,CHILDREN'S & EDUCATION,ATV ADOPTION OXFORD,CATERING,20/11/2023,000009263830820,499,ZETTLE_ ART CAFE
OXFORDSHIRE CC,CHILDREN'S & EDUCATION,DIDCOT MOVE-ON HOME,CATERING PROVISIONS,20/11/2023,000009263830706,20,SAINSBURYS SMKT
OXFORDSHIRE CC,CHILDREN'S & EDUCATION,DIDCOT MOVE-ON HOME,CATERING PROVISIONS,20/11/2023,000009263830704,50.36,SAINSBURYS SMKT
OXFORDSHIRE CC,CHILDREN'S & EDUCATION,WITNEY,VEHICLE FUEL,20/11/2023,000009263830452,13.5,TESCO PFS 3418
OXFORDSHIRE CC,CHILDREN'S & EDUCATION,FAMILY SOLUTIONS PLUS NON-STAFF - NORTH,CATERING,20/11/2023,000009263830318,9.98,KFC
OXFORDSHIRE CC,CHILDREN'S & EDUCATION,FAMILY SOLUTIONS PLUS NON-STAFF - NORTH,OTHER TRANSPORT ARRANGEMENTS,20/11/2023,000009263830316,2.2,UNION STREET CAR PARK
OXFORDSHIRE CC,CHILDREN'S & EDUCATION,KINGFISHER,CATERING PROVISIONS,20/11/2023,000009263830404,9.78,OXFORD KFC
OXFORDSHIRE CC,ADULTS,CSS BICESTER,MATERIALS,20/11/2023,000009263830190,59.98,AMZNMKTPLACE
OXFORDSHIRE CC,CHILDREN'S & EDUCATION,UASC 16&17,DRUGS AND MEDICAL SUPPLIES,20/11/2023,000009263830300,6.2,BOOTS THE CHEMIST
OXFORDSHIRE CC,CUSTOMER AND CULTURE,HARD FM,PREMISES REPAIRS,20/11/2023,000009263830370,80.66,WWW.VENESTA.CO.UK
OXFORDSHIRE CC,CUSTOMER AND CULTURE,HARD FM,PREMISES REPAIRS,20/11/2023,000009263830206,19.99,SCREWFIX OXFORD COWLEY
OXFORDSHIRE CC,CHILDREN'S & EDUCATION,STH EARLY HELP-ABNDN,PAYMENTS TO HEALTH AUTHORITIES,20/11/2023,000009263830732,192,ELITEYOUTHSPORTS.CO.UK
OXFORDSHIRE CC,CHILDREN'S & EDUCATION,OXFORDSHIRE,CATERING PROVISIONS,20/11/2023,000009263830496,19.75,TESCO STORES 4377
OXFORDSHIRE CC,CHILDREN'S & EDUCATION,EYNSHAM,OTHER SALES,20/11/2023,000009263830718,3.99,T K MAXX
OXFORDSHIRE CC,CHILDREN'S & EDUCATION,FAMILY SOLUTIONS PLUS NON-STAFF � SOUTH,MATERIALS,20/11/2023,000009263830726,12,THEWORKS.CO.UK
OXFORDSHIRE CC,CHILDREN'S & EDUCATION,KINGFISHER,MATERIALS,20/11/2023,000009263830188,23.96,AMZNMKTPLACE
OXFORDSHIRE CC,CHILDREN'S & EDUCATION,HOUSE PROJECT,OTHER TRANSPORT ARRANGEMENTS,20/11/2023,000009263830684,4.5,OXFORDBUS.CO.UK
OXFORDSHIRE CC,CHILDREN'S & EDUCATION,FAMILY SOLUTIONS PLUS NON-STAFF - NORTH,CLIENT LODGINGS AND ACCOMMODATION,20/11/2023,000009263830344,594.62,BKG HOTEL AT BOOKING.C
OXFORDSHIRE CC,CHILDREN'S & EDUCATION,CHILDREN IN CARE NON-STAFFING - CENTRL 2,PAYMENTS TO TRANSPORT OPERATORS,20/11/2023,000009263830216,63.22,TRAINLINE
OXFORDSHIRE CC,ADULTS,PAUSE PROGRAMME,OTHER TRANSPORT ARRANGEMENTS,20/11/2023,000009263830296,2,OXFORDBUS.CO.UK
OXFORDSHIRE CC,ADULTS,CSS WITNEY,PAYMENTS TO VOLUNTARY BODIES,20/11/2023,000009263830804,3.5,58300 WITNEY
OXFORDSHIRE CC,CHILDREN'S & EDUCATION,THAME E&A HOME,MATERIALS,20/11/2023,000009263830412,39.5,AMZNMKTPLACE
OXFORDSHIRE CC,CHILDREN'S & EDUCATION,FAMILY SOLUTIONS PLUS NON-STAFF � SOUTH,CATERING,20/11/2023,000009263830720,11.5,COSTA COFFEE 43011357
OXFORDSHIRE CC,ADULTS,CSS WITNEY,MATERIALS,20/11/2023,000009263830806,6,POUNDLAND LTD - 1912
OXFORDSHIRE CC,CHILDREN'S & EDUCATION,40 THE MOORS,CLOTHING AND UNIFORMS,20/11/2023,000009263830748,86.89,FOOTASYLUM LIMITED
OXFORDSHIRE CC,CHILDREN'S & EDUCATION,FSP NON-STAFFING - CENTRAL,CLOTHING AND UNIFORMS,20/11/2023,000009263830714,34.99,SPORTSDIRECT.COM
OXFORDSHIRE CC,CUSTOMER AND CULTURE,HISTORY SERVICE,MATERIALS,20/11/2023,000009263830498,21.98,AMZNMKTPLACE
OXFORDSHIRE CC,CUSTOMER AND CULTURE,"MARKETING, COMMUNICATIONS & ENGAGEMENT",CATERING,20/11/2023,000009263830560,5.17,ZETTLE_ ART CAFE
OXFORDSHIRE CC,CHILDREN'S & EDUCATION,KINGFISHER,CATERING,20/11/2023,000009263830402,13.9,KIDLINGTON CAFE
OXFORDSHIRE CC,CUSTOMER AND CULTURE,BICESTER LIBRARY,MATERIALS,20/11/2023,000009263830634,351,BICESTER LOCAL
OXFORDSHIRE CC,CHILDREN'S & EDUCATION,PAUSE PROGRAMME,FURNITURE,20/11/2023,000009263830414,24,DUNELM SOFT FURNISHIN
OXFORDSHIRE CC,CHILDREN'S & EDUCATION,THAME E&A HOME,MATERIALS,20/11/2023,000009263830408,7.61,AMZNMKTPLACE
OXFORDSHIRE CC,CHILDREN'S & EDUCATION,FAMILY SOLUTIONS PLUS NON-STAFF � SOUTH,PAYMENT TO GOVERNMENT DEPARTMENTS,20/11/2023,000009263830812,59,VALE OF WHITE HORSE DC
OXFORDSHIRE CC,CHILDREN'S & EDUCATION,40 THE MOORS,CATERING,20/11/2023,000009263830738,3.8,SAINSBURYS S/MKTS
OXFORDSHIRE CC,CHILDREN'S & EDUCATION,PAUSE PROGRAMME,CATERING PROVISIONS,20/11/2023,000009263830416,38.24,HOME BARGAINS
OXFORDSHIRE CC,CHILDREN'S & EDUCATION,"	LEAVING CARE CITY 2",CLOTHING AND UNIFORMS,20/11/2023,000009263830810,100.5,PRIMARK 693
OXFORDSHIRE CC,ADULTS,CSS WANTAGE,ENTERTAINMENT EXPENSES,20/11/2023,000009263830522,11.9,WWW.BETTER.ORG.UK
OXFORDSHIRE CC,ADULTS,CSS WANTAGE,ENTERTAINMENT EXPENSES,20/11/2023,000009263830520,9.9,WWW.BETTER.ORG.UK
OXFORDSHIRE CC,CUSTOMER AND CULTURE,CATERING MANAGEMENT SOFT FM,OTHER TRANSPORT ARRANGEMENTS,20/11/2023,000009263830766,4.2,VALE OF WH PARKING FEE
OXFORDSHIRE CC,CHILDREN'S & EDUCATION,PAUSE PROGRAMME,CATERING,20/11/2023,000009263830396,5.45,STARBUCKS BURFORD
OXFORDSHIRE CC,CUSTOMER AND CULTURE,COUNTY HALL,POSTAGE AND DELIVERY,20/11/2023,000009263830466,"9,000.00",QUADIENT UK LTD
OXFORDSHIRE CC,CHILDREN'S & EDUCATION,THAME E&A HOME,MATERIALS,20/11/2023,000009263830406,10.45,EBAY O 14-10799-19117
OXFORDSHIRE CC,ADULTS,CSS - BANBURY,MATERIALS,20/11/2023,000009263830800,31.96,AMZNMKTPLACE
OXFORDSHIRE CC,CHILDREN'S & EDUCATION,THAME E&A HOME,MATERIALS,20/11/2023,000009263830410,12.48,AMZNMKTPLACE
OXFORDSHIRE CC,CHILDREN'S & EDUCATION,"	RESIDENTIAL STRATEGY",EQUIPMENT,20/11/2023,000009263830712,239.98,MYHENRY.CO.UK
OXFORDSHIRE CC,ADULTS,CSS - BANBURY,MATERIALS,20/11/2023,000009263830798,10.89,AMZNMKTPLACE
OXFORDSHIRE CC,CHILDREN'S & EDUCATION,40 THE MOORS,CATERING,20/11/2023,000009263830736,6.3,STANLEYS SWEETS AND TR
OXFORDSHIRE CC,CHILDREN'S & EDUCATION,EYNSHAM,CATERING PROVISIONS,20/11/2023,000009263830722,19.75,CO-OPERATIVE FOOD
OXFORDSHIRE CC,ADULTS,CSS - BANBURY,MATERIALS,20/11/2023,000009263830802,137.7,NISBETS LTD
OXFORDSHIRE CC,CHILDREN'S & EDUCATION,FAMILY SOLUTIONS PLUS NON-STAFF � SOUTH,HIRE OF ACCOMMODATION AND FACILITIES,20/11/2023,000009263830762,649.66,TRAVELODGE
OXFORDSHIRE CC,ADULTS,CSS - ABINGDON,CATERING PROVISIONS,20/11/2023,000009263830866,67.2,TESCO STORES 2008
OXFORDSHIRE CC,CHILDREN'S & EDUCATION,PAUSE PROGRAMME,CATERING,20/11/2023,000009263830398,8.2,STARBUCKS BURFORD
OXFORDSHIRE CC,CHILDREN'S & EDUCATION,"	RIVERSIDE CENTRE",CATERING PROVISIONS,20/11/2023,000009263830492,3.45,TESCO STORES
OXFORDSHIRE CC,CHILDREN'S & EDUCATION,SI EQUIPMENT,PURCHASE OF IT EQUIPMENT,20/11/2023,000009263830830,32.88,AMZNMKTPLACE
OXFORDSHIRE CC,CHILDREN'S & EDUCATION,EYNSHAM,CATERING PROVISIONS,20/11/2023,000009263830724,3.5,SPAR EYNSHAM
OXFORDSHIRE CC,CUSTOMER AND CULTURE,OXFORDSHIRE MUSEUM,OTHER SERVICES,20/11/2023,000009263830502,3.99,AMZNMKTPLACE
OXFORDSHIRE CC,ENVIRONMENT AND PLACE,MAINTENANCE STAFF,"SUPPLIES, STATIONERY AND MATERIALS",20/11/2023,000009263830470,174,SCCSSURVEY.CO.UK
OXFORDSHIRE CC,ADULTS,CSS - OXFORD,MATERIALS,20/11/2023,000009263830264,62.9,ALDI STORES 775-142
OXFORDSHIRE CC,CHILDREN'S & EDUCATION,FAMILY SOLUTIONS PLUS NON-STAFF � SOUTH,CATERING PROVISIONS,20/11/2023,000009263830494,2.8,TESCO STORES 4377
OXFORDSHIRE CC,ENVIRONMENT AND PLACE,MAINTENANCE STAFF,HARDWARE AND CROCKERY,20/11/2023,000009263830474,604.56,WWW.SCREWFIX.COM
OXFORDSHIRE CC,CHILDREN'S & EDUCATION,MANAGEMENT,CATERING PROVISIONS,20/11/2023,000009263830434,59.75,MARKS&SPENCER PLC
OXFORDSHIRE CC,ENVIRONMENT AND PLACE,MAINTENANCE STAFF,HARDWARE AND CROCKERY,20/11/2023,000009263830472,651.03,WWW.SCREWFIX.COM
OXFORDSHIRE CC,CUSTOMER AND CULTURE,THAME LIBRARY,"NEWSPAPERS, PERIODICALS AND PUBLICATIONS",20/11/2023,000009263830656,5.6,SAINSBURYS S/MKTS
OXFORDSHIRE CC,CUSTOMER AND CULTURE,HARD FM,PREMISES REPAIRS,20/11/2023,000009263830202,76.9,B AND Q
OXFORDSHIRE CC,CUSTOMER AND CULTURE,COMMUNITY PARTNERSHIP TEAM,CATERING PROVISIONS,20/11/2023,000009263830250,5.89,LIDL GB ABINGDON
OXFORDSHIRE CC,CHILDREN'S & EDUCATION,"	LOOKED AFTER NORTH",VEHICLE FUEL,20/11/2023,000009263830686,10.05,MFG TOLLHOUSE
OXFORDSHIRE CC,CHILDREN'S & EDUCATION,"	LEAVING CARE SOUTH",CLOTHING AND UNIFORMS,20/11/2023,000009263830366,70,PRETTYLITTLETHING.COM
OXFORDSHIRE CC,CUSTOMER AND CULTURE,HARD FM,PREMISES REPAIRS,20/11/2023,000009263830204,101.78,TOOLSTATION LTD
OXFORDSHIRE CC,CHILDREN'S & EDUCATION,FIELDWORK UASC,CATERING PROVISIONS,20/11/2023,000009263830776,7.04,TESCO STORES 2990
OXFORDSHIRE CC,CORPORATE CORE,,STATIONERY,20/11/2023,000009263830680,12.85,LYRECO UK LTD
OXFORDSHIRE CC,CORPORATE CORE,,STATIONERY,20/11/2023,000009263830672,10.22,LYRECO UK LTD
OXFORDSHIRE CC,CORPORATE CORE,,STATIONERY,20/11/2023,000009263830676,15.38,LYRECO UK LTD
OXFORDSHIRE CC,CORPORATE CORE,,STATIONERY,20/11/2023,000009263830682,219.74,LYRECO UK LTD
OXFORDSHIRE CC,CORPORATE CORE,,STATIONERY,20/11/2023,000009263830674,1.42,LYRECO UK LTD
OXFORDSHIRE CC,CORPORATE CORE,,STATIONERY,20/11/2023,000009263830678,258,LYRECO UK LTD
OXFORDSHIRE CC,CHILDREN'S & EDUCATION,40 THE MOORS,CATERING PROVISIONS,20/11/2023,000009263830740,74.67,SAINSBURYS.CO.UK
OXFORDSHIRE CC,CHILDREN'S & EDUCATION,EYNSHAM,CATERING,20/11/2023,000009263830178,159.73,TESCO STORES 2008
OXFORDSHIRE CC,CHILDREN'S & EDUCATION,THAME E&A HOME,CATERING PROVISIONS,20/11/2023,000009263830254,122.48,TESCO STORES 2038
OXFORDSHIRE CC,RESOURCES,ICT OPERATIONS & MAI,MATERIALS,20/11/2023,000009263830758,225.2,AMAZON.CO.UK HB1RY0WE4
OXFORDSHIRE CC,RESOURCES,ICT OPERATIONS & MAI,MATERIALS,20/11/2023,000009263830760,28.15,AMAZON.CO.UK HB1Y68YO4
OXFORDSHIRE CC,CHILDREN'S & EDUCATION,"	MARLBOROUGH",MATERIALS,20/11/2023,000009263830284,-14.98,AMZNMKTPLACE
OXFORDSHIRE CC,CHILDREN'S & EDUCATION,KINGFISHER,CATERING,20/11/2023,000009263830400,8.99,MCDONALDS
OXFORDSHIRE CC,CHILDREN'S & EDUCATION,"	LEAVING CARE CITY 2",CATERING,20/11/2023,000009263830432,8.7,STARBUCKS BICESTER
OXFORDSHIRE CC,CUSTOMER AND CULTURE,COMMUNITY PARTNERSHIP TEAM,MATERIALS,20/11/2023,000009263830252,13.99,AMZNMKTPLACE
OXFORDSHIRE CC,ADULTS,CSS - OXFORD,CATERING PROVISIONS,20/11/2023,000009263830200,10.72,ALDI STORES 775-142
OXFORDSHIRE CC,CHILDREN'S & EDUCATION,QUALITY ASSURANCE SOUTH TEAM,HIRE OF ACCOMMODATION AND FACILITIES,20/11/2023,000009263830808,-74.99,TRAVELODGE
OXFORDSHIRE CC,ADULTS,CSS - ABINGDON,VEHICLES AND PLANT - REPAIRS AND MAIN,20/11/2023,000009263830864,11,TURNPIKE GARAGE ENGINE
OXFORDSHIRE CC,CHILDREN'S & EDUCATION,UASC POST 18,MATERIALS,17/11/2023,000009255052142,49.99,AMZNMKTPLACE
OXFORDSHIRE CC,CUSTOMER AND CULTURE,"MARKETING, COMMUNICATIONS & ENGAGEMENT","PUBLICITY, PROMOTIONS AND ADVERTISEMENT",17/11/2023,000009255053000,31.87,SNAP INC SNAP SNAP ADS
OXFORDSHIRE CC,CUSTOMER AND CULTURE,SAMUELSON HOUSE,CATERING PROVISIONS,17/11/2023,000009255052010,53.55,MILK AND MORE (RECUR
OXFORDSHIRE CC,ADULTS,CSS WITNEY,CATERING PROVISIONS,17/11/2023,000009255052794,35.7,MILK AND MORE (RECUR
OXFORDSHIRE CC,CUSTOMER AND CULTURE,HOLTON SITE,CATERING PROVISIONS,17/11/2023,000009255051630,17.5,MILK AND MORE (RECUR
OXFORDSHIRE CC,ENVIRONMENT AND PLACE,FLEET OPERATIONS,CATERING PROVISIONS,17/11/2023,000009255052032,20,MILK AND MORE (RECUR
OXFORDSHIRE CC,CUSTOMER AND CULTURE,MUSEUMS COLLECTIONS,CATERING PROVISIONS,17/11/2023,000009255052704,4.62,MILK AND MORE (RECUR
OXFORDSHIRE CC,CHILDREN'S & EDUCATION,"	LOOKED AFTER NORTH",VEHICLE FUEL,17/11/2023,000009255053340,7,MFG TOLLHOUSE
OXFORDSHIRE CC,CHILDREN'S & EDUCATION,THAME E&A HOME,CLOTHING AND UNIFORMS,17/11/2023,000009255052160,33.99,CUPSHE
OXFORDSHIRE CC,CHILDREN'S & EDUCATION,"	LOOKED AFTER NORTH",VEHICLE FUEL,17/11/2023,000009255053350,25.01,ESSO ERMONT WAY SSTN
OXFORDSHIRE CC,CHILDREN'S & EDUCATION,DIDCOT MOVE-ON HOME,MATERIALS,17/11/2023,000009255052452,31.05,AMAZON.CO.UK HB0PO7IU4
OXFORDSHIRE CC,PUBLIC HEALTH,WITNEY,CATERING PROVISIONS,17/11/2023,000009255051482,69.41,LIDL GB WITNEY
OXFORDSHIRE CC,CHILDREN'S & EDUCATION,FSP NON-STAFFING - CENTRAL,CATERING PROVISIONS,17/11/2023,000009255052958,39.24,SAINSBURYS S/MKTS
OXFORDSHIRE CC,CHILDREN'S & EDUCATION,FSP NON-STAFFING - CENTRAL,CATERING PROVISIONS,17/11/2023,000009255052948,58.56,SAINSBURYS S/MKTS
OXFORDSHIRE CC,CHILDREN'S & EDUCATION,"	OCCG GRANT",CATERING PROVISIONS,17/11/2023,000009255051964,11.4,TESCO STORES 2413
OXFORDSHIRE CC,CHILDREN'S & EDUCATION,CYPF ADMIN,MATERIALS,17/11/2023,000009255051624,8.2,AMZNMKTPLACE
OXFORDSHIRE CC,CHILDREN'S & EDUCATION,HOUSE PROJECT,OTHER TRANSPORT ARRANGEMENTS,17/11/2023,000009255053306,7.8,WESTGATE OXFORD CAR PA
OXFORDSHIRE CC,CHILDREN'S & EDUCATION,EYNSHAM,CATERING PROVISIONS,17/11/2023,000009255053516,1.75,CO-OPERATIVE FOOD
OXFORDSHIRE CC,CHILDREN'S & EDUCATION,THAME E&A HOME,CATERING PROVISIONS,17/11/2023,000009255052172,35.73,SAINSBURYS S/MKTS
OXFORDSHIRE CC,CHILDREN'S & EDUCATION,DISABILITIES TEAM S,FURNITURE,17/11/2023,000009255051704,104,DUNELM SOFTFURNISHINGS
OXFORDSHIRE CC,CHILDREN'S & EDUCATION,THAME E&A HOME,CATERING PROVISIONS,17/11/2023,000009255053674,6,TESCO STORES 4480
OXFORDSHIRE CC,ADULTS,CSS - BANBURY,MATERIALS,17/11/2023,000009255053752,9.2,AMZNMKTPLACE
OXFORDSHIRE CC,CHILDREN'S & EDUCATION,DISABILITIES TEAM S,FURNITURE,17/11/2023,000009255051700,82,DUNELM SOFTFURNISHINGS
OXFORDSHIRE CC,CHILDREN'S & EDUCATION,FAMILY SOLUTIONS PLUS NON-STAFF � SOUTH,PAYMENT TO GOVERNMENT DEPARTMENTS,17/11/2023,000009255053760,28,GEN REGISTER OFFICE
OXFORDSHIRE CC,CHILDREN'S & EDUCATION,FAMILY SOLUTIONS PLUS NON-STAFF � SOUTH,PAYMENTS TO TRANSPORT OPERATORS,17/11/2023,000009255053498,84.06,TRAINLINE
OXFORDSHIRE CC,CHILDREN'S & EDUCATION,"	LEAVING CARE CITY 2",CATERING,17/11/2023,000009255052464,8.79,BURGER KING
OXFORDSHIRE CC,CHILDREN'S & EDUCATION,FSP NON-STAFFING - CENTRAL,MATERIALS,17/11/2023,000009255052936,205,WWW.ARGOS.CO.UK
OXFORDSHIRE CC,CHILDREN'S & EDUCATION,"	OCCG GRANT",ENTERTAINMENT EXPENSES,17/11/2023,000009255053960,10,JUMP INC BICESTER
OXFORDSHIRE CC,CUSTOMER AND CULTURE,MUSIC UNALLOCABLE,"SUPPLIES, STATIONERY AND MATERIALS",17/11/2023,000009255053648,402.84,WWW.THERANGE.CO.UK
OXFORDSHIRE CC,CHILDREN'S & EDUCATION,DISABILITIES TEAM S,FURNITURE,17/11/2023,000009255051708,101.95,WWW.ARGOS.CO.UK
OXFORDSHIRE CC,CHILDREN'S & EDUCATION,DISABILITIES TEAM S,FURNITURE,17/11/2023,000009255051710,452,WWW.ARGOS.CO.UK
OXFORDSHIRE CC,CUSTOMER AND CULTURE,MUSIC UNALLOCABLE,"SUPPLIES, STATIONERY AND MATERIALS",17/11/2023,000009255053640,359,BALSAM HILL
OXFORDSHIRE CC,CUSTOMER AND CULTURE,"MARKETING, COMMUNICATIONS & ENGAGEMENT",CATERING,17/11/2023,000009255052994,297.5,SQ  BUTTERCUP SANDWICH
OXFORDSHIRE CC,CHILDREN'S & EDUCATION,OTFC TEAM,OTHER TRANSPORT ARRANGEMENTS,17/11/2023,000009255053412,1.2,CAR PARK CHARGES
OXFORDSHIRE CC,CHILDREN'S & EDUCATION,"	OCCG GRANT",ENTERTAINMENT EXPENSES,17/11/2023,000009255053952,25,JUMP INC BICESTER
OXFORDSHIRE CC,CUSTOMER AND CULTURE,HARD FM,PREMISES REPAIRS,17/11/2023,000009255051546,69.6,EUROCELL
OXFORDSHIRE CC,CUSTOMER AND CULTURE,BUSINESS INTELLECTUAL PROPERTY CENTRE,CATERING PROVISIONS,17/11/2023,000009255052608,7,SAINSBURYS S/MKTS
OXFORDSHIRE CC,CHILDREN'S & EDUCATION,UASC 16&17,CATERING PROVISIONS,17/11/2023,000009255051598,10,ASDA STORE 4442
OXFORDSHIRE CC,CHILDREN'S & EDUCATION,KINGFISHER,HARDWARE AND CROCKERY,17/11/2023,000009255052416,70,B & Q 1176
OXFORDSHIRE CC,CUSTOMER AND CULTURE,WALLINGFORD LIBRARY,CATERING PROVISIONS,17/11/2023,000009255053358,8.3,WAITROSE 675
OXFORDSHIRE CC,CUSTOMER AND CULTURE,BANBURY LIBRARY,POSTAGE AND DELIVERY,17/11/2023,000009255052408,1.25,POST OFFICE SELF SERVE
OXFORDSHIRE CC,CHILDREN'S & EDUCATION,VULNERABLE LEARNERS,SUBSCRIPTIONS,17/11/2023,000009255051990,155,MAGSUBCRIPTIONS COM
OXFORDSHIRE CC,CUSTOMER AND CULTURE,HARD FM,PREMISES REPAIRS,17/11/2023,000009255051538,75.23,DULUX DECORATOR CENTRE
OXFORDSHIRE CC,CHILDREN'S & EDUCATION,FAMILY SOLUTIONS PLUS NON-STAFF - NORTH,POSTAGE AND DELIVERY,17/11/2023,000009255053896,42,POST OFFICE COUNTER
OXFORDSHIRE CC,CUSTOMER AND CULTURE,SCHOOLS FM CATERING AREA 2,CATERING PROVISIONS,17/11/2023,000009255052544,18.74,TESCO STORES 2994
OXFORDSHIRE CC,CHILDREN'S & EDUCATION,FAMILY SOLUTIONS PLUS NON-STAFF - NORTH,POSTAGE AND DELIVERY,17/11/2023,000009255053904,56,POST OFFICE COUNTER
OXFORDSHIRE CC,CHILDREN'S & EDUCATION,UASC 16&17,SUBSCRIPTIONS,17/11/2023,000009255051586,35.99,PUREGYM LIMITED
OXFORDSHIRE CC,RESOURCES,ICT OPERATIONS & MAI,MATERIALS,17/11/2023,000009255053590,629.99,NETGEAR INTERNATIONAL
OXFORDSHIRE CC,CUSTOMER AND CULTURE,HARD FM,VEHICLE FUEL,17/11/2023,000009255051556,20,SAINSBURYS PETROL
OXFORDSHIRE CC,CHILDREN'S & EDUCATION,CHILDREN IN CARE NON-STAFFING - NORTH,PAYMENTS TO TRANSPORT OPERATORS,17/11/2023,000009255051870,53.08,TRAINLINE
OXFORDSHIRE CC,CHILDREN'S & EDUCATION,"	LOOKED AFTER CITY 2",PAYMENTS TO TRANSPORT OPERATORS,17/11/2023,000009255052766,74.79,TRAINLINE
OXFORDSHIRE CC,CHILDREN'S & EDUCATION,UASC 16&17,DRUGS AND MEDICAL SUPPLIES,17/11/2023,000009255051592,13.17,ROWLANDS PHARMACY
OXFORDSHIRE CC,CHILDREN'S & EDUCATION,CHILDREN IN CARE NON-STAFFING - NORTH,OTHER TRANSPORT ARRANGEMENTS,17/11/2023,000009255051880,24,SQ  ANDYCARS
OXFORDSHIRE CC,ADULTS,CSS WITNEY,MATERIALS,17/11/2023,000009255052786,39.86,AMZNMKTPLACE
OXFORDSHIRE CC,CHILDREN'S & EDUCATION,OTFC TEAM,CATERING,17/11/2023,000009255053402,12.9,COSTA COFFEE-HENLEY ON
OXFORDSHIRE CC,CUSTOMER AND CULTURE,MUSEUMS COLLECTIONS,MATERIALS,17/11/2023,000009255053884,49.61,WWW.FIRST4MAGNETS.COM
OXFORDSHIRE CC,CUSTOMER AND CULTURE,COUNTY HALL,OTHER PREMISES RELATED COSTS,17/11/2023,000009255053768,203.97,AMZNMKTPLACE
OXFORDSHIRE CC,ADULTS,CSS WANTAGE,ENTERTAINMENT EXPENSES,17/11/2023,000009255052820,11.04,HOLLYWOOD BOWL
OXFORDSHIRE CC,ADULTS,CSS WANTAGE,ENTERTAINMENT EXPENSES,17/11/2023,000009255052808,14.72,HOLLYWOOD BOWL
OXFORDSHIRE CC,CUSTOMER AND CULTURE,COUNTY HALL,OTHER PREMISES RELATED COSTS,17/11/2023,000009255052674,80.52,NEWTON NEWTON FLAG & B
OXFORDSHIRE CC,ADULTS,CSS - OXFORD,MATERIALS,17/11/2023,000009255052664,9.2,AMZNMKTPLACE
OXFORDSHIRE CC,CHILDREN'S & EDUCATION,"	LEAVING CARE CITY 2",ENTERTAINMENT EXPENSES,17/11/2023,000009255052604,6.4,HWB OXFORD
OXFORDSHIRE CC,CUSTOMER AND CULTURE,HARD FM,CLOTHING AND UNIFORMS,17/11/2023,000009255052536,86.53,SNICKERSDIRECT
OXFORDSHIRE CC,ADULTS,CSS - ABINGDON,MATERIALS,17/11/2023,000009255053942,27,POUNDLAND LTD - 1366
OXFORDSHIRE CC,CHILDREN'S & EDUCATION,PAUSE PROGRAMME,CATERING,17/11/2023,000009255052400,10.8,COSTA COFFEE 43010890
OXFORDSHIRE CC,CHILDREN'S & EDUCATION,"	LEAVING CARE NORTH",CATERING,17/11/2023,000009255052470,4.9,STARBUCKS
OXFORDSHIRE CC,ADULTS,ADULTS AT RISK,MATERIALS,17/11/2023,000009255051748,149.99,AMZNMKTPLACE
OXFORDSHIRE CC,CHILDREN'S & EDUCATION,THAME E&A HOME,MATERIALS,17/11/2023,000009255052424,5.99,AMZNMKTPLACE
OXFORDSHIRE CC,CHILDREN'S & EDUCATION,FAMILY SOLUTIONS PLUS NON-STAFF - NORTH,PAYMENTS TO TRANSPORT OPERATORS,17/11/2023,000009255053422,53.39,TRAINLINE
OXFORDSHIRE CC,CHILDREN'S & EDUCATION,PAUSE PROGRAMME,PAYMENTS TO VOLUNTARY BODIES,17/11/2023,000009255052394,7.5,SALVATION ARMY
OXFORDSHIRE CC,CHILDREN'S & EDUCATION,"	SEN/ICT EQUIPMENT",PURCHASE OF IT EQUIPMENT,17/11/2023,000009255053890,14.99,AMAZON.CO.UK HB9SF0UL4
OXFORDSHIRE CC,CHILDREN'S & EDUCATION,NTH EARLY HELP-BNRBY,CATERING PROVISIONS,17/11/2023,000009255053742,16.9,MARKS&SPENCER PLC
OXFORDSHIRE CC,CUSTOMER AND CULTURE,KNIGHTS COURT,CATERING PROVISIONS,17/11/2023,000009255052560,13.8,TESCO STORES 2990
OXFORDSHIRE CC,CHILDREN'S & EDUCATION,PAUSE PROGRAMME,CATERING,17/11/2023,000009255052442,8.7,COSTA COFFEE 43011919
OXFORDSHIRE CC,ADULTS,CSS WANTAGE,HOSPITALITY EXPENSES,17/11/2023,000009255051456,4.1,SAINSBURYS S/MKT
OXFORDSHIRE CC,CUSTOMER AND CULTURE,MUSEUMS COLLECTIONS,MATERIALS,17/11/2023,000009255053876,39.95,AMZNMKTPLACE
OXFORDSHIRE CC,CUSTOMER AND CULTURE,HOME LIBRARY SERVICE,MATERIALS,17/11/2023,000009255052652,79,AMZNMKTPLACE
OXFORDSHIRE CC,ADULTS,CSS WITNEY,CATERING PROVISIONS,17/11/2023,000009255052596,37.1,CO-OP GROUP 070582
OXFORDSHIRE CC,PUBLIC HEALTH,CHILDREN IN CARE NON-STAFFING - SOUTH,OTHER EXPENSES,17/11/2023,000009255051474,100,ASDA STORES LTD
OXFORDSHIRE CC,CHILDREN'S & EDUCATION,ATV ADOPTION OXFORD,CATERING PROVISIONS,17/11/2023,000009255053790,4.15,CO-OPERATIVE FOOD
OXFORDSHIRE CC,CHILDREN'S & EDUCATION,THAME E&A HOME,CATERING PROVISIONS,17/11/2023,000009255053196,10.55,SAINSBURYS S/MKTS
OXFORDSHIRE CC,CUSTOMER AND CULTURE,SCHOOLS FM CATERING AREA 4,CATERING PROVISIONS,17/11/2023,000009255052242,20.3,SAINSBURYS S/MKTS
OXFORDSHIRE CC,CHILDREN'S & EDUCATION,40 THE MOORS,CATERING PROVISIONS,17/11/2023,000009255052922,12.7,TESCO STORES 2788
OXFORDSHIRE CC,CHILDREN'S & EDUCATION,VULNERABLE LEARNERS,MATERIALS,17/11/2023,000009255051980,200,AMAZON.CO.UK HB0RY8754
OXFORDSHIRE CC,CHILDREN'S & EDUCATION,NTS UASC AGENCY,CATERING PROVISIONS,17/11/2023,000009255053508,3.35,CO-OPERATIVE FOOD
OXFORDSHIRE CC,CUSTOMER AND CULTURE,THAME LIBRARY,CATERING PROVISIONS,17/11/2023,000009255053266,1.1,SAINSBURYS SUPERMA
OXFORDSHIRE CC,CUSTOMER AND CULTURE,THAME LIBRARY,"NEWSPAPERS, PERIODICALS AND PUBLICATIONS",17/11/2023,000009255053258,4.5,SAINSBURYS SUPERMA
OXFORDSHIRE CC,CHILDREN'S & EDUCATION,NTS UASC AGENCY,MATERIALS,17/11/2023,000009255051642,6,POUNDLAND LTD - 1366
OXFORDSHIRE CC,ENVIRONMENT AND PLACE,COUNTRYSIDE PREMISES,GENERAL REFUSE COLLECTION AND DISPOSAL,17/11/2023,000009255052448,426,M & M SKIP HIRE
OXFORDSHIRE CC,CUSTOMER AND CULTURE,HARD FM,FURNITURE,17/11/2023,000009255052528,117.8,VICTORIAN PLUMBING LTD
OXFORDSHIRE CC,CHILDREN'S & EDUCATION,"	DIRECTOR'S OFFICE",CATERING PROVISIONS,17/11/2023,000009255052482,4.95,SAINSBURY'S S/MKT
OXFORDSHIRE CC,ADULTS,ADULTS AT RISK,MATERIALS,17/11/2023,000009255051756,-149.99,AMZNMKTPLACE
OXFORDSHIRE CC,CHILDREN'S & EDUCATION,"	LEAVING CARE NORTH",OTHER TRANSPORT ARRANGEMENTS,17/11/2023,000009255053392,-10,WWW.ANYVAN.COM
OXFORDSHIRE CC,CHILDREN'S & EDUCATION,40 THE MOORS,CATERING PROVISIONS,17/11/2023,000009255053624,12.83,SAINSBURYS S/MKTS
OXFORDSHIRE CC,CHILDREN'S & EDUCATION,THAME E&A HOME,CATERING,17/11/2023,000009255052370,2.9,THAME BP SF CONNECT
OXFORDSHIRE CC,CHILDREN'S & EDUCATION,"	OCCG GRANT",CATERING,17/11/2023,000009255051950,10.21,MCDONALDS
OXFORDSHIRE CC,CHILDREN'S & EDUCATION,EYNSHAM,CLOTHING AND UNIFORMS,17/11/2023,000009255053522,3,PRIMARK 440
OXFORDSHIRE CC,RESOURCES,ICT OPERATIONS & MAI,PURCHASE OF IT EQUIPMENT,17/11/2023,000009255053596,"6,740.00",AMZNMKTPLACE
OXFORDSHIRE CC,CHILDREN'S & EDUCATION,THAME E&A HOME,CATERING PROVISIONS,17/11/2023,000009255053190,2.5,THAME BP SF CONNECT
OXFORDSHIRE CC,CHILDREN'S & EDUCATION,EYNSHAM,CATERING PROVISIONS,17/11/2023,000009255053608,1.75,SAINSBURYS S/MKTS
OXFORDSHIRE CC,RESOURCES,SCHOOLS FM CATERING AREA 2,CATERING PROVISIONS,17/11/2023,000009255053324,116.24,SAINSBURY'S S/MKT
OXFORDSHIRE CC,ADULTS,CSS WALLINGFORD,MATERIALS,17/11/2023,000009255051464,18.47,AMZNMKTPLACE
OXFORDSHIRE CC,CHILDREN'S & EDUCATION,EYNSHAM,CLOTHING AND UNIFORMS,17/11/2023,000009255053616,34.5,PRIMARK 440
OXFORDSHIRE CC,ADULTS,CSS - OXFORD,MANAGEMENT CONSULTANT FEES,17/11/2023,000009255052660,159,TVLICENSING.CO.UK
OXFORDSHIRE CC,CUSTOMER AND CULTURE,SCHOOLS FM CATERING AREA 2,CATERING PROVISIONS,17/11/2023,000009255051674,41.71,SAINSBURY'S S/MKT
OXFORDSHIRE CC,CUSTOMER AND CULTURE,SCHOOLS FM CATERING AREA 2,MATERIALS,17/11/2023,000009255051682,13.99,ARGOS KIDLINGTON INSID
OXFORDSHIRE CC,ENVIRONMENT AND PLACE,MAINTENANCE STAFF,MATERIALS,17/11/2023,000009255052686,26.09,AMZNMKTPLACE
OXFORDSHIRE CC,CUSTOMER AND CULTURE,MEMBERS' BAR,CATERING PROVISIONS,17/11/2023,000009255052670,15,SAINSBURYS S/MKTS
OXFORDSHIRE CC,CHILDREN'S & EDUCATION,THAME E&A HOME,CATERING PROVISIONS,17/11/2023,000009255052568,2.5,THAME BP SF CONNECT
OXFORDSHIRE CC,CHILDREN'S & EDUCATION,"	LEAVING CARE SOUTH",TELEPHONE - EQUIPMENT,17/11/2023,000009255052272,-12,
OXFORDSHIRE CC,CHILDREN'S & EDUCATION,40 THE MOORS,CATERING,16/11/2023,000009248988248,62.79,JUST EAT
OXFORDSHIRE CC,CUSTOMER AND CULTURE,"MARKETING, COMMUNICATIONS & ENGAGEMENT","PUBLICITY, PROMOTIONS AND ADVERTISEMENT",16/11/2023,000009248988492,31.18,SNAP INC SNAP SNAP ADS
OXFORDSHIRE CC,CHILDREN'S & EDUCATION,EYNSHAM,OTHER COMMUNICATIONS,16/11/2023,000009248988554,10.99,NETFLIX.COM
OXFORDSHIRE CC,CHILDREN'S & EDUCATION,40 THE MOORS,CLOTHING AND UNIFORMS,16/11/2023,000009248988246,32.2,MGP VINTED 76717393
OXFORDSHIRE CC,CHILDREN'S & EDUCATION,KINGFISHER,CLOTHING AND UNIFORMS,16/11/2023,000009248988702,119.99,N V L T Y
OXFORDSHIRE CC,CHILDREN'S & EDUCATION,THAME E&A HOME,CATERING PROVISIONS,16/11/2023,000009248988334,1.8,SELECTA U.K. LIMITED
OXFORDSHIRE CC,CHILDREN'S & EDUCATION,THAME E&A HOME,CATERING PROVISIONS,16/11/2023,000009248988338,2,SELECTA U.K. LIMITED
OXFORDSHIRE CC,CHILDREN'S & EDUCATION,THAME E&A HOME,CATERING PROVISIONS,16/11/2023,000009248988336,1.8,SELECTA U.K. LIMITED
OXFORDSHIRE CC,CHILDREN'S & EDUCATION,THAME E&A HOME,ENTERTAINMENT EXPENSES,16/11/2023,000009248988332,11.9,THAME LEISURE CENTRE
OXFORDSHIRE CC,CHILDREN'S & EDUCATION,40 THE MOORS,CATERING PROVISIONS,16/11/2023,000009248988694,5.2,CO-OPERATIVE FOOD
OXFORDSHIRE CC,CHILDREN'S & EDUCATION,"	LEAVING CARE CITY 1",OTHER TRANSPORT ARRANGEMENTS,16/11/2023,000009248988290,3.1,RINGGO PARKING
OXFORDSHIRE CC,CHILDREN'S & EDUCATION,KINGFISHER,POSTAGE AND DELIVERY,16/11/2023,000009248988572,7.35,POST OFFICE COUNTER
OXFORDSHIRE CC,CHILDREN'S & EDUCATION,EYNSHAM,CATERING,16/11/2023,000009248988154,4,CO-OPERATIVE FOOD
OXFORDSHIRE CC,CHILDREN'S & EDUCATION,DIDCOT MOVE-ON HOME,CATERING PROVISIONS,16/11/2023,000009248988628,23,TESCO STORES 2413
OXFORDSHIRE CC,CHILDREN'S & EDUCATION,UASC 16&17,CATERING PROVISIONS,16/11/2023,000009248988180,10,TESCO STORES 2994
OXFORDSHIRE CC,CHILDREN'S & EDUCATION,UASC 16&17,MATERIALS,16/11/2023,000009248988178,102.48,SPORTSDIRECT 218
OXFORDSHIRE CC,CHILDREN'S & EDUCATION,UASC 16&17,MATERIALS,16/11/2023,000009248988176,18.99,SPORTSDIRECT 218
OXFORDSHIRE CC,CHILDREN'S & EDUCATION,UASC 16&17,MATERIALS,16/11/2023,000009248988174,97.98,SPORTSDIRECT 218
OXFORDSHIRE CC,CHILDREN'S & EDUCATION,DIDCOT MOVE-ON HOME,CLEANING MATERIALS,16/11/2023,000009248988626,13.72,B&M 514 - DICOT
OXFORDSHIRE CC,CHILDREN'S & EDUCATION,EET SERVICE,CLOTHING AND UNIFORMS,16/11/2023,000009248988424,100,SPORTSDIRECT.COM
OXFORDSHIRE CC,CHILDREN'S & EDUCATION,EYNSHAM,OTHER TRANSPORT ARRANGEMENTS,16/11/2023,000009248988656,3.8,WESTGATE OXFORD CAR PA
OXFORDSHIRE CC,ADULTS,INCOME TEAM,PAYMENT TO GOVERNMENT DEPARTMENTS,16/11/2023,000009248988242,1.5,FIND A WILL
OXFORDSHIRE CC,CHILDREN'S & EDUCATION,"	LEAVING CARE CITY 1",OTHER TRANSPORT ARRANGEMENTS,16/11/2023,000009248988288,3.1,RINGGO PARKING
OXFORDSHIRE CC,CHILDREN'S & EDUCATION,UASC 16&17,MATERIALS,16/11/2023,000009248988172,63.99,SPORTSDIRECT 218
OXFORDSHIRE CC,CUSTOMER AND CULTURE,CATERING MANAGEMENT SOFT FM,PAYMENTS TO TRANSPORT OPERATORS,16/11/2023,000009248988152,109.67,ENTERPRISE RENT A CAR
OXFORDSHIRE CC,CHILDREN'S & EDUCATION,"	LEAVING CARE NORTH",CATERING,16/11/2023,000009248988604,6.5,COSTA COFFEE 43011919
OXFORDSHIRE CC,CHILDREN'S & EDUCATION,FAMILY SOLUTIONS PLUS NON-STAFF - NORTH,PAYMENTS TO TRANSPORT OPERATORS,16/11/2023,000009248988618,35.15,TRAINLINE
OXFORDSHIRE CC,CUSTOMER AND CULTURE,LIBRARY COLLECTIONS,"BOOKS, DVDS AND CDS",16/11/2023,000009248988284,708.5,OVERDRIVE DIST
OXFORDSHIRE CC,CUSTOMER AND CULTURE,LIB ICT SUPPRT&MAINT,PURCHASE OF IT EQUIPMENT,16/11/2023,000009248988374,24.99,AMZNMKTPLACE
OXFORDSHIRE CC,CHILDREN'S & EDUCATION,FAMILY SOLUTIONS PLUS NON-STAFF - NORTH,PAYMENTS TO TRANSPORT OPERATORS,16/11/2023,000009248988696,58.7,WWW.GWR.COM
OXFORDSHIRE CC,CHILDREN'S & EDUCATION,WITNEY,CATERING PROVISIONS,16/11/2023,000009248988614,19.4,CO-OP GROUP 070582
OXFORDSHIRE CC,CHILDREN'S & EDUCATION,UASC 16&17,CATERING PROVISIONS,16/11/2023,000009248988182,32,ASDA STORE 4442
OXFORDSHIRE CC,CHILDREN'S & EDUCATION,"	LAC PUPIL PREMIUM",MATERIALS,16/11/2023,000009248988664,400,VOUCHER EXPRESS
OXFORDSHIRE CC,CHILDREN'S & EDUCATION,CHILDREN IN CARE NON-STAFFING - CENTRL 1,PAYMENT TO GOVERNMENT DEPARTMENTS,16/11/2023,000009248988192,22,OXFORDSHIRE CC WEB1
OXFORDSHIRE CC,CHILDREN'S & EDUCATION,KINGFISHER,CATERING PROVISIONS,16/11/2023,000009248988160,40,TESCO GIFT CARD
OXFORDSHIRE CC,CHILDREN'S & EDUCATION,EYNSHAM,OTHER TRANSPORT ARRANGEMENTS,16/11/2023,000009248988684,4.8,WESTGATE OXFORD CAR PA
OXFORDSHIRE CC,CHILDREN'S & EDUCATION,EYNSHAM,STATIONERY,16/11/2023,000009248988690,1.99,RYMAN 1172
OXFORDSHIRE CC,ADULTS,CSS WANTAGE,CATERING PROVISIONS,16/11/2023,000009248988460,152.65,ASDA GROCERIES ONLINE
OXFORDSHIRE CC,ADULTS,CSS - ABINGDON,OTHER TRANSPORT ARRANGEMENTS,16/11/2023,000009248988706,4.8,WESTGATE OXFORD CAR PA
OXFORDSHIRE CC,CUSTOMER AND CULTURE,SCHOOLS FM CATERING AREA 2,CATERING PROVISIONS,16/11/2023,000009248988210,45.94,BOOKER LTD - 38584104
OXFORDSHIRE CC,CHILDREN'S & EDUCATION,EYNSHAM,PROFESSIONAL SUBSCRIPTIONS,16/11/2023,000009248988186,23.78,ONTOPUP.COM
OXFORDSHIRE CC,ADULTS,CSS WITNEY,MATERIALS,16/11/2023,000009248988454,64.41,WWW.BETTERMOBILITY.CO.
OXFORDSHIRE CC,CHILDREN'S & EDUCATION,REACTIVE MAINTENANCE,PREMISES REPAIRS,16/11/2023,000009248988708,58.08,B AND Q
OXFORDSHIRE CC,CHILDREN'S & EDUCATION,EYNSHAM,CATERING,16/11/2023,000009248988686,27.27,PYD TOMMI'S OXFORD
OXFORDSHIRE CC,CHILDREN'S & EDUCATION,EYNSHAM,MATERIALS,16/11/2023,000009248988682,5,LUSH UK
OXFORDSHIRE CC,CHILDREN'S & EDUCATION,EYNSHAM,DRUGS AND MEDICAL SUPPLIES,16/11/2023,000009248988688,4,SUPERDRUG STORES PLC
OXFORDSHIRE CC,ADULTS,CSS WITNEY,MATERIALS,16/11/2023,000009248988446,6.49,AMZNMKTPLACE
OXFORDSHIRE CC,ADULTS,CSS WITNEY,MATERIALS,16/11/2023,000009248988442,8.41,AMZNMKTPLACE
OXFORDSHIRE CC,CHILDREN'S & EDUCATION,EYNSHAM,CATERING,16/11/2023,000009248988692,5.8,THE SHAKE LAB OXFORD
OXFORDSHIRE CC,ADULTS,CSS WALLINGFORD,CATERING PROVISIONS,16/11/2023,000009248988140,18.5,WAITROSE 675
OXFORDSHIRE CC,CHILDREN'S & EDUCATION,"	HOME SUPPORT",IT SOFTWARE,16/11/2023,000009248988228,25,BSL COURSE  #357942
OXFORDSHIRE CC,ADULTS,INCOME TEAM,PAYMENT TO GOVERNMENT DEPARTMENTS,16/11/2023,000009248988240,1.5,FIND A WILL
OXFORDSHIRE CC,CHILDREN'S & EDUCATION,"	LEAVING CARE NORTH",OTHER TRANSPORT ARRANGEMENTS,16/11/2023,000009248988580,5,GLOUCESTER STREET CAR
OXFORDSHIRE CC,ADULTS,CSS WITNEY,MATERIALS,16/11/2023,000009248988440,5.75,AMZNMKTPLACE
OXFORDSHIRE CC,CHILDREN'S & EDUCATION,CHILDREN IN CARE NON-STAFFING - CENTRL 1,OTHER TRANSPORT ARRANGEMENTS,16/11/2023,000009248988190,49.5,WWW.THEKEY.CO.UK
OXFORDSHIRE CC,ADULTS,CSS WITNEY,MATERIALS,16/11/2023,000009248988456,15.67,AMZNMKTPLACE
OXFORDSHIRE CC,ADULTS,CSS WITNEY,MATERIALS,16/11/2023,000009248988452,4.98,AMZNMKTPLACE
OXFORDSHIRE CC,ADULTS,CSS WITNEY,MATERIALS,16/11/2023,000009248988448,21.99,AMZNMKTPLACE
OXFORDSHIRE CC,ADULTS,CSS - OXFORD,VEHICLES AND PLANT - REPAIRS AND MAIN,16/11/2023,000009248988406,76.7,LSW
OXFORDSHIRE CC,CHILDREN'S & EDUCATION,OTFC TEAM,CATERING PROVISIONS,16/11/2023,000009248988616,1.3,CO-OP GROUP 310626
OXFORDSHIRE CC,ADULTS,CSS WITNEY,MATERIALS,16/11/2023,000009248988436,13.98,AMAZON.CO.UK HB2OB4284
OXFORDSHIRE CC,ADULTS,CSS WITNEY,MATERIALS,16/11/2023,000009248988450,7.96,AMZNMKTPLACE
OXFORDSHIRE CC,ADULTS,CSS WALLINGFORD,MATERIALS,16/11/2023,000009248988142,7.79,AMZNMKTPLACE
OXFORDSHIRE CC,ADULTS,CSS WITNEY,MATERIALS,16/11/2023,000009248988444,52.47,AMZNMKTPLACE
OXFORDSHIRE CC,ENVIRONMENT AND PLACE,PARKING STAFF,MATERIALS,16/11/2023,000009248988188,3.99,AMZNMKTPLACE
OXFORDSHIRE CC,ADULTS,CSS WITNEY,MATERIALS,16/11/2023,000009248988438,33.48,AMAZON.CO.UK HB7TW52Z4
OXFORDSHIRE CC,CHILDREN'S & EDUCATION,40 THE MOORS,CLEANING MATERIALS,16/11/2023,000009248988252,22.47,AMZNMKTPLACE
OXFORDSHIRE CC,CHILDREN'S & EDUCATION,EET SERVICE,TELEPHONE - EQUIPMENT,16/11/2023,000009248988426,20,EE TOPUP  VESTA
OXFORDSHIRE CC,CHILDREN'S & EDUCATION,THAME E&A HOME,CATERING PROVISIONS,16/11/2023,000009248988532,14.45,WELCOME BREAK-OXFORD S
OXFORDSHIRE CC,ENTERPRISEVC,,CAR LEASING - PRIVATE RENTALS,16/11/2023,000009248988570,"1,957.45",ENTERPRISE RENT-A-CAR
OXFORDSHIRE CC,ADULTS,PAUSE PROGRAMME,OTHER TRANSPORT ARRANGEMENTS,16/11/2023,000009248988266,2,OXFORDBUS.CO.UK
OXFORDSHIRE CC,ADULTS,PAUSE PROGRAMME,OTHER TRANSPORT ARRANGEMENTS,16/11/2023,000009248988264,2,OXFORDBUS.CO.UK
OXFORDSHIRE CC,CHILDREN'S & EDUCATION,"	LEAVING CARE NORTH",PAYMENT TO GOVERNMENT DEPARTMENTS,16/11/2023,000009248988582,6.5,OXFORD CITY COUNCIL
OXFORDSHIRE CC,CHILDREN'S & EDUCATION,"	LEAVING CARE SOUTH",ENTERTAINMENT EXPENSES,16/11/2023,000009248988254,291.6,SQ  ESCAPE HUNT OXFORD
OXFORDSHIRE CC,RESOURCES,MOTOR FLEET,MOTOR IF OWN DAMAGE,16/11/2023,000009248988516,957.6,SUMUP   PERFECT FINISH
OXFORDSHIRE CC,CUSTOMER AND CULTURE,HEADINGTON LIBRARY,"NEWSPAPERS, PERIODICALS AND PUBLICATIONS",16/11/2023,000009248988390,93.6,NEWSTEAM GROUP
OXFORDSHIRE CC,CHILDREN'S & EDUCATION,40 THE MOORS,CLEANING MATERIALS,16/11/2023,000009248988250,21.31,AMZNMKTPLACE
OXFORDSHIRE CC,CUSTOMER AND CULTURE,HARD FM,PREMISES REPAIRS,16/11/2023,000009248988164,34,WICKES OXFORD
OXFORDSHIRE CC,CHILDREN'S & EDUCATION,PAUSE PROGRAMME,CATERING PROVISIONS,16/11/2023,000009248988342,8.4,COSTA THAME
OXFORDSHIRE CC,ADULTS,CSS WITNEY,CATERING PROVISIONS,16/11/2023,000009248988380,32.36,CO-OP GROUP 070582
OXFORDSHIRE CC,ADULTS,PAUSE PROGRAMME,OTHER TRANSPORT ARRANGEMENTS,16/11/2023,000009248988262,2,OXFORDBUS.CO.UK
OXFORDSHIRE CC,ADULTS,PAUSE PROGRAMME,OTHER TRANSPORT ARRANGEMENTS,16/11/2023,000009248988260,2,OXFORDBUS.CO.UK
OXFORDSHIRE CC,RESOURCES,ICT OPERATIONS & MAI,MATERIALS,16/11/2023,000009248988672,152.5,AMZNMKTPLACE
OXFORDSHIRE CC,RESOURCES,PERSONNEL,"SUPPLIES, STATIONERY AND MATERIALS",16/11/2023,000009248988414,9.63,AMZNMKTPLACE
OXFORDSHIRE CC,CUSTOMER AND CULTURE,CATERING MANAGEMENT SOFT FM,MATERIALS,16/11/2023,000009248988698,43.02,AMAZON.CO.UK HB80952A4
OXFORDSHIRE CC,CHILDREN'S & EDUCATION,NTS UASC AGENCY,CATERING PROVISIONS,16/11/2023,000009248988584,1.4,CO-OPERATIVE FOOD
OXFORDSHIRE CC,PUBLIC HEALTH,CHILDREN IN CARE NON-STAFFING - SOUTH,OTHER TRANSPORT ARRANGEMENTS,16/11/2023,000009248988148,10,NEALE'S TAXIS LIMI
OXFORDSHIRE CC,CHILDREN'S & EDUCATION,VULNERABLE LEARNERS,EDUCATIONAL AND VOCATIONAL TRAINING ,16/11/2023,000009248988280,30,EB  SELF-REGULATION IN
OXFORDSHIRE CC,CHILDREN'S & EDUCATION,THAME E&A HOME,OTHER TRANSPORT ARRANGEMENTS,16/11/2023,000009248988296,15.2,UNION STREET CAR PARK
OXFORDSHIRE CC,CHILDREN'S & EDUCATION,EYNSHAM,OTHER TRANSPORT ARRANGEMENTS,16/11/2023,000009248988144,15.6,RINGGO PARKING
OXFORDSHIRE CC,PUBLIC HEALTH,CHILDREN IN CARE NON-STAFFING - SOUTH,OTHER TRANSPORT ARRANGEMENTS,16/11/2023,000009248988150,17.92,TRAINLINE
OXFORDSHIRE CC,CHILDREN'S & EDUCATION,THAME E&A HOME,OTHER TRANSPORT ARRANGEMENTS,16/11/2023,000009248988314,15.2,UNION STREET CAR PARK
OXFORDSHIRE CC,CHILDREN'S & EDUCATION,QUALITY ASSURANCE SOUTH TEAM,PAYMENTS TO TRANSPORT OPERATORS,16/11/2023,000009248988742,77.64,TRAINLINE
OXFORDSHIRE CC,CHILDREN'S & EDUCATION,UASC 16&17,CLEANING MATERIALS,16/11/2023,000009248988610,61.01,WWW VITA POINT CO UK
OXFORDSHIRE CC,ADULTS,CSS WANTAGE,MATERIALS,16/11/2023,000009248988458,4.49,AMZNMKTPLACE
OXFORDSHIRE CC,CHILDREN'S & EDUCATION,THAME E&A HOME,OTHER TRANSPORT ARRANGEMENTS,16/11/2023,000009248988226,2,OCC PR WATER EATON FAM
OXFORDSHIRE CC,ADULTS,THAME E&A HOME,OTHER TRANSPORT ARRANGEMENTS,16/11/2023,000009248988158,5.5,CHERWELL
OXFORDSHIRE CC,CHILDREN'S & EDUCATION,"	SENSS TRAINING",EDUCATIONAL AND VOCATIONAL TRAINING ,16/11/2023,000009248988468,60,PAYPAL  ATTWOODGARN
OXFORDSHIRE CC,CORPORATE CORE,,STATIONERY,16/11/2023,000009248988568,25.2,LYRECO UK LTD
OXFORDSHIRE CC,CORPORATE CORE,,STATIONERY,16/11/2023,000009248988562,224.08,LYRECO UK LTD
OXFORDSHIRE CC,CORPORATE CORE,,STATIONERY,16/11/2023,000009248988558,141.6,LYRECO UK LTD
OXFORDSHIRE CC,CORPORATE CORE,,STATIONERY,16/11/2023,000009248988556,231.49,LYRECO UK LTD
OXFORDSHIRE CC,CORPORATE CORE,,STATIONERY,16/11/2023,000009248988564,162.98,LYRECO UK LTD
OXFORDSHIRE CC,CORPORATE CORE,,STATIONERY,16/11/2023,000009248988560,19.68,LYRECO UK LTD
OXFORDSHIRE CC,CUSTOMER AND CULTURE,HARD FM,MATERIALS,16/11/2023,000009248988372,19.96,AMZNMKTPLACE
OXFORDSHIRE CC,CUSTOMER AND CULTURE,"MARKETING, COMMUNICATIONS & ENGAGEMENT",CATERING PROVISIONS,16/11/2023,000009248988490,116.86,TESCO STORES 2994
OXFORDSHIRE CC,ADULTS,CSS WANTAGE,MATERIALS,16/11/2023,000009248988462,6.99,AMZNMKTPLACE
OXFORDSHIRE CC,ADULTS,CSS WANTAGE,CATERING PROVISIONS,16/11/2023,000009248988464,-1.25,ASDA GROCERIES ONLINE
OXFORDSHIRE CC,ADULTS,THAME E&A HOME,OTHER TRANSPORT ARRANGEMENTS,16/11/2023,000009248988156,2,STGCOACH/CTYLINK
OXFORDSHIRE CC,CHILDREN'S & EDUCATION,CHILDREN IN CARE NON-STAFFING - CENTRL 1,PAYMENTS TO TRANSPORT OPERATORS,16/11/2023,000009248988194,-12.5,TRAINLINE
OXFORDSHIRE CC,CHILDREN'S & EDUCATION,FIELDWORK UASC,OTHER TRANSPORT ARRANGEMENTS,16/11/2023,000009248988704,4.5,OXFORD BUS COMPANY
OXFORDSHIRE CC,RESOURCES,MOTOR FLEET,MOTOR IF OWN DAMAGE,16/11/2023,000009248988522,-957.6,SUMUP   PERFECT FINISH
OXFORDSHIRE CC,CHILDREN'S & EDUCATION,PAUSE PROGRAMME,MATERIALS,16/11/2023,000009248988340,24.5,THEWORKS.CO.UK
OXFORDSHIRE CC,CHILDREN'S & EDUCATION,"	MALTFIELD HOUSE",STATIONERY,16/11/2023,000009248988552,58.49,STAPLES
OXFORDSHIRE CC,CHILDREN'S & EDUCATION,THAME E&A HOME,CATERING EQUIPMENT,16/11/2023,000009248988700,35.4,THAME BP SF CONNECT
OXFORDSHIRE CC,RESOURCES,ICT OPERATIONS & MAI,PURCHASE OF IT EQUIPMENT,16/11/2023,000009248988674,284.52,AMZNMKTPLACE
OXFORDSHIRE CC,ADULTS,CSS WITNEY,MANAGEMENT CONSULTANT FEES,16/11/2023,000009248988434,159,TVLICENSING.CO.UK
OXFORDSHIRE CC,RESOURCES,ICT OPERATIONS & MAI,MATERIALS,16/11/2023,000009248988676,248.75,AMZNMKTPLACE
OXFORDSHIRE CC,CHILDREN'S & EDUCATION,"	LEAVING CARE NORTH",CATERING,16/11/2023,000009248988574,8.68,MCDONALDS
OXFORDSHIRE CC,CHILDREN'S & EDUCATION,"	LEAVING CARE NORTH",OTHER TRANSPORT ARRANGEMENTS,16/11/2023,000009248988762,33.6,GOGREENT
OXFORDSHIRE CC,CUSTOMER AND CULTURE,COMMUNITY PARTNERSHIP TEAM,CATERING PROVISIONS,16/11/2023,000009248988224,24.09,ALDI 99 775
OXFORDSHIRE CC,CUSTOMER AND CULTURE,HARD FM,PREMISES REPAIRS,16/11/2023,000009248988166,27.37,HOWDENS - OXFORD D879
OXFORDSHIRE CC,CHILDREN'S & EDUCATION,"	LEAVING CARE NORTH",CATERING,16/11/2023,000009248988578,9.11,MCDONALDS
OXFORDSHIRE CC,CUSTOMER AND CULTURE,HARD FM,PREMISES REPAIRS,16/11/2023,000009248988168,148.12,HOWDENS - OXFORD D879
OXFORDSHIRE CC,CUSTOMER AND CULTURE,HARD FM,PREMISES REPAIRS,16/11/2023,000009248988170,-28.21,HOWDENS - OXFORD D879
OXFORDSHIRE CC,CHILDREN'S & EDUCATION,FAMILY SOLUTIONS PLUS NON-STAFF - NORTH,STATIONERY,16/11/2023,000009248988764,18.36,SNAPFISH UK
OXFORDSHIRE CC,RESOURCES,MOTOR FLEET,MOTOR IF OWN DAMAGE,16/11/2023,000009248988528,-429.6,SUMUP   PERFECT FINISH
OXFORDSHIRE CC,RESOURCES,MOTOR FLEET,MOTOR IF OWN DAMAGE,16/11/2023,000009248988526,-288,SUMUP   PERFECT FINISH
OXFORDSHIRE CC,RESOURCES,MOTOR FLEET,MOTOR IF OWN DAMAGE,16/11/2023,000009248988530,-559.2,SUMUP   PERFECT FINISH
OXFORDSHIRE CC,RESOURCES,MOTOR FLEET,MOTOR IF OWN DAMAGE,16/11/2023,000009248988524,"-1,203.72",SUMUP   PERFECT FINISH
OXFORDSHIRE CC,RESOURCES,MOTOR FLEET,MOTOR IF OWN DAMAGE,16/11/2023,000009248988520,"-1,152.00",SUMUP   PERFECT FINISH
OXFORDSHIRE CC,RESOURCES,MOTOR FLEET,MOTOR IF OWN DAMAGE,16/11/2023,000009248988518,"-1,337.76",SUMUP   PERFECT FINISH
OXFORDSHIRE CC,CHILDREN'S & EDUCATION,40 THE MOORS,CLEANING MATERIALS,15/11/2023,000009243104884,9.99,AMZNMKTPLACE
OXFORDSHIRE CC,CHILDREN'S & EDUCATION,UASC 16&17,MATERIALS,15/11/2023,000009243104918,85.54,AMZNMKTPLACE
OXFORDSHIRE CC,ADULTS,CSS WANTAGE,MATERIALS,15/11/2023,000009243105098,4.98,AMZNMKTPLACE
OXFORDSHIRE CC,CUSTOMER AND CULTURE,"MARKETING, COMMUNICATIONS & ENGAGEMENT","PUBLICITY, PROMOTIONS AND ADVERTISEMENT",15/11/2023,000009243105132,32.41,SNAP INC SNAP SNAP ADS
OXFORDSHIRE CC,CHILDREN'S & EDUCATION,40 THE MOORS,POCKET MONEY (PAID TO CHILDREN),15/11/2023,000009243105236,9.99,CO-OPERATIVE FOOD
OXFORDSHIRE CC,CHILDREN'S & EDUCATION,40 THE MOORS,CLOTHING AND UNIFORMS,15/11/2023,000009243105234,80,JD SPORTS FASHION PLC
OXFORDSHIRE CC,RESOURCES,INFORMATION MGT,"BOOKS, DVDS AND CDS",15/11/2023,000009243105078,29.97,AMAZON.CO.UK HB8N726P4
OXFORDSHIRE CC,ADULTS,THAME E&A HOME,PAYMENTS TO TRANSPORT OPERATORS,15/11/2023,000009243104782,8.65,TRAINLINE
OXFORDSHIRE CC,CHILDREN'S & EDUCATION,40 THE MOORS,CATERING PROVISIONS,15/11/2023,000009243105238,39.95,SAINSBURYS S/MKTS
OXFORDSHIRE CC,CHILDREN'S & EDUCATION,OTFC TEAM,CATERING,15/11/2023,000009243105218,14.7,CHERWELL VALLEY COSTA
OXFORDSHIRE CC,CHILDREN'S & EDUCATION,UASC 16&17,MATERIALS,15/11/2023,000009243104914,30.22,AMZNMKTPLACE
OXFORDSHIRE CC,CHILDREN'S & EDUCATION,UASC 16&17,MATERIALS,15/11/2023,000009243104916,45.33,AMZNMKTPLACE
OXFORDSHIRE CC,CHILDREN'S & EDUCATION,"	OCCG GRANT",CATERING PROVISIONS,15/11/2023,000009243105350,24.3,TESCO STORES 2064
OXFORDSHIRE CC,CHILDREN'S & EDUCATION,NTS UASC AGENCY,MATERIALS,15/11/2023,000009243104850,136.99,AMZNMKTPLACE
OXFORDSHIRE CC,CHILDREN'S & EDUCATION,"	LEAVING CARE NORTH",OTHER TRANSPORT ARRANGEMENTS,15/11/2023,000009243105208,80,WWW.ANYVAN.COM
OXFORDSHIRE CC,CUSTOMER AND CULTURE,MUSIC UNALLOCABLE,"SUPPLIES, STATIONERY AND MATERIALS",15/11/2023,000009243105284,124.1,BOOSEY & HAWKES
OXFORDSHIRE CC,CUSTOMER AND CULTURE,MUSIC UNALLOCABLE,"SUPPLIES, STATIONERY AND MATERIALS",15/11/2023,000009243105282,104.1,BOOSEY & HAWKES
OXFORDSHIRE CC,CUSTOMER AND CULTURE,PROPERTY DISPOSALS,FURNITURE,15/11/2023,000009243105316,712,DUNELM SOFTFURNISHINGS
OXFORDSHIRE CC,CHILDREN'S & EDUCATION,PAUSE PROGRAMME,CATERING,15/11/2023,000009243105000,11.18,"KFC OXFORD, TEMPLARS S"
OXFORDSHIRE CC,CHILDREN'S & EDUCATION,OTFC TEAM,CATERING,15/11/2023,000009243105220,23.5,"MOTO CHERWELL VALLEY,"
OXFORDSHIRE CC,ADULTS,CSS - BANBURY,FURNITURE,15/11/2023,000009243105302,59,IKEA LTD 185 MILTON KE
OXFORDSHIRE CC,CHILDREN'S & EDUCATION,FIELDWORK UASC,MATERIALS,15/11/2023,000009243104920,8,CURRYS CARE SERVICE
OXFORDSHIRE CC,CHILDREN'S & EDUCATION,CONTRACTED SERVICES,CATERING PROVISIONS,15/11/2023,000009243105314,120,THE BLACK BOY OXFORD
OXFORDSHIRE CC,CHILDREN'S & EDUCATION,THAME E&A HOME,DISABILITY AIDS AND EQUIPMENT,15/11/2023,000009243104956,10,SPECSAVERS
OXFORDSHIRE CC,CHILDREN'S & EDUCATION,FAMILY SOLUTIONS PLUS NON-STAFF � SOUTH,DOMESTIC SUPPLIES,15/11/2023,000009243105336,18,HOMEBASE.CO.UK
OXFORDSHIRE CC,CHILDREN'S & EDUCATION,FAMILY SOLUTIONS PLUS NON-STAFF � SOUTH,MATERIALS,15/11/2023,000009243105338,14,WWW.ARGOS.CO.UK
OXFORDSHIRE CC,RESOURCES,ICT OPERATIONS & MAI,MATERIALS,15/11/2023,000009243105268,265.93,AMZNMKTPLACE
OXFORDSHIRE CC,PUBLIC HEALTH,CHILDREN IN CARE NON-STAFFING - SOUTH,CLOTHING AND UNIFORMS,15/11/2023,000009243104766,74.99,SPORTSDIRECT.COM
OXFORDSHIRE CC,ADULTS,INCOME TEAM,PAYMENT TO GOVERNMENT DEPARTMENTS,15/11/2023,000009243104878,1.5,FIND A WILL
OXFORDSHIRE CC,RESOURCES,ICT OPERATIONS & MAI,MATERIALS,15/11/2023,000009243105262,623.75,AMZNMKTPLACE
OXFORDSHIRE CC,RESOURCES,ICT OPERATIONS & MAI,MATERIALS,15/11/2023,000009243105260,530.88,AMAZON.CO.UK HB2O74QO4
OXFORDSHIRE CC,CHILDREN'S & EDUCATION,"	MALTFIELD HOUSE",DRUGS AND MEDICAL SUPPLIES,15/11/2023,000009243105166,124.98,AHPMEDICALS.COM
OXFORDSHIRE CC,CHILDREN'S & EDUCATION,QUALITY ASSURANCE SOUTH TEAM,HIRE OF ACCOMMODATION AND FACILITIES,15/11/2023,000009243105308,61.18,TRAVELODGE
OXFORDSHIRE CC,CHILDREN'S & EDUCATION,DISABILITIES TEAM S,PAYMENT TO GOVERNMENT DEPARTMENTS,15/11/2023,000009243104852,36,GEN REGISTER OFFICE
OXFORDSHIRE CC,CHILDREN'S & EDUCATION,FIELDWORK UASC,OTHER TRANSPORT ARRANGEMENTS,15/11/2023,000009243105290,4.5,STGCOACH/CTYLINK
OXFORDSHIRE CC,CHILDREN'S & EDUCATION,QUALITY ASSURANCE SOUTH TEAM,HIRE OF ACCOMMODATION AND FACILITIES,15/11/2023,000009243105306,66.79,TRAVELODGE
OXFORDSHIRE CC,PUBLIC HEALTH,"	ROW MAINT",EQUIPMENT,15/11/2023,000009243105022,456,WWW.LANDMARKTRADING.CO
OXFORDSHIRE CC,ADULTS,CSS WANTAGE,ENTERTAINMENT EXPENSES,15/11/2023,000009243105094,11.04,HOLLYWOOD BOWL
OXFORDSHIRE CC,ADULTS,CSS WANTAGE,ENTERTAINMENT EXPENSES,15/11/2023,000009243105096,14.72,HOLLYWOOD BOWL
OXFORDSHIRE CC,RESOURCES,INFORMATION MGT,STAFF USE OF PUBLIC TRANSPORT,15/11/2023,000009243105076,233.9,WWW.GWR.COM
OXFORDSHIRE CC,ADULTS,CSS BICESTER,MATERIALS,15/11/2023,000009243104814,14.25,POUNDLAND - 2826
OXFORDSHIRE CC,CUSTOMER AND CULTURE,HISTORY SERVICE,"BOOKS, DVDS AND CDS",15/11/2023,000009243105250,45,WWW.BALH.ORG.UK
OXFORDSHIRE CC,CUSTOMER AND CULTURE,HOLTON SITE,,15/11/2023,000009243104840,322.5,DVLA VEHICLE TAX
OXFORDSHIRE CC,ADULTS,CSS - OXFORD,MATERIALS,15/11/2023,000009243105058,11.36,AMZNMKTPLACE
OXFORDSHIRE CC,CUSTOMER AND CULTURE,HARD FM,PREMISES REPAIRS,15/11/2023,000009243104800,29,WICKES BANBURY
OXFORDSHIRE CC,CUSTOMER AND CULTURE,HARD FM,PREMISES REPAIRS,15/11/2023,000009243104798,30,WICKES BANBURY
OXFORDSHIRE CC,CUSTOMER AND CULTURE,HARD FM,PREMISES REPAIRS,15/11/2023,000009243104796,23.5,WICKES BANBURY
OXFORDSHIRE CC,ADULTS,CSS - OXFORD,MATERIALS,15/11/2023,000009243105056,41.15,AMZNMKTPLACE
OXFORDSHIRE CC,ENVIRONMENT AND PLACE,SUBSIDENCE MONITORING DESIGN,OTHER SERVICES,15/11/2023,000009243104822,642,SOIL INSTRUMENTS LTD
OXFORDSHIRE CC,CUSTOMER AND CULTURE,OXFORDSHIRE MUSEUM,FIXTURES & FITTINGS,15/11/2023,000009243105082,407.89,CHRISTMAS DIRECT
OXFORDSHIRE CC,CHILDREN'S & EDUCATION,HOUSE PROJECT,OTHER TRANSPORT ARRANGEMENTS,15/11/2023,000009243105196,5.8,WESTGATE OXFORD CAR PA
OXFORDSHIRE CC,CHILDREN'S & EDUCATION,CONTRACTED SERVICES,CATERING PROVISIONS,15/11/2023,000009243105312,100,THE LITTLE ANGEL
OXFORDSHIRE CC,CHILDREN'S & EDUCATION,40 THE MOORS,OTHER TRANSPORT ARRANGEMENTS,15/11/2023,000009243104880,3.8,WESTGATE OXFORD CAR PA
OXFORDSHIRE CC,ADULTS,CSS - OXFORD,REGISTRATION AND INSPECTION FEES,15/11/2023,000009243105060,23.96,WWW.AGILITYUK.COM
OXFORDSHIRE CC,ADULTS,CSS - BANBURY,ENTERTAINMENT EXPENSES,15/11/2023,000009243105288,15.6,SPICEBALL LEISURE CENT
OXFORDSHIRE CC,CHILDREN'S & EDUCATION,FAMILY SOLUTIONS PLUS NON-STAFF � SOUTH,HIRE OF ACCOMMODATION AND FACILITIES,15/11/2023,000009243105280,414.01,EASYHOTEL READING
OXFORDSHIRE CC,CHILDREN'S & EDUCATION,40 THE MOORS,OTHER EXPENSES,15/11/2023,000009243104882,21,BUZZ GYM
OXFORDSHIRE CC,CHILDREN'S & EDUCATION,THAME E&A HOME,CATERING,15/11/2023,000009243104954,9.6,STARBUCKS COFFEE
OXFORDSHIRE CC,CHILDREN'S & EDUCATION,THAME E&A HOME,CATERING PROVISIONS,15/11/2023,000009243104952,6.42,MARKS&SPENCER PLC SACA
OXFORDSHIRE CC,CHILDREN'S & EDUCATION,UASC POST 18,OTHER SALES,15/11/2023,000009243104948,3.7,SIP CARS PARKS (1) LIM
OXFORDSHIRE CC,CUSTOMER AND CULTURE,HISTORY SERVICE,FURNITURE,15/11/2023,000009243105252,6.99,AMZNMKTPLACE
OXFORDSHIRE CC,CUSTOMER AND CULTURE,HARD FM,PREMISES REPAIRS,15/11/2023,000009243104806,15.65,HOWDENS - OXFORD D879
OXFORDSHIRE CC,CHILDREN'S & EDUCATION,FSP NON-STAFFING - CENTRAL,IT SOFTWARE,15/11/2023,000009243104764,7.8,QWIKPARK
OXFORDSHIRE CC,PUBLIC HEALTH,CHILDREN IN CARE NON-STAFFING - SOUTH,PAYMENT TO GOVERNMENT DEPARTMENTS,15/11/2023,000009243104770,93,HM PASSPORT OFFICE
OXFORDSHIRE CC,CUSTOMER AND CULTURE,COMMUNITY PARTNERSHIP TEAM,MATERIALS,15/11/2023,000009243104868,7.55,AMZNMKTPLACE
OXFORDSHIRE CC,ADULTS,THAME E&A HOME,OTHER TRANSPORT ARRANGEMENTS,15/11/2023,000009243104778,1.4,STGCOACH/CTYLINK
OXFORDSHIRE CC,ADULTS,CSS WANTAGE,MATERIALS,15/11/2023,000009243105090,4.5,AMZNMKTPLACE
OXFORDSHIRE CC,CHILDREN'S & EDUCATION,"	LOOKED AFTER CHILDRE",OTHER SERVICES,15/11/2023,000009243105254,36.99,SERENATAFLOWERS
OXFORDSHIRE CC,CHILDREN'S & EDUCATION,PAUSE PROGRAMME,CATERING PROVISIONS,15/11/2023,000009243104998,3.9,TESCO STORES 2994
OXFORDSHIRE CC,ADULTS,CSS WITNEY,CATERING PROVISIONS,15/11/2023,000009243105304,34.1,TESCO STORES 2994
OXFORDSHIRE CC,CUSTOMER AND CULTURE,GROVE LIBRARY,CATERING,15/11/2023,000009243104980,26.5,AMAZON.CO.UK HB4AK4QK4
OXFORDSHIRE CC,ADULTS,THAME E&A HOME,OTHER TRANSPORT ARRANGEMENTS,15/11/2023,000009243104776,2,OXFORD BUS COMPANY
OXFORDSHIRE CC,CUSTOMER AND CULTURE,HARD FM,PREMISES REPAIRS,15/11/2023,000009243104802,13.99,SCREWFIX OXFORD COWLEY
OXFORDSHIRE CC,ENVIRONMENT AND PLACE,SCH&SOC CARE TRANSP,EQUIPMENT,15/11/2023,000009243105102,51,HANOLEX LTD.
OXFORDSHIRE CC,ENVIRONMENT AND PLACE,WASTE REDUCTION GEN,MATERIALS,15/11/2023,000009243104874,24.71,AMZNMKTPLACE
OXFORDSHIRE CC,PUBLIC HEALTH,LEAVING CARE NORTH,OTHER EXPENSES,15/11/2023,000009243104772,204.98,AMZNMKTPLACE
OXFORDSHIRE CC,CHILDREN'S & EDUCATION,40 THE MOORS,CATERING PROVISIONS,15/11/2023,000009243105128,17.85,TESCO STORES 2990
OXFORDSHIRE CC,PUBLIC HEALTH,LEAVING CARE NORTH,OTHER EXPENSES,15/11/2023,000009243104768,199.99,HOME TREATS PURCHASE
OXFORDSHIRE CC,RESOURCES,ICT OPERATIONS & MAI,MATERIALS,15/11/2023,000009243105272,93.6,AMZNMKTPLACE
OXFORDSHIRE CC,CHILDREN'S & EDUCATION,CHILDREN IN CARE NON-STAFFING - CENTRL 2,OTHER TRANSPORT ARRANGEMENTS,15/11/2023,000009243104832,49.5,OXFORD BUS TICKETS
OXFORDSHIRE CC,CHILDREN'S & EDUCATION,FAMILY SOLUTIONS PLUS NON-STAFF � SOUTH,OTHER TRANSPORT ARRANGEMENTS,15/11/2023,000009243105310,35,OXFORDBUS.CO.UK
OXFORDSHIRE CC,CUSTOMER AND CULTURE,SCHOOLS FM CATERING AREA 1,CATERING PROVISIONS,15/11/2023,000009243104978,3.6,CO OPERATIVE FOOD
OXFORDSHIRE CC,ADULTS,CSS - ABINGDON,CATERING PROVISIONS,15/11/2023,000009243105348,7.48,TESCO STORES 2008
OXFORDSHIRE CC,ADULTS,CSS - BANBURY,MATERIALS,15/11/2023,000009243105286,21,POUNDLAND LTD - 2308
OXFORDSHIRE CC,CHILDREN'S & EDUCATION,WITNEY CC,MATERIALS,15/11/2023,000009243105200,6.99,AMZNMKTPLACE
OXFORDSHIRE CC,CHILDREN'S & EDUCATION,"	LEAVING CARE CITY 2",CATERING,15/11/2023,000009243105010,7.65,COSTA COFFEE 43011187
OXFORDSHIRE CC,ADULTS,CSS WANTAGE,MATERIALS,15/11/2023,000009243105092,8.99,AMZNMKTPLACE
OXFORDSHIRE CC,CHILDREN'S & EDUCATION,FSP NON-STAFFING - CENTRAL,PAYMENTS TO TRANSPORT OPERATORS,15/11/2023,000009243105230,35.2,WWW.GWR.COM
OXFORDSHIRE CC,CHILDREN'S & EDUCATION,NTS UASC AGENCY,MATERIALS,15/11/2023,000009243104848,24.37,AMZNMKTPLACE
OXFORDSHIRE CC,CHILDREN'S & EDUCATION,NTS UASC AGENCY,MATERIALS,15/11/2023,000009243104846,24.37,AMZNMKTPLACE
OXFORDSHIRE CC,CUSTOMER AND CULTURE,HARD FM,PREMISES REPAIRS,15/11/2023,000009243104990,18,HOMEBASE LTD 091
OXFORDSHIRE CC,ADULTS,CSS WANTAGE,CATERING PROVISIONS,15/11/2023,000009243104760,16.87,SAINSBURYS S/MKTS
OXFORDSHIRE CC,CUSTOMER AND CULTURE,WITNEY LIBRARY,"NEWSPAPERS, PERIODICALS AND PUBLICATIONS",15/11/2023,000009243104958,55.42,PPOINT_ NEWSLINK WITNE
OXFORDSHIRE CC,CHILDREN'S & EDUCATION,THAME E&A HOME,OTHER TRANSPORT ARRANGEMENTS,15/11/2023,000009243104824,15.2,UNION STREET CAR PARK
OXFORDSHIRE CC,CUSTOMER AND CULTURE,SCHOOLS FM CATERING AREA 1,CATERING PROVISIONS,15/11/2023,000009243104976,23.15,WM MORRISONS STORE
OXFORDSHIRE CC,CHILDREN'S & EDUCATION,EYNSHAM,OTHER TRANSPORT ARRANGEMENTS,15/11/2023,000009243104762,15.6,RINGGO PARKING
OXFORDSHIRE CC,CHILDREN'S & EDUCATION,THAME E&A HOME,ENTERTAINMENT EXPENSES,15/11/2023,000009243104950,11.9,WWW.BETTER.ORG.UK
OXFORDSHIRE CC,ENTERPRISEVC,,CAR LEASING - PRIVATE RENTALS,15/11/2023,000009243105192,894.34,ENTERPRISE RENT-A-CAR
OXFORDSHIRE CC,ENTERPRISEVC,,CAR LEASING - PRIVATE RENTALS,15/11/2023,000009243105190,109.37,ENTERPRISE RENT-A-CAR
OXFORDSHIRE CC,ENTERPRISEVC,,CAR LEASING - PRIVATE RENTALS,15/11/2023,000009243105188,48.89,ENTERPRISE RENT-A-CAR
OXFORDSHIRE CC,ENTERPRISEVC,,CAR LEASING - PRIVATE RENTALS,15/11/2023,000009243105194,152.3,ENTERPRISE RENT-A-CAR
OXFORDSHIRE CC,ENTERPRISEVC,,CAR LEASING - PRIVATE RENTALS,15/11/2023,000009243105174,122.75,ENTERPRISE RENT-A-CAR
OXFORDSHIRE CC,ENTERPRISEVC,,CAR LEASING - PRIVATE RENTALS,15/11/2023,000009243105186,137,ENTERPRISE RENT-A-CAR
OXFORDSHIRE CC,ENTERPRISEVC,,CAR LEASING - PRIVATE RENTALS,15/11/2023,000009243105184,50.37,ENTERPRISE RENT-A-CAR
OXFORDSHIRE CC,ENTERPRISEVC,,CAR LEASING - PRIVATE RENTALS,15/11/2023,000009243105182,77.98,ENTERPRISE RENT-A-CAR
OXFORDSHIRE CC,ENTERPRISEVC,,CAR LEASING - PRIVATE RENTALS,15/11/2023,000009243105180,38.75,ENTERPRISE RENT-A-CAR
OXFORDSHIRE CC,ENTERPRISEVC,,CAR LEASING - PRIVATE RENTALS,15/11/2023,000009243105178,191.5,ENTERPRISE RENT-A-CAR
OXFORDSHIRE CC,ENTERPRISEVC,,CAR LEASING - PRIVATE RENTALS,15/11/2023,000009243105176,56.75,ENTERPRISE RENT-A-CAR
OXFORDSHIRE CC,CUSTOMER AND CULTURE,THAME LIBRARY,CATERING PROVISIONS,15/11/2023,000009243105162,5.6,SAINSBURYS S/MKTS
OXFORDSHIRE CC,CHILDREN'S & EDUCATION,"	SEN/ICT EQUIPMENT",PURCHASE OF IT EQUIPMENT,15/11/2023,000009243105100,37.96,AMAZON.CO.UK HB5IS78T4
OXFORDSHIRE CC,CHILDREN'S & EDUCATION,NTH EARLY HELP-WITNY,POSTAGE AND DELIVERY,15/11/2023,000009243105198,51.3,ROYAL MAIL ONLINE SHOP
OXFORDSHIRE CC,ADULTS,CSS - ABINGDON,CATERING PROVISIONS,15/11/2023,000009243104784,30.65,WAITROSE 211
OXFORDSHIRE CC,CHILDREN'S & EDUCATION,THAME E&A HOME,OTHER TRANSPORT ARRANGEMENTS,15/11/2023,000009243104872,2,OCC PR WATER EATON
OXFORDSHIRE CC,CHILDREN'S & EDUCATION,THAME E&A HOME,OTHER TRANSPORT ARRANGEMENTS,15/11/2023,000009243104968,15.2,UNION STREET CAR PARK
OXFORDSHIRE CC,RESOURCES,MULTICAV,PAYMENTS TO TRANSPORT OPERATORS,15/11/2023,000009243105352,6.4,NORTHFIELD STN SST
OXFORDSHIRE CC,CHILDREN'S & EDUCATION,"	LOOKED AFTER CITY 2",PAYMENTS TO TRANSPORT OPERATORS,15/11/2023,000009243105034,14.47,TRAINLINE
OXFORDSHIRE CC,ADULTS,THAME E&A HOME,OTHER TRANSPORT ARRANGEMENTS,15/11/2023,000009243104780,5.5,CHERWELL
OXFORDSHIRE CC,CORPORATE CORE,,STATIONERY,15/11/2023,000009243105170,25.85,LYRECO UK LTD
OXFORDSHIRE CC,CORPORATE CORE,,STATIONERY,15/11/2023,000009243105168,6.82,LYRECO UK LTD
OXFORDSHIRE CC,CORPORATE CORE,,STATIONERY,15/11/2023,000009243105172,76.99,LYRECO UK LTD
OXFORDSHIRE CC,CHILDREN'S & EDUCATION,EYNSHAM,CATERING,15/11/2023,000009243104774,89.31,TESCO STORES 2008
OXFORDSHIRE CC,CUSTOMER AND CULTURE,COMMUNITY PARTNERSHIP TEAM,CATERING PROVISIONS,15/11/2023,000009243104870,104.86,TESCO STORES 2008
OXFORDSHIRE CC,RESOURCES,ICT OPERATIONS & MAI,MATERIALS,15/11/2023,000009243105264,"1,215.68",AMZNMKTPLACE
OXFORDSHIRE CC,RESOURCES,ICT OPERATIONS & MAI,MATERIALS,15/11/2023,000009243105266,227.94,AMZNMKTPLACE
OXFORDSHIRE CC,RESOURCES,ICT OPERATIONS & MAI,MATERIALS,15/11/2023,000009243105270,151.96,AMZNMKTPLACE
OXFORDSHIRE CC,RESOURCES,ICT OPERATIONS & MAI,MATERIALS,15/11/2023,000009243105274,37.99,AMZNMKTPLACE
OXFORDSHIRE CC,CHILDREN'S & EDUCATION,"	LOOKED AFTER CITY 2",OTHER TRANSPORT ARRANGEMENTS,15/11/2023,000009243105032,2,OXFORD BUS COMPANY
OXFORDSHIRE CC,CHILDREN'S & EDUCATION,FAMILY SOLUTIONS PLUS NON-STAFF � SOUTH,PAYMENTS TO VOLUNTARY BODIES,15/11/2023,000009243105342,-35.3,CHARITY
OXFORDSHIRE CC,CHILDREN'S & EDUCATION,FAMILY SOLUTIONS PLUS NON-STAFF � SOUTH,PAYMENTS TO VOLUNTARY BODIES,15/11/2023,000009243105340,-35.3,CHARITY
OXFORDSHIRE CC,CHILDREN'S & EDUCATION,SEND CASEWORK TEAM,POSTAGE AND DELIVERY,15/11/2023,000009243105332,0.16,ROYAL MAIL GROUP LTD
OXFORDSHIRE CC,CHILDREN'S & EDUCATION,UASC POST 18,OTHER TRANSPORT ARRANGEMENTS,15/11/2023,000009243104946,9,OXFORD BUS COMPANY
OXFORDSHIRE CC,CHILDREN'S & EDUCATION,"	RIVERSIDE CENTRE",VEHICLE FUEL,15/11/2023,000009243105080,111.44,BP BUCKLAND CONNECT
OXFORDSHIRE CC,RESOURCES,MOTOR FLEET,MOTOR IF OWN DAMAGE,15/11/2023,000009243105154,"1,299.99",TOP GUN REFENISHING
OXFORDSHIRE CC,CHILDREN'S & EDUCATION,THAME E&A HOME,CLOTHING AND UNIFORMS,15/11/2023,000009243105024,15,PRIMARK 440
OXFORDSHIRE CC,RESOURCES,ICT OPERATIONS & MAI,MATERIALS,15/11/2023,000009243105276,17.99,AMZNMKTPLACE
OXFORDSHIRE CC,CUSTOMER AND CULTURE,HARD FM,VEHICLE FUEL,15/11/2023,000009243104940,95.88,BP BENSON CONNECT
OXFORDSHIRE CC,CUSTOMER AND CULTURE,HARD FM,PREMISES REPAIRS,15/11/2023,000009243104804,770.62,HOWDENS - OXFORD D879
OXFORDSHIRE CC,CHILDREN'S & EDUCATION,THAME E&A HOME,MATERIALS,14/11/2023,000009237998958,29.99,AMAZON.CO.UK HB0E09H54
OXFORDSHIRE CC,CHILDREN'S & EDUCATION,THAME E&A HOME,MATERIALS,14/11/2023,000009237998956,29.99,AMAZON.CO.UK HB0DJ6B64
OXFORDSHIRE CC,CUSTOMER AND CULTURE,"MARKETING, COMMUNICATIONS & ENGAGEMENT","PUBLICITY, PROMOTIONS AND ADVERTISEMENT",14/11/2023,000009237999074,33.11,SNAP INC SNAP SNAP ADS
OXFORDSHIRE CC,CUSTOMER AND CULTURE,COMMUNITY PARTNERSHIP TEAM,MATERIALS,14/11/2023,000009237998828,11.58,AMZNMKTPLACE
OXFORDSHIRE CC,CHILDREN'S & EDUCATION,40 THE MOORS,CATERING,14/11/2023,000009237999166,27.45,ASDA GROCERIES ONLINE
OXFORDSHIRE CC,CHILDREN'S & EDUCATION,EYNSHAM,CATERING PROVISIONS,14/11/2023,000009237998876,11.25,SAINSBURYS S/MKTS
OXFORDSHIRE CC,RESOURCES,ICT OPERATIONS & MAI,IT SERVICES,14/11/2023,000009237999234,21.13,"GITHUB, INC."
OXFORDSHIRE CC,ADULTS,THAME E&A HOME,HARDWARE AND CROCKERY,14/11/2023,000009237999044,59,HOMEBASE LTD 091
OXFORDSHIRE CC,CHILDREN'S & EDUCATION,HOUSE PROJECT,CATERING PROVISIONS,14/11/2023,000009237999120,158.1,AMAZON  204-9510863-09
OXFORDSHIRE CC,CUSTOMER AND CULTURE,COUNTY HALL,OTHER PREMISES RELATED COSTS,14/11/2023,000009237999008,14.7,SAINSBURYS PETROL
OXFORDSHIRE CC,RESOURCES,MULTICAV,PAYMENTS TO TRANSPORT OPERATORS,14/11/2023,000009237999266,46.1,GWR OXFORD TO
OXFORDSHIRE CC,CHILDREN'S & EDUCATION,40 THE MOORS,CATERING,14/11/2023,000009237999164,4.6,ASDA GROCERIES ONLINE
OXFORDSHIRE CC,CHILDREN'S & EDUCATION,DIDCOT MOVE-ON HOME,CATERING PROVISIONS,14/11/2023,000009237999148,17.5,TESCO STORES 2413
OXFORDSHIRE CC,CHILDREN'S & EDUCATION,"	OCCG GRANT",FURNITURE,14/11/2023,000009237998890,154,DUNELM SOFT FURNISHIN
OXFORDSHIRE CC,ENVIRONMENT AND PLACE,NAT TRAILS GENERAL,VEHICLES AND PLANT - REPAIRS AND MAIN,14/11/2023,000009237998982,280.51,SUMUP   NB AUTO CARE
OXFORDSHIRE CC,CHILDREN'S & EDUCATION,40 THE MOORS,CATERING,14/11/2023,000009237999162,130.96,ASDA GROCERIES ONLINE
OXFORDSHIRE CC,CHILDREN'S & EDUCATION,BANBURY CC,OTHER PREMISES RELATED COSTS,14/11/2023,000009237999222,354,AO RETAIL LIMITED
OXFORDSHIRE CC,CHILDREN'S & EDUCATION,"	LEAVING CARE NORTH",FURNITURE,14/11/2023,000009237998840,60.98,WF  UK3980161324
OXFORDSHIRE CC,CHILDREN'S & EDUCATION,DIDCOT MOVE-ON HOME,CATERING PROVISIONS,14/11/2023,000009237999150,59.99,SAINSBURYS S/MKTS
OXFORDSHIRE CC,CHILDREN'S & EDUCATION,FIELDWORK UASC,OTHER TRANSPORT ARRANGEMENTS,14/11/2023,000009237999200,4.5,STGCOACH/CTYLINK
OXFORDSHIRE CC,CUSTOMER AND CULTURE,CATERING MANAGEMENT SOFT FM,MATERIALS,14/11/2023,000009237998752,22.98,AMAZON.CO.UK HB0XW5H34
OXFORDSHIRE CC,ADULTS,INCOME TEAM,PAYMENT TO GOVERNMENT DEPARTMENTS,14/11/2023,000009237998850,11,OXFORDSHIRE CC WEB1
OXFORDSHIRE CC,RESOURCES,ICT OPERATIONS & MAI,MATERIALS,14/11/2023,000009237999184,417.12,AMAZON.CO.UK HB4AC7HR4
OXFORDSHIRE CC,PUBLIC HEALTH,CHILDREN IN CARE NON-STAFFING - SOUTH,HIRE OF ACCOMMODATION AND FACILITIES,14/11/2023,000009237998750,115.99,PREMIER INN
OXFORDSHIRE CC,ADULTS,CSS WITNEY,ENTERTAINMENT EXPENSES,14/11/2023,000009237998988,9,WWW.BETTER.ORG.UK
OXFORDSHIRE CC,CHILDREN'S & EDUCATION,"	LEAVING CARE NORTH",MATERIALS,14/11/2023,000009237998842,80,VOUCHER EXPRESS
OXFORDSHIRE CC,CHILDREN'S & EDUCATION,THAME E&A HOME,CATERING PROVISIONS,14/11/2023,000009237998970,9.6,SAINSBURY'S SMKT
OXFORDSHIRE CC,RESOURCES,SCHOOLS FM CATERING AREA 2,CATERING PROVISIONS,14/11/2023,000009237999132,12.8,TESCO STORES 2008
OXFORDSHIRE CC,CHILDREN'S & EDUCATION,NRPF & HOMELESSNESS,NON-STAFF SUBSISTENCE AND EXPENSES,14/11/2023,000009237999190,379.39,TRAVELODGE
OXFORDSHIRE CC,CHILDREN'S & EDUCATION,"DIDCOT CC, PARK ROAD",CATERING PROVISIONS,14/11/2023,000009237998952,3.5,CO-OPERATIVE FUEL
OXFORDSHIRE CC,ADULTS,PAUSE PROGRAMME,MATERIALS,14/11/2023,000009237998882,2,POUNDLAND LTD - 1586
OXFORDSHIRE CC,CUSTOMER AND CULTURE,HARD FM,PREMISES REPAIRS,14/11/2023,000009237998768,20,B & Q 1176
OXFORDSHIRE CC,CHILDREN'S & EDUCATION,THAME E&A HOME,OTHER TRANSPORT ARRANGEMENTS,14/11/2023,000009237998968,4,OCC PR THORNHILL
OXFORDSHIRE CC,ADULTS,PAUSE PROGRAMME,MATERIALS,14/11/2023,000009237998884,5.99,AMZNMKTPLACE
OXFORDSHIRE CC,PUBLIC HEALTH,CHILDREN IN CARE NON-STAFFING - SOUTH,PAYMENT TO GOVERNMENT DEPARTMENTS,14/11/2023,000009237998748,28,GEN REGISTER OFFICE
OXFORDSHIRE CC,CUSTOMER AND CULTURE,HARD FM,PREMISES REPAIRS,14/11/2023,000009237998766,89.16,SCREWFIX DIR LTD
OXFORDSHIRE CC,CHILDREN'S & EDUCATION,WITNEY,VEHICLE FUEL,14/11/2023,000009237999142,3.1,TESCO PFS 3418
OXFORDSHIRE CC,CHILDREN'S & EDUCATION,FAMILY SOLUTIONS PLUS NON-STAFF - NORTH,CATERING PROVISIONS,14/11/2023,000009237998838,3,TESCO STORES 2008
OXFORDSHIRE CC,CUSTOMER AND CULTURE,BICESTER LIBRARY,STATIONERY,14/11/2023,000009237998942,7.78,BARSTOWS STATIONARY
OXFORDSHIRE CC,CHILDREN'S & EDUCATION,NRPF & HOMELESSNESS,NON-STAFF SUBSISTENCE AND EXPENSES,14/11/2023,000009237999188,414.01,EASYHOTEL READING
OXFORDSHIRE CC,RESOURCES,LEGAL SERVICES,LEGAL COSTS,14/11/2023,000009237999174,11,OXFORDSHIRE CC WEB1
OXFORDSHIRE CC,CUSTOMER AND CULTURE,CENTRAL LIBRARY,MATERIALS,14/11/2023,000009237999040,2.49,EXTRA
OXFORDSHIRE CC,ADULTS,CSS WITNEY,CATERING PROVISIONS,14/11/2023,000009237999228,5.18,HOME BARGAINS
OXFORDSHIRE CC,ADULTS,LEAVING CARE CITY 2,PROFESSIONAL SUBSCRIPTIONS,14/11/2023,000009237998972,11.89,ONTOPUP.COM
OXFORDSHIRE CC,ADULTS,CSS - OXFORD,MATERIALS,14/11/2023,000009237999006,29.99,AMZNMKTPLACE
OXFORDSHIRE CC,ENVIRONMENT AND PLACE,WASTE MNGMNT GEN,MATERIALS,14/11/2023,000009237999002,5.99,AMAZON.CO.UK HB53315S4
OXFORDSHIRE CC,ADULTS,CSS WITNEY,CATERING PROVISIONS,14/11/2023,000009237998990,30.81,CO-OP GROUP 070582
OXFORDSHIRE CC,PUBLIC HEALTH,CHILDREN IN CARE NON-STAFFING - SOUTH,PAYMENT TO GOVERNMENT DEPARTMENTS,14/11/2023,000009237998746,38,GEN REGISTER OFFICE
OXFORDSHIRE CC,ADULTS,CSS - OXFORD,MATERIALS,14/11/2023,000009237998776,26.29,ALDI STORES 775-142
OXFORDSHIRE CC,CUSTOMER AND CULTURE,DEPARTMENTAL MANAGE,OTHER TRANSPORT ARRANGEMENTS,14/11/2023,000009237999158,74.99,NCP LTD
OXFORDSHIRE CC,CUSTOMER AND CULTURE,HISTORY SERVICE,FURNITURE,14/11/2023,000009237999038,32.49,AMZNMKTPLACE
OXFORDSHIRE CC,CHILDREN'S & EDUCATION,"	LEAVING CARE SOUTH",PAYMENTS TO TRANSPORT OPERATORS,14/11/2023,000009237998946,76.7,WWW.GWR.COM
OXFORDSHIRE CC,CHILDREN'S & EDUCATION,NTH EARLY HELP-WITNY,CATERING PROVISIONS,14/11/2023,000009237999122,18.94,WAITROSE 142
OXFORDSHIRE CC,CHILDREN'S & EDUCATION,NRPF & HOMELESSNESS,NON-STAFF SUBSISTENCE AND EXPENSES,14/11/2023,000009237999186,381,WWW.TAXICODE.COM
OXFORDSHIRE CC,CUSTOMER AND CULTURE,MUSIC UNALLOCABLE,DISABILITY AIDS AND EQUIPMENT,14/11/2023,000009237999192,47.99,BACK CARE SOLUTIONS
OXFORDSHIRE CC,CHILDREN'S & EDUCATION,EET SERVICE,PAYMENTS TO TRANSPORT OPERATORS,14/11/2023,000009237999036,8.65,TRAINLINE
OXFORDSHIRE CC,"COMMUNICATIONS, STRATEGY AND INSIGHT",STRATEGIC LEADERSHIP TEAM,PAYMENTS TO TRANSPORT OPERATORS,14/11/2023,000009237999154,31.8,WWW.GWR.COM
OXFORDSHIRE CC,CHILDREN'S & EDUCATION,FAMILY SOLUTIONS PLUS NON-STAFF - NORTH,PAYMENTS TO TRANSPORT OPERATORS,14/11/2023,000009237999144,27.4,TRAINLINE
OXFORDSHIRE CC,CUSTOMER AND CULTURE,THAME LIBRARY,"NEWSPAPERS, PERIODICALS AND PUBLICATIONS",14/11/2023,000009237999104,5.6,SAINSBURYS S/MKTS
OXFORDSHIRE CC,ADULTS,INCOME TEAM,PAYMENT TO GOVERNMENT DEPARTMENTS,14/11/2023,000009237998954,11,OXFORDSHIRE CC WEB1
OXFORDSHIRE CC,CUSTOMER AND CULTURE,SCHOOLS FM CATERING AREA 3,CATERING PROVISIONS,14/11/2023,000009237998924,3.9,ALDI STORES 775-141
OXFORDSHIRE CC,ADULTS,CSS - ABINGDON,CATERING PROVISIONS,14/11/2023,000009237999264,30.7,ALDI STORES
OXFORDSHIRE CC,CHILDREN'S & EDUCATION,CNTL EARLY HELP-RHIL,CATERING PROVISIONS,14/11/2023,000009237999100,9.65,CO OPERATIVE FOOD
OXFORDSHIRE CC,CHILDREN'S & EDUCATION,"BICESTER CC, LAUNTON RD",CATERING PROVISIONS,14/11/2023,000009237999146,3.18,ALDI 49 775
OXFORDSHIRE CC,CORPORATE CORE,,STATIONERY,14/11/2023,000009237999118,61.2,LYRECO UK LTD
OXFORDSHIRE CC,CHILDREN'S & EDUCATION,BANBURY CC,CATERING PROVISIONS,14/11/2023,000009237999220,4.35,TESCO STORES 2064
OXFORDSHIRE CC,ADULTS,CSS BICESTER,CATERING PROVISIONS,14/11/2023,000009237998778,119.1,TESCO STORES 2162
OXFORDSHIRE CC,CHILDREN'S & EDUCATION,THAME E&A HOME,CATERING PROVISIONS,14/11/2023,000009237998830,194.68,TESCO STORES 2038
OXFORDSHIRE CC,ADULTS,CSS - BANBURY,CATERING PROVISIONS,14/11/2023,000009237999194,74.15,SAINSBURYS.CO.UK
OXFORDSHIRE CC,CHILDREN'S & EDUCATION,"	SEN/ICT EQUIPMENT",IT SERVICES,14/11/2023,000009237998878,43.68,GOTO TECHNOLOGIES UK L
OXFORDSHIRE CC,CHILDREN'S & EDUCATION,"	LEAVING CARE SOUTH",OTHER TRANSPORT ARRANGEMENTS,14/11/2023,000009237998862,92.3,OXFORDBUS.CO.UK
OXFORDSHIRE CC,CHILDREN'S & EDUCATION,FIELDWORK UASC,OTHER TRANSPORT ARRANGEMENTS,14/11/2023,000009237999198,1.8,ARRIVA THE SHIRES LIMI
OXFORDSHIRE CC,CHILDREN'S & EDUCATION,FIELDWORK UASC,OTHER TRANSPORT ARRANGEMENTS,14/11/2023,000009237999196,1.8,ARRIVA THE SHIRES LIMI
OXFORDSHIRE CC,CHILDREN'S & EDUCATION,"	OCCG GRANT",FURNITURE,14/11/2023,000009237998892,-90.3,DUNELM SOFT FURNISHIN
OXFORDSHIRE CC,RESOURCES,LEGAL SERVICES,LEGAL COSTS,14/11/2023,000009237999176,-11,OXFORDSHIRE CC (M)
OXFORDSHIRE CC,CHILDREN'S & EDUCATION,40 THE MOORS,CATERING,14/11/2023,000009237999168,-3.16,ASDA GROCERIES ONLINE
OXFORDSHIRE CC,ADULTS,CSS BICESTER,MATERIALS,14/11/2023,000009237998806,44.66,AMZNMKTPLACE
OXFORDSHIRE CC,CHILDREN'S & EDUCATION,NTS UASC AGENCY,MATERIALS,14/11/2023,000009237998812,55.37,AMZNMKTPLACE
OXFORDSHIRE CC,ADULTS,CSS WANTAGE,LICENCES,14/11/2023,000009237999050,159,TVLICENSING.CO.UK
OXFORDSHIRE CC,ADULTS,CSS BICESTER,MATERIALS,13/11/2023,000009230351930,20,AMZNMKTPLACE
OXFORDSHIRE CC,CUSTOMER AND CULTURE,"MARKETING, COMMUNICATIONS & ENGAGEMENT","PUBLICITY, PROMOTIONS AND ADVERTISEMENT",13/11/2023,000009230352396,33.1,SNAP INC SNAP SNAP ADS
OXFORDSHIRE CC,CHILDREN'S & EDUCATION,40 THE MOORS,CLOTHING AND UNIFORMS,13/11/2023,000009230352562,46.98,AMZNMKTPLACE
OXFORDSHIRE CC,CHILDREN'S & EDUCATION,40 THE MOORS,MATERIALS,13/11/2023,000009230352566,20.35,AMZNMKTPLACE
OXFORDSHIRE CC,ADULTS,THAME E&A HOME,OTHER MISC INC,13/11/2023,000009230352348,172,ZETTLE_ APPLETON CHRIS
OXFORDSHIRE CC,CHILDREN'S & EDUCATION,40 THE MOORS,OTHER EXPENSES,13/11/2023,000009230352400,10.99,COWLEY PHARMACY
OXFORDSHIRE CC,CHILDREN'S & EDUCATION,THAME E&A HOME,CATERING,13/11/2023,000009230352134,6.18,MCDONALDS
OXFORDSHIRE CC,ADULTS,THAME E&A HOME,OTHER MISC INC,13/11/2023,000009230352352,128.91,BICESTER GARDEN CENTRE
OXFORDSHIRE CC,CHILDREN'S & EDUCATION,THAME E&A HOME,CATERING,13/11/2023,000009230352214,2.15,COSTA COFFEE 43011357
OXFORDSHIRE CC,CHILDREN'S & EDUCATION,DIDCOT MOVE-ON HOME,CATERING PROVISIONS,13/11/2023,000009230352236,27.26,ALDI 99 775
OXFORDSHIRE CC,ADULTS,THAME E&A HOME,OTHER MISC INC,13/11/2023,000009230352342,290.69,CHARLBURY GARDEN CENTR
OXFORDSHIRE CC,CHILDREN'S & EDUCATION,THAME E&A HOME,CATERING PROVISIONS,13/11/2023,000009230352210,2.75,ASDA SUPERSTORE
OXFORDSHIRE CC,CHILDREN'S & EDUCATION,WITNEY,CATERING PROVISIONS,13/11/2023,000009230352528,5.58,LIDL GB WITNEY
OXFORDSHIRE CC,ADULTS,THAME E&A HOME,OTHER MISC INC,13/11/2023,000009230352354,48.55,BURFORD GARDEN
OXFORDSHIRE CC,CUSTOMER AND CULTURE,COMMUNITY PARTNERSHIP TEAM,MATERIALS,13/11/2023,000009230351998,14.78,AMZNMKTPLACE
OXFORDSHIRE CC,CHILDREN'S & EDUCATION,UASC 16&17,MATERIALS,13/11/2023,000009230352108,98.96,AMAZON.CO.UK HB6I51GN4
OXFORDSHIRE CC,ADULTS,THAME E&A HOME,OTHER MISC INC,13/11/2023,000009230352356,10.99,THE RANGE
OXFORDSHIRE CC,ADULTS,THAME E&A HOME,OTHER MISC INC,13/11/2023,000009230352344,122.33,MAGICAL STORY
OXFORDSHIRE CC,CHILDREN'S & EDUCATION,DIDCOT MOVE-ON HOME,CATERING PROVISIONS,13/11/2023,000009230352120,1.5,SAINSBURYS S/MKTS
OXFORDSHIRE CC,CUSTOMER AND CULTURE,"MARKETING, COMMUNICATIONS & ENGAGEMENT","PUBLICITY, PROMOTIONS AND ADVERTISEMENT",13/11/2023,000009230352392,669.87,MAILCHIMP
OXFORDSHIRE CC,CUSTOMER AND CULTURE,LEARNING & ACCESS,MATERIALS,13/11/2023,000009230352318,67.6,AMZNMKTPLACE
OXFORDSHIRE CC,ENVIRONMENT AND PLACE,FLEET OPERATIONS,MATERIALS,13/11/2023,000009230352110,9.99,AMZNMKTPLACE
OXFORDSHIRE CC,CUSTOMER AND CULTURE,OPERATIONS,MATERIALS,13/11/2023,000009230352284,10.7,AMAZON.CO.UK HB81L2GC4
OXFORDSHIRE CC,CUSTOMER AND CULTURE,"MARKETING, COMMUNICATIONS & ENGAGEMENT","PUBLICITY, PROMOTIONS AND ADVERTISEMENT",13/11/2023,000009230352394,31.88,SNAP INC SNAP SNAP ADS
OXFORDSHIRE CC,ADULTS,CSS WALLINGFORD,VEHICLE EQUIPMENT AND EXPENSES - OTHER,13/11/2023,000009230351852,99.99,AMZNMKTPLACE
OXFORDSHIRE CC,CHILDREN'S & EDUCATION,EYNSHAM,CATERING PROVISIONS,13/11/2023,000009230352432,8.75,MAYFIELDEGGS
OXFORDSHIRE CC,ENVIRONMENT AND PLACE,SIP MANAGEMENT,HIRE OF ACCOMMODATION AND FACILITIES,13/11/2023,000009230352534,95,BKG HOTEL AT BOOKING.C
OXFORDSHIRE CC,CHILDREN'S & EDUCATION,UASC 16&17,DOMESTIC SUPPLIES,13/11/2023,000009230352520,14.99,AMAZON.CO.UK HB6RN1T64
OXFORDSHIRE CC,ADULTS,THAME E&A HOME,OTHER MISC INC,13/11/2023,000009230352340,212.62,THE RANGE
OXFORDSHIRE CC,CHILDREN'S & EDUCATION,"	OCCG GRANT",OTHER EXPENSES,13/11/2023,000009230352076,27,TIMPSON LTD
OXFORDSHIRE CC,ADULTS,THAME E&A HOME,OTHER MISC INC,13/11/2023,000009230352350,117.81,BELL PLANTATION GARDEN
OXFORDSHIRE CC,CHILDREN'S & EDUCATION,EYNSHAM,CATERING PROVISIONS,13/11/2023,000009230352550,12.75,CO-OPERATIVE FOOD
OXFORDSHIRE CC,CHILDREN'S & EDUCATION,THAME E&A HOME,MATERIALS,13/11/2023,000009230351860,3.29,ROBERT DYAS THAME
OXFORDSHIRE CC,ADULTS,THAME E&A HOME,OTHER MISC INC,13/11/2023,000009230352332,105.19,STRATTON AUDLEY BARN
OXFORDSHIRE CC,CHILDREN'S & EDUCATION,DIDCOT MOVE-ON HOME,CATERING PROVISIONS,13/11/2023,000009230352118,10.66,SAINSBURYS S/MKTS
OXFORDSHIRE CC,ADULTS,THAME E&A HOME,OTHER MISC INC,13/11/2023,000009230352328,35.94,HADDENHAM GARDEN CEN L
OXFORDSHIRE CC,CHILDREN'S & EDUCATION,THAME E&A HOME,ENTERTAINMENT EXPENSES,13/11/2023,000009230351874,1.9,REBOUND REVOLUTION
OXFORDSHIRE CC,CHILDREN'S & EDUCATION,THAME E&A HOME,ENTERTAINMENT EXPENSES,13/11/2023,000009230351872,5,REBOUND REVOLUTION
OXFORDSHIRE CC,CHILDREN'S & EDUCATION,ICS ADMIN,MATERIALS,13/11/2023,000009230352206,40.09,AMAZON.CO.UK HB01F8AV4
OXFORDSHIRE CC,ADULTS,THAME E&A HOME,OTHER MISC INC,13/11/2023,000009230352330,163.65,THE TREE BARN
OXFORDSHIRE CC,CHILDREN'S & EDUCATION,NTS UASC AGENCY,MATERIALS,13/11/2023,000009230351938,102.83,AMZNMKTPLACE
OXFORDSHIRE CC,CHILDREN'S & EDUCATION,THAME E&A HOME,ENTERTAINMENT EXPENSES,13/11/2023,000009230351870,4.9,REBOUND REVOLUTION
OXFORDSHIRE CC,ADULTS,CSS WALLINGFORD,EQUIPMENT,13/11/2023,000009230351850,27.34,AMZNMKTPLACE
OXFORDSHIRE CC,ADULTS,THAME E&A HOME,OTHER MISC INC,13/11/2023,000009230352338,80.94,NOTCUTTS GARDEN CE
OXFORDSHIRE CC,CUSTOMER AND CULTURE,COMMUNITY PARTNERSHIP TEAM,MATERIALS,13/11/2023,000009230351990,38.34,AMZNMKTPLACE
OXFORDSHIRE CC,CHILDREN'S & EDUCATION,FAMILY SOLUTIONS PLUS NON-STAFF - NORTH,OTHER TRANSPORT ARRANGEMENTS,13/11/2023,000009230352604,20,NATIONAL EXPRESS LIMIT
OXFORDSHIRE CC,CHILDREN'S & EDUCATION,THAME E&A HOME,CATERING PROVISIONS,13/11/2023,000009230352208,7.85,LONDON FOOD & WINE
OXFORDSHIRE CC,CUSTOMER AND CULTURE,CATERING MANAGEMENT SOFT FM,POSTAGE AND DELIVERY,13/11/2023,000009230352610,10.8,POST OFFICE COUNTER
OXFORDSHIRE CC,ADULTS,THAME E&A HOME,OTHER MISC INC,13/11/2023,000009230352336,18,THE FINISHING TOUCH
OXFORDSHIRE CC,ADULTS,THAME E&A HOME,OTHER MISC INC,13/11/2023,000009230352334,34.98,WEBBS GARDEN CENTRES L
OXFORDSHIRE CC,CUSTOMER AND CULTURE,"MARKETING, COMMUNICATIONS & ENGAGEMENT","PUBLICITY, PROMOTIONS AND ADVERTISEMENT",13/11/2023,000009230352390,500,FACEBK  GY3XVV3AZ2
OXFORDSHIRE CC,CUSTOMER AND CULTURE,THAME LIBRARY,CATERING PROVISIONS,13/11/2023,000009230352470,7.3,SAINSBURYS S/MKTS
OXFORDSHIRE CC,CHILDREN'S & EDUCATION,CHILDREN IN CARE NON-STAFFING - NORTH,VEHICLE FUEL,13/11/2023,000009230352606,28.74,EMPIRE PETROLEUM
OXFORDSHIRE CC,CHILDREN'S & EDUCATION,40 THE MOORS,CATERING PROVISIONS,13/11/2023,000009230352564,168.78,SAINSBURYS.CO.UK
OXFORDSHIRE CC,CUSTOMER AND CULTURE,"MARKETING, COMMUNICATIONS & ENGAGEMENT","PUBLICITY, PROMOTIONS AND ADVERTISEMENT",13/11/2023,000009230352388,29.18,SNAP INC SNAP SNAP ADS
OXFORDSHIRE CC,CHILDREN'S & EDUCATION,THAME E&A HOME,MATERIALS,13/11/2023,000009230352012,7.99,TESCO SUBSCRIPTION
OXFORDSHIRE CC,CUSTOMER AND CULTURE,COMMUNITY PARTNERSHIP TEAM,MATERIALS,13/11/2023,000009230351996,-32.98,AMZNMKTPLACE
OXFORDSHIRE CC,CUSTOMER AND CULTURE,COMMUNITY PARTNERSHIP TEAM,MATERIALS,13/11/2023,000009230351994,-16.99,AMZNMKTPLACE
OXFORDSHIRE CC,CUSTOMER AND CULTURE,COMMUNITY PARTNERSHIP TEAM,MATERIALS,13/11/2023,000009230351992,-6.15,AMZNMKTPLACE
OXFORDSHIRE CC,CHILDREN'S & EDUCATION,"	SEN/ICT EQUIPMENT",OTHER TRANSPORT ARRANGEMENTS,13/11/2023,000009230352060,13.19,UPS LTD
OXFORDSHIRE CC,CHILDREN'S & EDUCATION,KINGFISHER,VEHICLE FUEL,13/11/2023,000009230352492,56.98,SAINSBURYS PETROL
OXFORDSHIRE CC,CHILDREN'S & EDUCATION,40 THE MOORS,POCKET MONEY (PAID TO CHILDREN),13/11/2023,000009230352572,3.84,CO-OPERATIVE FOOD
OXFORDSHIRE CC,CHILDREN'S & EDUCATION,40 THE MOORS,POCKET MONEY (PAID TO CHILDREN),13/11/2023,000009230352570,10,TESCO STORES 2788
OXFORDSHIRE CC,CHILDREN'S & EDUCATION,KINGFISHER,VEHICLE FUEL,13/11/2023,000009230352490,25.03,WELCOME BREAK
OXFORDSHIRE CC,CHILDREN'S & EDUCATION,KINGFISHER,CATERING PROVISIONS,13/11/2023,000009230352488,18.77,WELCOME BREAK KFC
OXFORDSHIRE CC,CHILDREN'S & EDUCATION,THAME E&A HOME,ENTERTAINMENT EXPENSES,13/11/2023,000009230352456,19.21,HWB OXFORD
OXFORDSHIRE CC,CHILDREN'S & EDUCATION,THAME E&A HOME,ENTERTAINMENT EXPENSES,13/11/2023,000009230352160,52.46,HOLLYWOOD BOWL
OXFORDSHIRE CC,CHILDREN'S & EDUCATION,40 THE MOORS,CATERING PROVISIONS,13/11/2023,000009230352558,12.8,TESCO STORES 2788
OXFORDSHIRE CC,CHILDREN'S & EDUCATION,40 THE MOORS,HIRED AND CONTRACTED SERVICES,13/11/2023,000009230352556,15,SUMUP   BARNETS BARBER
OXFORDSHIRE CC,CHILDREN'S & EDUCATION,UASC 16&17,OTHER TRANSPORT ARRANGEMENTS,13/11/2023,000009230352498,91.5,WWW.THEKEY.CO.UK
OXFORDSHIRE CC,CHILDREN'S & EDUCATION,THAME E&A HOME,VEHICLE FUEL,13/11/2023,000009230352008,10.08,TESCO PFS 4267
OXFORDSHIRE CC,CHILDREN'S & EDUCATION,"	OCCG GRANT",MATERIALS,13/11/2023,000009230352706,13.5,TIMPSON LTD
OXFORDSHIRE CC,CHILDREN'S & EDUCATION,40 THE MOORS,CATERING,13/11/2023,000009230352560,11.95,COSTA COFFEE
OXFORDSHIRE CC,CHILDREN'S & EDUCATION,KINGFISHER,CATERING PROVISIONS,13/11/2023,000009230352230,12.28,OXFORD KFC
OXFORDSHIRE CC,CUSTOMER AND CULTURE,CATERING MANAGEMENT SOFT FM,CATERING PROVISIONS,13/11/2023,000009230351844,33.1,ALDI 85 772
OXFORDSHIRE CC,CHILDREN'S & EDUCATION,OXFORDSHIRE,CATERING PROVISIONS,13/11/2023,000009230352300,13.55,TESCO STORES 4377
OXFORDSHIRE CC,CHILDREN'S & EDUCATION,WITNEY,CATERING PROVISIONS,13/11/2023,000009230352196,65.24,ASDA STORES 4920
OXFORDSHIRE CC,CHILDREN'S & EDUCATION,WITNEY,CATERING PROVISIONS,13/11/2023,000009230352188,21.8,ASDA STORES 4920
OXFORDSHIRE CC,CHILDREN'S & EDUCATION,CHILDREN IN CARE NON-STAFFING - SOUTH,PAYMENTS TO TRANSPORT OPERATORS,13/11/2023,000009230351892,23.94,TRAINLINE
OXFORDSHIRE CC,CHILDREN'S & EDUCATION,CHILDREN IN CARE NON-STAFFING - SOUTH,PAYMENTS TO TRANSPORT OPERATORS,13/11/2023,000009230351902,23.94,TRAINLINE
OXFORDSHIRE CC,CHILDREN'S & EDUCATION,CHILDREN IN CARE NON-STAFFING - SOUTH,PAYMENTS TO TRANSPORT OPERATORS,13/11/2023,000009230351896,23.94,TRAINLINE
OXFORDSHIRE CC,CHILDREN'S & EDUCATION,CHILDREN IN CARE NON-STAFFING - SOUTH,PAYMENTS TO TRANSPORT OPERATORS,13/11/2023,000009230351890,23.94,TRAINLINE
OXFORDSHIRE CC,CHILDREN'S & EDUCATION,CHILDREN IN CARE NON-STAFFING - SOUTH,PAYMENTS TO TRANSPORT OPERATORS,13/11/2023,000009230351894,23.94,TRAINLINE
OXFORDSHIRE CC,CHILDREN'S & EDUCATION,EET SERVICE,MATERIALS,13/11/2023,000009230352298,51.49,AMZNMKTPLACE
OXFORDSHIRE CC,CHILDREN'S & EDUCATION,PAUSE PROGRAMME,CATERING PROVISIONS,13/11/2023,000009230352710,2.5,WAITROSE 675
OXFORDSHIRE CC,CHILDREN'S & EDUCATION,SEN MISCELLANEOUS EXPENDITURE,IT SOFTWARE,13/11/2023,000009230352678,250,AMAZON.CO.UK HB6Q223H4
OXFORDSHIRE CC,CHILDREN'S & EDUCATION,PAUSE PROGRAMME,CATERING,13/11/2023,000009230352232,7.2,THE SHAKE LAB OXFORD
OXFORDSHIRE CC,CHILDREN'S & EDUCATION,"	LEAVING CARE CITY 2",MATERIALS,13/11/2023,000009230351904,74.95,WWW.ARGOS.CO.UK
OXFORDSHIRE CC,RESOURCES,MOTOR FLEET,MOTOR IF OWN DAMAGE,13/11/2023,000009230352452,"1,152.00",SUMUP   PERFECT FINISH
OXFORDSHIRE CC,CHILDREN'S & EDUCATION,KINGFISHER,OTHER TRANSPORT ARRANGEMENTS,13/11/2023,000009230352494,12,PALM COURT HOTEL CAR P
OXFORDSHIRE CC,CHILDREN'S & EDUCATION,CHILDREN IN CARE NON-STAFFING - SOUTH,PAYMENT TO GOVERNMENT DEPARTMENTS,13/11/2023,000009230351898,66,OXFORDSHIRE CC WEB1
OXFORDSHIRE CC,CHILDREN'S & EDUCATION,"	LEAVING CARE CITY 1",CATERING PROVISIONS,13/11/2023,000009230351876,3.25,COSTA THAME
OXFORDSHIRE CC,CHILDREN'S & EDUCATION,KINGFISHER,MATERIALS,13/11/2023,000009230351858,100,VOUCHER EXPRESS
OXFORDSHIRE CC,ADULTS,CSS BICESTER,EQUIPMENT,13/11/2023,000009230351926,126.24,ETSY.COM MULTIPLE SHOP
OXFORDSHIRE CC,CUSTOMER AND CULTURE,WANTAGE LIBRARY,"SUPPLIES, STATIONERY AND MATERIALS",13/11/2023,000009230352054,3.5,WH SMITH WANTAGE
OXFORDSHIRE CC,ADULTS,INCOME TEAM,PAYMENT TO GOVERNMENT DEPARTMENTS,13/11/2023,000009230352216,11,OXFORDSHIRE CC WEB1
OXFORDSHIRE CC,ADULTS,CSS - ABINGDON,CATERING PROVISIONS,13/11/2023,000009230352704,59.5,WAITROSE 211
OXFORDSHIRE CC,CHILDREN'S & EDUCATION,FAMILY SOLUTIONS PLUS NON-STAFF � SOUTH,PAYMENTS TO TRANSPORT OPERATORS,13/11/2023,000009230352546,84.06,TRAINLINE
OXFORDSHIRE CC,CHILDREN'S & EDUCATION,ICS ADMIN,MATERIALS,13/11/2023,000009230352204,218.99,AMAZON.CO.UK HB6LH6J64
OXFORDSHIRE CC,CHILDREN'S & EDUCATION,NRPF & HOMELESSNESS,HIRE OF ACCOMMODATION AND FACILITIES,13/11/2023,000009230352116,126.98,TRAVELODGE
OXFORDSHIRE CC,RESOURCES,ICT OPERATIONS & MAI,IT SOFTWARE,13/11/2023,000009230352600,410.4,GMO GLOBALSIGN LIM
OXFORDSHIRE CC,RESOURCES,MOTOR FLEET,MOTOR IF OWN DAMAGE,13/11/2023,000009230352450,288,SUMUP   PERFECT FINISH
OXFORDSHIRE CC,CHILDREN'S & EDUCATION,"	LEAVING CARE CITY 1",CATERING,13/11/2023,000009230352112,6.5,CAFFE NERO OXFORD HEAD
OXFORDSHIRE CC,RESOURCES,MOTOR FLEET,MOTOR IF OWN DAMAGE,13/11/2023,000009230352438,559.2,SUMUP   PERFECT FINISH
OXFORDSHIRE CC,ADULTS,SHARED LIVES,OTHER EXPENSES,13/11/2023,000009230352434,8,WAITROSE 211
OXFORDSHIRE CC,RESOURCES,LEGAL SERVICES,LEGAL COSTS,13/11/2023,000009230352576,11,OXFORDSHIRE CC WEB1
OXFORDSHIRE CC,CUSTOMER AND CULTURE,"MARKETING, COMMUNICATIONS & ENGAGEMENT","PUBLICITY, PROMOTIONS AND ADVERTISEMENT",13/11/2023,000009230352386,500,GOOGLE ADS4896546035
OXFORDSHIRE CC,RESOURCES,MOTOR FLEET,MOTOR IF OWN DAMAGE,13/11/2023,000009230352448,"1,337.76",SUMUP   PERFECT FINISH
OXFORDSHIRE CC,CHILDREN'S & EDUCATION,"	DISABILITIES TEAM-C",HIRE OF ACCOMMODATION AND FACILITIES,13/11/2023,000009230351960,91.8,PREMIER INN
OXFORDSHIRE CC,CUSTOMER AND CULTURE,COWLEY LIBRARY,MATERIALS,13/11/2023,000009230352656,104.4,KELBURNE ROAD NEWS
OXFORDSHIRE CC,RESOURCES,MOTOR FLEET,MOTOR IF OWN DAMAGE,13/11/2023,000009230352446,"1,203.72",SUMUP   PERFECT FINISH
OXFORDSHIRE CC,CHILDREN'S & EDUCATION,CHILDREN IN CARE NON-STAFFING - CENTRL 1,OTHER TRANSPORT ARRANGEMENTS,13/11/2023,000009230351900,145,SUMUP   THAMESVALLEYTA
OXFORDSHIRE CC,CHILDREN'S & EDUCATION,THAME E&A HOME,ENTERTAINMENT EXPENSES,13/11/2023,000009230351866,37.5,JUMP INC BICESTER
OXFORDSHIRE CC,RESOURCES,MOTOR FLEET,MOTOR IF OWN DAMAGE,13/11/2023,000009230352440,429.6,SUMUP   PERFECT FINISH
OXFORDSHIRE CC,CHILDREN'S & EDUCATION,UASC 16&17,MATERIALS,13/11/2023,000009230351908,69.99,WWW.ARGOS.CO.UK
OXFORDSHIRE CC,CHILDREN'S & EDUCATION,NTS UASC AGENCY,MATERIALS,13/11/2023,000009230351936,9.65,AMZNMKTPLACE
OXFORDSHIRE CC,CHILDREN'S & EDUCATION,THAME E&A HOME,OTHER TRANSPORT ARRANGEMENTS,13/11/2023,000009230352646,3.8,WESTGATE OXFORD CAR PA
OXFORDSHIRE CC,CHILDREN'S & EDUCATION,THAME E&A HOME,CATERING PROVISIONS,13/11/2023,000009230352002,12.4,TESCO STORES 2008
OXFORDSHIRE CC,ADULTS,CSS WITNEY,CATERING PROVISIONS,13/11/2023,000009230352642,107.63,HOME BARGAINS
OXFORDSHIRE CC,ADULTS,CSS WITNEY,CATERING PROVISIONS,13/11/2023,000009230352644,9.99,HOME BARGAINS
OXFORDSHIRE CC,RESOURCES,CORPORATE FINANCE,PAYMENTS TO TRANSPORT OPERATORS,13/11/2023,000009230352168,31.8,WWW.GWR.COM
OXFORDSHIRE CC,CHILDREN'S & EDUCATION,THAME E&A HOME,CATERING,13/11/2023,000009230352648,7.95,BENITOS HAT
OXFORDSHIRE CC,ADULTS,CSS - BANBURY,CATERING PROVISIONS,13/11/2023,000009230352634,11.5,TESCO STORES 2064
OXFORDSHIRE CC,CHILDREN'S & EDUCATION,"	LEAVING CARE CITY 1",CATERING,13/11/2023,000009230352114,16.46,MCDONALDS
OXFORDSHIRE CC,ADULTS,FPT SOUTH/VALE,HOSPITALITY EXPENSES,13/11/2023,000009230352708,47.99,TRAVELODGE
OXFORDSHIRE CC,CHILDREN'S & EDUCATION,UASC 16&17,MATERIALS,13/11/2023,000009230352100,32,AMAZON.CO.UK HB8FC9JF4
OXFORDSHIRE CC,ENVIRONMENT AND PLACE,WASTE STRATEGIC PROJECTS,EQUIPMENT,13/11/2023,000009230352018,"1,377.85",WWW.INVOPAK.CO.UK
OXFORDSHIRE CC,ADULTS,CSS - BANBURY,MATERIALS,13/11/2023,000009230352630,12,WH SMITH BANBURY
OXFORDSHIRE CC,CUSTOMER AND CULTURE,OXFORDSHIRE MUSEUM,MATERIALS,13/11/2023,000009230352310,74.16,AMZNMKTPLACE
OXFORDSHIRE CC,ENVIRONMENT AND PLACE,WASTE REDUCTION GEN,PAYMENTS TO TRANSPORT OPERATORS,13/11/2023,000009230352020,33.41,TRAINLINE
OXFORDSHIRE CC,ADULTS,CSS - BANBURY,CATERING PROVISIONS,13/11/2023,000009230352636,1.5,ONEBELOW
OXFORDSHIRE CC,CHILDREN'S & EDUCATION,THAME E&A HOME,CATERING,13/11/2023,000009230352650,13.2,BOOST JUICE BARS
OXFORDSHIRE CC,CHILDREN'S & EDUCATION,EYNSHAM,MATERIALS,13/11/2023,000009230352056,69,WWW.ARGOS.CO.UK
OXFORDSHIRE CC,CUSTOMER AND CULTURE,DIDOCT LIBRARY,"NEWSPAPERS, PERIODICALS AND PUBLICATIONS",13/11/2023,000009230352174,95.6,PPOINT_ AMIN NEWSAGENT
OXFORDSHIRE CC,ENVIRONMENT AND PLACE,WASTE REDUCTION GEN,OTHER TRAINING COURSES AND QUALIFICATION,13/11/2023,000009230352014,384,METROPOLIS EVENTS F07B
OXFORDSHIRE CC,ADULTS,CSS - BANBURY,MATERIALS,13/11/2023,000009230352628,21.5,TIGER
OXFORDSHIRE CC,RESOURCES,MOTOR FLEET,MOTOR IF FEES,13/11/2023,000009230352436,133.5,SIDNEY H HOOPER & COMP
OXFORDSHIRE CC,ADULTS,CSS BICESTER,MATERIALS,13/11/2023,000009230351924,20,AMZNMKTPLACE
OXFORDSHIRE CC,ADULTS,CSS BICESTER,MATERIALS,13/11/2023,000009230351928,6.99,AMZNMKTPLACE
OXFORDSHIRE CC,ADULTS,CSS - ABINGDON,CATERING PROVISIONS,13/11/2023,000009230352702,30,B&M 515 - ABINGDON
OXFORDSHIRE CC,ADULTS,CSS WALLINGFORD,CATERING PROVISIONS,13/11/2023,000009230351838,13.75,WAITROSE 675
OXFORDSHIRE CC,CHILDREN'S & EDUCATION,"	LEAVING CARE CITY 2",CATERING,13/11/2023,000009230352268,6.1,GEORGE AND DANVER
OXFORDSHIRE CC,ADULTS,PAUSE PROGRAMME,MATERIALS,13/11/2023,000009230352068,4.59,AMZNMKTPLACE
OXFORDSHIRE CC,CUSTOMER AND CULTURE,SCHOOLS FM CATERING AREA 1,CATERING PROVISIONS,13/11/2023,000009230352532,18.8,SAINSBURYS S/MKTS
OXFORDSHIRE CC,ADULTS,CSS - OXFORD,CATERING PROVISIONS,13/11/2023,000009230352024,52.47,ALDI STORES 775-142
OXFORDSHIRE CC,ADULTS,ATV ADOPTION WOODLEY,HIRE OF ACCOMMODATION AND FACILITIES,13/11/2023,000009230352686,340,MS  THEHEYFORDHOTEL
OXFORDSHIRE CC,ADULTS,ATV ADOPTION WOODLEY,HIRE OF ACCOMMODATION AND FACILITIES,13/11/2023,000009230352688,500,MS  THEHEYFORDHOTEL
OXFORDSHIRE CC,CUSTOMER AND CULTURE,THAME LIBRARY,CATERING PROVISIONS,13/11/2023,000009230352468,5.6,SAINSBURYS S/MKTS
OXFORDSHIRE CC,ADULTS,PAUSE PROGRAMME,MATERIALS,13/11/2023,000009230352064,9.99,AMZNMKTPLACE
OXFORDSHIRE CC,CHILDREN'S & EDUCATION,"	LEAVING CARE SOUTH",VEHICLE FUEL,13/11/2023,000009230352172,40.02,ESSO ACORN SSTN
OXFORDSHIRE CC,CHILDREN'S & EDUCATION,CHILDREN IN CARE NON-STAFFING - CENTRL 1,PAYMENTS TO TRANSPORT OPERATORS,13/11/2023,000009230351888,24.24,TRAINLINE
OXFORDSHIRE CC,ADULTS,PAUSE PROGRAMME,PRINTING,13/11/2023,000009230352062,12.99,SQ  OFFICE OF CARE LEA
OXFORDSHIRE CC,CORPORATE CORE,,STATIONERY,13/11/2023,000009230352486,200.31,LYRECO UK LTD
OXFORDSHIRE CC,CORPORATE CORE,,STATIONERY,13/11/2023,000009230352482,15.04,LYRECO UK LTD
OXFORDSHIRE CC,CORPORATE CORE,,STATIONERY,13/11/2023,000009230352484,172.27,LYRECO UK LTD
OXFORDSHIRE CC,CHILDREN'S & EDUCATION,"	LEAVING CARE SOUTH",CATERING PROVISIONS,13/11/2023,000009230352046,9,CO-OPERATIVE FOOD
OXFORDSHIRE CC,CHILDREN'S & EDUCATION,THAME E&A HOME,CATERING PROVISIONS,13/11/2023,000009230352004,190.47,TESCO STORES 2038
OXFORDSHIRE CC,CHILDREN'S & EDUCATION,EYNSHAM,CATERING,13/11/2023,000009230351848,115.96,TESCO STORES 2008
OXFORDSHIRE CC,CUSTOMER AND CULTURE,BUSINESS INTELLECTUAL PROPERTY CENTRE,PAYMENTS TO TRANSPORT OPERATORS,13/11/2023,000009230352276,15.29,TRAINLINE
OXFORDSHIRE CC,ADULTS,CSS - OXFORD,CATERING PROVISIONS,13/11/2023,000009230352022,0.44,ALDI STORES 775-142
OXFORDSHIRE CC,CHILDREN'S & EDUCATION,"	LOOKED AFTER CITY 2",OTHER TRANSPORT ARRANGEMENTS,13/11/2023,000009230352254,5.9,TFL TRAVEL CH
OXFORDSHIRE CC,CHILDREN'S & EDUCATION,"	LOOKED AFTER CITY 2",OTHER TRANSPORT ARRANGEMENTS,13/11/2023,000009230352252,2,OXFORD BUS COMPANY
OXFORDSHIRE CC,RESOURCES,MOTOR FLEET,MOTOR IF FEES,13/11/2023,000009230352454,-133.5,SIDNEY H HOOPER & COMP
OXFORDSHIRE CC,ENVIRONMENT AND PLACE,HWAYS NETWORK MGT,OTHER TRAINING COURSES AND QUALIFICATION,13/11/2023,000009230351956,-444.45,TRAVELODGE
OXFORDSHIRE CC,ENVIRONMENT AND PLACE,HWAYS NETWORK MGT,OTHER TRAINING COURSES AND QUALIFICATION,13/11/2023,000009230351958,-59.49,TRAVELODGE
OXFORDSHIRE CC,CHILDREN'S & EDUCATION,THAME E&A HOME,CATERING EQUIPMENT,13/11/2023,000009230352614,8.35,THAME BP SF CONNECT
OXFORDSHIRE CC,CUSTOMER AND CULTURE,OXFORDSHIRE MUSEUM,FIXTURES & FITTINGS,13/11/2023,000009230352308,108.79,CHRISTMAS DIRECT
OXFORDSHIRE CC,CHILDREN'S & EDUCATION,"	OSCB",MATERIALS,13/11/2023,000009230352626,51.42,AMZNMKTPLACE
OXFORDSHIRE CC,CHILDREN'S & EDUCATION,NTS UASC AGENCY,MATERIALS,13/11/2023,000009230351934,15.39,AMZNMKTPLACE
OXFORDSHIRE CC,CHILDREN'S & EDUCATION,"	MARLBOROUGH",MATERIALS,13/11/2023,000009230352050,14.98,AMZNMKTPLACE
OXFORDSHIRE CC,ADULTS,CSS - BANBURY,PAYMENTS TO VOLUNTARY BODIES,13/11/2023,000009230352640,417,PAYPAL  BAG BOOKS
OXFORDSHIRE CC,CUSTOMER AND CULTURE,OXFORDSHIRE MUSEUM,MATERIALS,13/11/2023,000009230352312,111.92,AMZNMKTPLACE
OXFORDSHIRE CC,CHILDREN'S & EDUCATION,KINGFISHER,CATERING,13/11/2023,000009230352228,6.39,MCDONALDS
OXFORDSHIRE CC,CUSTOMER AND CULTURE,SCHOOLS FM CATERING AREA 1,CATERING PROVISIONS,13/11/2023,000009230352530,4.98,ALDI 112 775
OXFORDSHIRE CC,CUSTOMER AND CULTURE,"MARKETING, COMMUNICATIONS & ENGAGEMENT","PUBLICITY, PROMOTIONS AND ADVERTISEMENT",10/11/2023,000009221583446,26.84,SNAP INC SNAP SNAP ADS
OXFORDSHIRE CC,ADULTS,CSS WITNEY,CATERING PROVISIONS,10/11/2023,000009221583210,35.7,MILK AND MORE (RECUR
OXFORDSHIRE CC,ENVIRONMENT AND PLACE,FLEET OPERATIONS,CATERING PROVISIONS,10/11/2023,000009221581800,20,MILK AND MORE (RECUR
OXFORDSHIRE CC,CUSTOMER AND CULTURE,SAMUELSON HOUSE,CATERING PROVISIONS,10/11/2023,000009221581754,42.84,MILK AND MORE (RECUR
OXFORDSHIRE CC,CUSTOMER AND CULTURE,HOLTON SITE,CATERING PROVISIONS,10/11/2023,000009221581182,17.5,MILK AND MORE (RECUR
OXFORDSHIRE CC,CUSTOMER AND CULTURE,MUSEUMS COLLECTIONS,CATERING PROVISIONS,10/11/2023,000009221582898,4.62,MILK AND MORE (RECUR
OXFORDSHIRE CC,CHILDREN'S & EDUCATION,THAME E&A HOME,MATERIALS,10/11/2023,000009221584546,7,POUNDLAND LTD - 1586
OXFORDSHIRE CC,CHILDREN'S & EDUCATION,THAME E&A HOME,CATERING PROVISIONS,10/11/2023,000009221584550,10.8,SAINSBURYS S/MKTS
OXFORDSHIRE CC,CHILDREN'S & EDUCATION,THAME E&A HOME,CATERING PROVISIONS,10/11/2023,000009221581918,17.75,WELCOME BREAK-OXFORD
OXFORDSHIRE CC,CHILDREN'S & EDUCATION,"	LOOKED AFTER CITY 2",PAYMENTS TO TRANSPORT OPERATORS,10/11/2023,000009221582556,17.52,TRAINLINE
OXFORDSHIRE CC,CHILDREN'S & EDUCATION,"	LOOKED AFTER CITY 2",PAYMENTS TO TRANSPORT OPERATORS,10/11/2023,000009221582552,24.19,TRAINLINE
OXFORDSHIRE CC,CUSTOMER AND CULTURE,OPERATIONS,"SUPPLIES, STATIONERY AND MATERIALS",10/11/2023,000009221582258,4.11,AMAZON.CO.UK HB2MA4Z04
OXFORDSHIRE CC,CUSTOMER AND CULTURE,MUSIC UNALLOCABLE,PRINTING,10/11/2023,000009221584750,48.94,AMAZON.CO.UK HB4ZR7Z24
OXFORDSHIRE CC,CHILDREN'S & EDUCATION,"	OCCG GRANT",CATERING PROVISIONS,10/11/2023,000009221581706,8.85,TESCO STORES 2413
OXFORDSHIRE CC,CHILDREN'S & EDUCATION,"	OCCG GRANT",BIRTHDAY ALLOWANCE,10/11/2023,000009221581702,11.73,B&M 514 - DICOT
OXFORDSHIRE CC,CUSTOMER AND CULTURE,BUSINESS INTELLECTUAL PROPERTY CENTRE,MATERIALS,10/11/2023,000009221582708,13.5,POUNDLAND LTD - 1230
OXFORDSHIRE CC,CHILDREN'S & EDUCATION,40 THE MOORS,CATERING PROVISIONS,10/11/2023,000009221584320,14.14,TESCO STORES 2788
OXFORDSHIRE CC,ADULTS,CSS WALLINGFORD,MATERIALS,10/11/2023,000009221580672,17.97,AMZNMKTPLACE
OXFORDSHIRE CC,CHILDREN'S & EDUCATION,40 THE MOORS,POCKET MONEY (PAID TO CHILDREN),10/11/2023,000009221584318,60,SUMUP   MPR-OXON
OXFORDSHIRE CC,ADULTS,CSS BICESTER,MATERIALS,10/11/2023,000009221581172,14.99,AMZNMKTPLACE
OXFORDSHIRE CC,CUSTOMER AND CULTURE,OCCG GRANT,DAY ACTIVITIES,10/11/2023,000009221584938,16.6,THE LIGHT CINEMAS BANB
OXFORDSHIRE CC,CHILDREN'S & EDUCATION,PAUSE PROGRAMME,CATERING PROVISIONS,10/11/2023,000009221585024,5.3,SAINSBURYS S/MKTS
OXFORDSHIRE CC,CUSTOMER AND CULTURE,MUSIC UNALLOCABLE,EQUIPMENT MAINTENANCE CONTRACTS,10/11/2023,000009221584754,83.89,AMZNMKTPLACE
OXFORDSHIRE CC,CHILDREN'S & EDUCATION,WITNEY,CATERING PROVISIONS,10/11/2023,000009221584186,3.84,CO-OP GROUP 070582
OXFORDSHIRE CC,RESOURCES,INCOME TEAM,PAYMENT TO GOVERNMENT DEPARTMENTS,10/11/2023,000009221582532,115,WWW.MONEYCLAIM.GOV
OXFORDSHIRE CC,CUSTOMER AND CULTURE,BUSINESS INTELLECTUAL PROPERTY CENTRE,EDUCATIONAL AND VOCATIONAL TRAINING ,10/11/2023,000009221582704,25,OXFORD UNIV EVENTS
OXFORDSHIRE CC,CHILDREN'S & EDUCATION,"	LEAVING CARE CITY 2",PAYMENTS TO OTHER ESTABLISHMENTS,10/11/2023,000009221584666,15,CITIZENCARD
OXFORDSHIRE CC,CHILDREN'S & EDUCATION,EET SERVICE,MATERIALS,10/11/2023,000009221582980,7.99,AMZNMKTPLACE
OXFORDSHIRE CC,ADULTS,CSS BICESTER,PURCHASE OF IT EQUIPMENT,10/11/2023,000009221584834,19.98,AMAZON.CO.UK HB29E3ZB4
OXFORDSHIRE CC,CUSTOMER AND CULTURE,OCCG GRANT,DAY ACTIVITIES,10/11/2023,000009221584934,22.98,THE LIGHT CINEMAS BANB
OXFORDSHIRE CC,CHILDREN'S & EDUCATION,CHILDREN IN CARE NON-STAFFING - SOUTH,OTHER TRANSPORT ARRANGEMENTS,10/11/2023,000009221581118,24.5,OXFORDBUS.CO.UK
OXFORDSHIRE CC,CUSTOMER AND CULTURE,OXFORDSHIRE MUSEUM,CATERING PROVISIONS,10/11/2023,000009221583038,17.36,TEMU.COM
OXFORDSHIRE CC,CHILDREN'S & EDUCATION,SEND CASEWORK TEAM,POSTAGE AND DELIVERY,10/11/2023,000009221584850,6.49,ROYAL MAIL GROUP LTD
OXFORDSHIRE CC,CUSTOMER AND CULTURE,COMMUNITY PARTNERSHIP TEAM,MATERIALS,10/11/2023,000009221581386,31.46,AMZNMKTPLACE
OXFORDSHIRE CC,CHILDREN'S & EDUCATION,"	LOOKED AFTER SOUTH",POSTAGE AND DELIVERY,10/11/2023,000009221584696,9.45,POST OFFICE COUNTER
OXFORDSHIRE CC,CUSTOMER AND CULTURE,HARD FM,PREMISES REPAIRS,10/11/2023,000009221580932,12.06,JEWSON LTD
OXFORDSHIRE CC,CHILDREN'S & EDUCATION,UASC POST 18,RESIDENTIAL ACTIVITIES,10/11/2023,000009221583468,24.99,BUZZ GYM
OXFORDSHIRE CC,ADULTS,CSS WITNEY,MATERIALS,10/11/2023,000009221584634,1.25,POUNDLAND LTD - 1912
OXFORDSHIRE CC,CHILDREN'S & EDUCATION,WITNEY,CATERING PROVISIONS,10/11/2023,000009221584380,8.4,MARKS&SPENCER PLC SACA
OXFORDSHIRE CC,CHILDREN'S & EDUCATION,FAMILY SOLUTIONS PLUS NON-STAFF - NORTH,CATERING PROVISIONS,10/11/2023,000009221584114,20,TESCO GIFT CARD
OXFORDSHIRE CC,ADULTS,CSS - OXFORD,MATERIALS,10/11/2023,000009221581420,25.67,PETS AT HOME LTD
OXFORDSHIRE CC,CHILDREN'S & EDUCATION,FAMILY SOLUTIONS PLUS NON-STAFF - NORTH,PAYMENT TO GOVERNMENT DEPARTMENTS,10/11/2023,000009221584108,87.5,HM PASSPORT OFFICE
OXFORDSHIRE CC,CHILDREN'S & EDUCATION,"	SEN/ICT EQUIPMENT",PURCHASE OF IT EQUIPMENT,10/11/2023,000009221584848,25.91,AMZNMKTPLACE
OXFORDSHIRE CC,RESOURCES,INCOME TEAM,PAYMENT TO GOVERNMENT DEPARTMENTS,10/11/2023,000009221582538,205,WWW.MONEYCLAIM.GOV
OXFORDSHIRE CC,CHILDREN'S & EDUCATION,"	LEAVING CARE CITY 2",ENTERTAINMENT EXPENSES,10/11/2023,000009221582668,9.74,HWB OXFORD
OXFORDSHIRE CC,CHILDREN'S & EDUCATION,NTS UASC AGENCY,MATERIALS,10/11/2023,000009221581232,18,AMZNMKTPLACE
OXFORDSHIRE CC,CHILDREN'S & EDUCATION,NTS UASC AGENCY,MATERIALS,10/11/2023,000009221581228,103.99,AMZNMKTPLACE
OXFORDSHIRE CC,CHILDREN'S & EDUCATION,DIDCOT MOVE-ON HOME,CATERING PROVISIONS,10/11/2023,000009221584418,19.19,SAINSBURYS S/MKTS
OXFORDSHIRE CC,CHILDREN'S & EDUCATION,"	LEAVING CARE CITY 1","SUPPLIES, STATIONERY AND MATERIALS",10/11/2023,000009221581000,7.74,CARD FACTORY
OXFORDSHIRE CC,CHILDREN'S & EDUCATION,PAUSE PROGRAMME,CATERING,10/11/2023,000009221582240,25.23,THE EASINGTON
OXFORDSHIRE CC,CHILDREN'S & EDUCATION,NTS UASC AGENCY,MATERIALS,10/11/2023,000009221581218,18.99,AMZNMKTPLACE
OXFORDSHIRE CC,CHILDREN'S & EDUCATION,NTS UASC AGENCY,MATERIALS,10/11/2023,000009221581216,23.99,AMZNMKTPLACE
OXFORDSHIRE CC,CHILDREN'S & EDUCATION,DIDCOT MOVE-ON HOME,CATERING PROVISIONS,10/11/2023,000009221584168,13.85,SAINSBURYS S/MKTS
OXFORDSHIRE CC,CHILDREN'S & EDUCATION,FAMILY SOLUTIONS PLUS NON-STAFF � SOUTH,POSTAGE AND DELIVERY,10/11/2023,000009221584176,7.35,POST OFFICE COUNTER
OXFORDSHIRE CC,CHILDREN'S & EDUCATION,NTS UASC AGENCY,MATERIALS,10/11/2023,000009221581224,45.95,AMZNMKTPLACE
OXFORDSHIRE CC,PUBLIC HEALTH,CHILDREN IN CARE NON-STAFFING - SOUTH,PAYMENT TO GOVERNMENT DEPARTMENTS,10/11/2023,000009221580754,53.5,HM PASSPORT OFFICE
OXFORDSHIRE CC,ADULTS,CSS WANTAGE,ENTERTAINMENT EXPENSES,10/11/2023,000009221583226,23.8,WWW.BETTER.ORG.UK
OXFORDSHIRE CC,CHILDREN'S & EDUCATION,DIDCOT MOVE-ON HOME,CLEANING MATERIALS,10/11/2023,000009221584166,11.98,B&M 514 - DICOT
OXFORDSHIRE CC,ADULTS,CSS WANTAGE,ENTERTAINMENT EXPENSES,10/11/2023,000009221583222,9.9,WWW.BETTER.ORG.UK
OXFORDSHIRE CC,CHILDREN'S & EDUCATION,THAME E&A HOME,CATERING PROVISIONS,10/11/2023,000009221581402,10.3,WAITROSE 206
OXFORDSHIRE CC,ADULTS,CSS - BANBURY,MATERIALS,10/11/2023,000009221584624,71.98,AMZNMKTPLACE
OXFORDSHIRE CC,CHILDREN'S & EDUCATION,KINGFISHER,VEHICLE FUEL,10/11/2023,000009221582268,1.55,TESCO PFS 3374
OXFORDSHIRE CC,ADULTS,CSS WANTAGE,MATERIALS,10/11/2023,000009221580850,326.49,PROFESSIONAL MUSIC
OXFORDSHIRE CC,ADULTS,CSS WANTAGE,EQUIPMENT,10/11/2023,000009221580660,300,PROFESSIONAL MUSIC
OXFORDSHIRE CC,CHILDREN'S & EDUCATION,THAME E&A HOME,MATERIALS,10/11/2023,000009221582292,6.99,AMZNMKTPLACE
OXFORDSHIRE CC,CHILDREN'S & EDUCATION,PAUSE PROGRAMME,MATERIALS,10/11/2023,000009221582246,15.98,SMART IDEAS LIMITED
OXFORDSHIRE CC,CUSTOMER AND CULTURE,MOUNT HOUSE,MATERIALS,10/11/2023,000009221583880,30,AO RETAIL LIMITED
OXFORDSHIRE CC,CHILDREN'S & EDUCATION,CARE LEAVERS STAFFING,PAYMENT TO GOVERNMENT DEPARTMENTS,10/11/2023,000009221584988,34,DVLA DRIVER ONLINE
OXFORDSHIRE CC,ADULTS,CSS WITNEY,CATERING PROVISIONS,10/11/2023,000009221584638,1.44,CO-OP GROUP 070582
OXFORDSHIRE CC,ADULTS,CSS WITNEY,MATERIALS,10/11/2023,000009221584628,5,POUNDLAND LTD - 1912
OXFORDSHIRE CC,ADULTS,CSS WITNEY,ENTERTAINMENT EXPENSES,10/11/2023,000009221582632,21.25,WWW.BETTER.ORG.UK
OXFORDSHIRE CC,CHILDREN'S & EDUCATION,VULNERABLE LEARNERS,EDUCATIONAL AND VOCATIONAL TRAINING ,10/11/2023,000009221581750,312,WESTMINSTER FORUM PROJ
OXFORDSHIRE CC,CUSTOMER AND CULTURE,HISTORY SERVICE,CATERING,10/11/2023,000009221583014,100.46,SAVONA PROVISIONS LTD
OXFORDSHIRE CC,PUBLIC HEALTH,CHILDREN IN CARE NON-STAFFING - SOUTH,OTHER EXPENSES,10/11/2023,000009221580758,100,ASDA STORES LTD
OXFORDSHIRE CC,CUSTOMER AND CULTURE,WALLINGFORD LIBRARY,CATERING PROVISIONS,10/11/2023,000009221583994,1.55,WAITROSE 675
OXFORDSHIRE CC,CUSTOMER AND CULTURE,SCHOOLS FM CATERING AREA 2,CATERING PROVISIONS,10/11/2023,000009221582464,78.18,BOOKER LTD - 38584104
OXFORDSHIRE CC,CHILDREN'S & EDUCATION,FAMILY SOLUTIONS PLUS NON-STAFF � SOUTH,CATERING PROVISIONS,10/11/2023,000009221582996,1.5,TESCO STORES 4377
OXFORDSHIRE CC,CHILDREN'S & EDUCATION,REACTIVE MAINTENANCE,PREMISES REPAIRS,10/11/2023,000009221584570,2.1,RINGGO PARKING
OXFORDSHIRE CC,CHILDREN'S & EDUCATION,FAMILY SOLUTIONS PLUS NON-STAFF - NORTH,PAYMENTS TO TRANSPORT OPERATORS,10/11/2023,000009221584120,8.65,TRAINLINE
OXFORDSHIRE CC,CHILDREN'S & EDUCATION,CHILDREN IN CARE NON-STAFFING - CENTRL 1,PAYMENTS TO TRANSPORT OPERATORS,10/11/2023,000009221581122,135.57,EASYJET
OXFORDSHIRE CC,CHILDREN'S & EDUCATION,CHILDREN IN CARE NON-STAFFING - CENTRL 1,PAYMENTS TO TRANSPORT OPERATORS,10/11/2023,000009221581126,62.07,EASYJET
OXFORDSHIRE CC,ENVIRONMENT AND PLACE,NAT TRAILS GENERAL,CATERING PROVISIONS,10/11/2023,000009221582566,4.45,CO OPERATIVE FOOD
OXFORDSHIRE CC,CUSTOMER AND CULTURE,THAME LIBRARY,CATERING PROVISIONS,10/11/2023,000009221583772,5.6,SAINSBURYS S/MKTS
OXFORDSHIRE CC,ENVIRONMENT AND PLACE,NAT TRAILS GENERAL,VEHICLE FUEL,10/11/2023,000009221582570,83.21,SAINSBURYS PETROL
OXFORDSHIRE CC,PUBLIC HEALTH,PUBLIC HEALTH GENERAL,PAYMENTS TO TRANSPORT OPERATORS,10/11/2023,000009221583564,48,WWW.GWR.COM
OXFORDSHIRE CC,CORPORATE CORE,,STATIONERY,10/11/2023,000009221583858,64.27,LYRECO UK LTD
OXFORDSHIRE CC,CORPORATE CORE,,STATIONERY,10/11/2023,000009221583850,209.03,LYRECO UK LTD
OXFORDSHIRE CC,CORPORATE CORE,,STATIONERY,10/11/2023,000009221583856,7.2,LYRECO UK LTD
OXFORDSHIRE CC,CHILDREN'S & EDUCATION,"	LEAVING CARE SOUTH",TELEPHONE - EQUIPMENT,10/11/2023,000009221582162,12,WWW.VOXI.CO.UK
OXFORDSHIRE CC,ADULTS,CSS - OXFORD,MATERIALS,10/11/2023,000009221582800,-22.95,AMZNMKTPLACE
OXFORDSHIRE CC,CHILDREN'S & EDUCATION,FIELDWORK UASC,OTHER TRANSPORT ARRANGEMENTS,10/11/2023,000009221584556,4.5,OXFORD BUS COMPANY
OXFORDSHIRE CC,CUSTOMER AND CULTURE,COMMUNITY PARTNERSHIP TEAM,MATERIALS,10/11/2023,000009221581382,25.49,AMZNMKTPLACE
OXFORDSHIRE CC,CHILDREN'S & EDUCATION,FAMILY SOLUTIONS PLUS NON-STAFF - NORTH,CATERING,10/11/2023,000009221584104,10,STARBUCKS BICESTER
OXFORDSHIRE CC,CHILDREN'S & EDUCATION,FAMILY SOLUTIONS PLUS NON-STAFF � SOUTH,CATERING,10/11/2023,000009221584272,12.48,MCDONALDS
OXFORDSHIRE CC,CHILDREN'S & EDUCATION,PAUSE PROGRAMME,CATERING,10/11/2023,000009221585014,11.1,MCDONALDS
OXFORDSHIRE CC,CHILDREN'S & EDUCATION,FAMILY SOLUTIONS PLUS NON-STAFF - NORTH,OTHER TRANSPORT ARRANGEMENTS,10/11/2023,000009221584526,53,STAGECOACH SERVICES
OXFORDSHIRE CC,CHILDREN'S & EDUCATION,"	LOOKED AFTER CITY 2",OTHER TRANSPORT ARRANGEMENTS,10/11/2023,000009221582548,85,STAGECOACH SERVICES
OXFORDSHIRE CC,ADULTS,CSS BICESTER,MATERIALS,10/11/2023,000009221581168,23,THEWORKS.CO.UK
OXFORDSHIRE CC,CHILDREN'S & EDUCATION,THAME E&A HOME,MATERIALS,10/11/2023,000009221582286,10.59,AMZNMKTPLACE
OXFORDSHIRE CC,CUSTOMER AND CULTURE,COMMUNITY PARTNERSHIP TEAM,MATERIALS,10/11/2023,000009221581390,12.98,AMZNMKTPLACE
OXFORDSHIRE CC,CUSTOMER AND CULTURE,KNIGHTS COURT,CATERING PROVISIONS,10/11/2023,000009221582482,36.05,ALDI STORES 775-142
OXFORDSHIRE CC,CHILDREN'S & EDUCATION,THAME E&A HOME,CATERING PROVISIONS,10/11/2023,000009221581954,17.1,THAME BP SF CONNECT
OXFORDSHIRE CC,CHILDREN'S & EDUCATION,PAUSE PROGRAMME,CATERING,10/11/2023,000009221585020,6.97,MCDONALDS
OXFORDSHIRE CC,CHILDREN'S & EDUCATION,"	OCCG GRANT",CATERING,10/11/2023,000009221582322,12.78,MCDONALDS 1279
OXFORDSHIRE CC,ADULTS,CSS - OXFORD,CATERING PROVISIONS,10/11/2023,000009221582070,48.93,ALDI STORES 775-142
OXFORDSHIRE CC,CHILDREN'S & EDUCATION,"	LEAVING CARE SOUTH",HIRE OF ACCOMMODATION AND FACILITIES,10/11/2023,000009221582158,58.49,PREMIER INN
OXFORDSHIRE CC,ENVIRONMENT AND PLACE,TVERC,OTHER TRAINING COURSES AND QUALIFICATION,10/11/2023,000009221580976,65,PAYPAL  OCVA
OXFORDSHIRE CC,CUSTOMER AND CULTURE,HISTORY SERVICE,MATERIALS,09/11/2023,000011295454067,91.99,AMAZON.CO.UK HB3TM9F64
OXFORDSHIRE CC,CUSTOMER AND CULTURE,"MARKETING, COMMUNICATIONS & ENGAGEMENT","PUBLICITY, PROMOTIONS AND ADVERTISEMENT",09/11/2023,000011295454195,23,SNAP INC SNAP SNAP ADS
OXFORDSHIRE CC,PUBLIC HEALTH,WITNEY,MATERIALS,09/11/2023,000011295453395,43.22,AMZNMKTPLACE
OXFORDSHIRE CC,CHILDREN'S & EDUCATION,EYNSHAM,CATERING PROVISIONS,09/11/2023,000011295454415,1.25,SPAR EYNSHAM
OXFORDSHIRE CC,CUSTOMER AND CULTURE,OPS MGR LIB NETWORK,FURNITURE,09/11/2023,000011295453787,38.41,AMZNMKTPLACE
OXFORDSHIRE CC,CUSTOMER AND CULTURE,OPS MGR LIB NETWORK,FURNITURE,09/11/2023,000011295453783,9.5,AMZNMKTPLACE
OXFORDSHIRE CC,CUSTOMER AND CULTURE,OPS MGR LIB NETWORK,FURNITURE,09/11/2023,000011295453775,13,AMZNMKTPLACE
OXFORDSHIRE CC,CHILDREN'S & EDUCATION,KINGFISHER,CATERING,09/11/2023,000011295453809,16.24,"KFC OXFORD, TEMPLARS S"
OXFORDSHIRE CC,ADULTS,THAME E&A HOME,CATERING PROVISIONS,09/11/2023,000011295454125,9.65,SAINSBURYS S/MKTS
OXFORDSHIRE CC,CHILDREN'S & EDUCATION,KINGFISHER,SUBSCRIPTIONS,09/11/2023,000011295453805,12.5,BOX FIT PT
OXFORDSHIRE CC,ADULTS,CSS WANTAGE,CATERING PROVISIONS,09/11/2023,000011295453375,10,ASDA STORES 5123
OXFORDSHIRE CC,CHILDREN'S & EDUCATION,EYNSHAM,CATERING PROVISIONS,09/11/2023,000011295454413,1.65,TESCO PFS 3418
OXFORDSHIRE CC,CHILDREN'S & EDUCATION,WITNEY,CATERING PROVISIONS,09/11/2023,000011295454353,18.86,SAINSBURYS S/MKTS
OXFORDSHIRE CC,CHILDREN'S & EDUCATION,"	LEAVING CARE NORTH",CLOTHING AND UNIFORMS,09/11/2023,000011295454341,120,J D SPORTS FASHION
OXFORDSHIRE CC,CHILDREN'S & EDUCATION,OTFC TEAM,ENTERTAINMENT EXPENSES,09/11/2023,000011295454361,3.05,THE MAD HOUSE (READING
OXFORDSHIRE CC,CHILDREN'S & EDUCATION,OTFC TEAM,ENTERTAINMENT EXPENSES,09/11/2023,000011295454357,7.95,THE MAD HOUSE (READING
OXFORDSHIRE CC,CHILDREN'S & EDUCATION,FAMILY SOLUTIONS PLUS NON-STAFF - NORTH,PAYMENTS TO TRANSPORT OPERATORS,09/11/2023,000011295454467,58.7,WWW.GWR.COM
OXFORDSHIRE CC,ADULTS,NORTH TEAM,POSTAGE AND DELIVERY,09/11/2023,000011295454251,8.7,PARCELFORCE WL
OXFORDSHIRE CC,ADULTS,CSS BICESTER,MATERIALS,09/11/2023,000011295453481,15.66,AMZNMKTPLACE
OXFORDSHIRE CC,CHILDREN'S & EDUCATION,CHILDREN IN CARE NON-STAFFING - NORTH,CATERING,09/11/2023,000011295454471,12.5,ON THE HOOF
OXFORDSHIRE CC,CHILDREN'S & EDUCATION,VULNERABLE LEARNERS,EDUCATIONAL AND VOCATIONAL TRAINING ,09/11/2023,000011295453605,312,WESTMINSTER FORUM PROJ
OXFORDSHIRE CC,CHILDREN'S & EDUCATION,OTFC TEAM,CATERING PROVISIONS,09/11/2023,000011295454363,6.45,CO-OP GROUP 310626
OXFORDSHIRE CC,CHILDREN'S & EDUCATION,THAME E&A HOME,MATERIALS,09/11/2023,000011295453815,22.99,EBAY O 08-10764-64837
OXFORDSHIRE CC,CHILDREN'S & EDUCATION,"	LEAVING CARE CITY 2",PAYMENTS TO TRANSPORT OPERATORS,09/11/2023,000011295453843,93.15,BKG HOTEL AT BOOKING.C
OXFORDSHIRE CC,PUBLIC HEALTH,CHILDREN IN CARE NON-STAFFING - SOUTH,OTHER TRANSPORT ARRANGEMENTS,09/11/2023,000011295453389,85,TW EXPRESS CARS
OXFORDSHIRE CC,CHILDREN'S & EDUCATION,THAME E&A HOME,CLOTHING AND UNIFORMS,09/11/2023,000011295454491,53.99,PRETTYLITTLETHING.COM
OXFORDSHIRE CC,PUBLIC HEALTH,CHILDREN IN CARE NON-STAFFING - SOUTH,OTHER TRANSPORT ARRANGEMENTS,09/11/2023,000011295453385,10,NEALES TAXIS LTD
OXFORDSHIRE CC,CHILDREN'S & EDUCATION,PAUSE PROGRAMME,MATERIALS,09/11/2023,000011295454667,30,DIDCOT SPORTS DIRECT
OXFORDSHIRE CC,CUSTOMER AND CULTURE,HARD FM,PREMISES REPAIRS,09/11/2023,000011295453457,111.06,B & Q 1062
OXFORDSHIRE CC,CHILDREN'S & EDUCATION,DIDCOT MOVE-ON HOME,CATERING PROVISIONS,09/11/2023,000011295454393,40.22,SAINSBURYS SMKT
OXFORDSHIRE CC,CHILDREN'S & EDUCATION,"	OCCG GRANT",MATERIALS,09/11/2023,000011295453589,13.5,TIMPSON LTD
OXFORDSHIRE CC,ADULTS,CSS WANTAGE,EQUIPMENT,09/11/2023,000011295453367,16.99,AMZNMKTPLACE
OXFORDSHIRE CC,CHILDREN'S & EDUCATION,"	LEAVING CARE NORTH",CATERING,09/11/2023,000011295454339,9.73,POPEYES LOUISIANA CHIC
OXFORDSHIRE CC,CHILDREN'S & EDUCATION,"	LEAVING CARE CITY 2",CATERING,09/11/2023,000011295453913,14.98,KFC-SITTINGBOURNE
